Workbook

Sheet STARTSEITE
A2: =Translation!A14 -> Toolbox-Pick&Place - MODULARE MONTAGEAUTOMATION
A3: =Translation!A13 -> Version 06/16
D9: =Translation!A6 -> Modul-Berechnungsprogramm
D12: =Translation!A7 -> Mit diesem Software-Tool werden für Pick&Place-Geräte die zulässigen Belastungen und Taktzeiten berechnet
A14: =Translation!A15 -> Zoom (%)
D20: =Translation!A17 -> Achtung:
D22: =Translation!A16 -> Bitte überprüfen Sie regelmäßig die Aktualität dieses Berechnungsprogramms im "Download-Bereich" unserer Homepage !
A41: http://www.schunk.com
D42: =Translation!A8 -> Software: MS Excel 2007
D43: =Translation!A11 -> ActiveX Steuerelemente müssen aktiviert sein !
D44: =Translation!A12 -> MAKROS müssen aktiviert sein !
A45: mailto: automation@ de.schunk.com
A50: 1 | B50: 100
B51: 100
B52: 95
B53: 90
B54: 85
B55: 80
B56: 75
B57: 70
B59: 100
B60: =IF(B59>100,100,B59) -> 100
B61: =B60*0.88 -> 88
B62: =B60*0.96 -> 96

Sheet INFO
A2: =Translation!A14 -> Toolbox-Pick&Place - MODULARE MONTAGEAUTOMATION
A3: ='Info-Translation'!A15 -> Informationen
D12: ='Info-Translation'!A6 -> Infos zur Toolbox-Pick&Place
D16: ='Info-Translation'!A22 -> SCHUNK bietet Ihnen Produkte und Dienstleistungen mit zukunftsgerichtetem technischen Niveau. Um Ihnen die geforderte Planungssicherheit zu garantieren, wurde diese Software entwickelt, mit der Pick&Place-Einheiten berechnet werden können. Nachfolgend ist die Funktion und Bedienung kurz beschrieben.
D21: ='Info-Translation'!A7 -> Klicken Sie hier...
I25: ='Info-Translation'!A13 -> Berechnung der Taktzeiten und Massenträgheitsmomente
I28: ='Info-Translation'!A12 -> Berechnung der Taktzeiten und Massenschwerpunkte
D45: ='Info-Translation'!A9 -> Drehlader DRL
D49: ='Info-Translation'!A23 -> Zur Berechnung von Drehladern ist - VORHER - das Massenträgheitsmoment J der zu schwenkenden Masse zu berechnen !
D52: ='Info-Translation'!A24 -> Aus nachfolgend aufgezeigten Einzelkörpern, deren Massenträgheitsmomente und Schwerpunktskoordinaten mit dieser Software berechnet werden können, ist es möglich durch Zusammensetzen, Aufsummieren oder Subtrahieren das Gesamtmassenträgheitsmoment mit Schwerpunktskoordinaten eines spezifischen Schwenkaufbaus zu ermitteln.
D66: ='Info-Translation'!A25 -> Direkte Eingabe von J | H66: ='Info-Translation'!A26 -> Quader | K66: ='Info-Translation'!A27 -> Scheibe | N66: ='Info-Translation'!A28 -> Welle längs | Q66: ='Info-Translation'!A29 -> Welle quer | T66: ='Info-Translation'!A30 -> Grundfläche/Masse
H71: ='Info-Translation'!A33 -> Einzelkörper-Massenträgheitsmomente
H73: ='Info-Translation'!A34 -> Nach Auswahl des gewünschten Körpers und Eingabe der Körperdaten sind die Koordinaten des Massenschwerpunktes dieses Körpers zur Drehachse zu bestimmen.
H77: ='Info-Translation'!A36 -> Nach vollständiger Eingabe aller Daten müssen die Werte zur Berechnung des Gesamtmassenträgheitsmoments in die Liste addiert oder subtrahiert werden.
D80: ='Info-Translation'!A31 -> Greifmodule
D84: ='Info-Translation'!A37 -> Gesamt-Massenträgheitsmoment
D86: ='Info-Translation'!A38 -> Durch die Möglichkeit der Aufsummierung einzelner Körper ist es möglich das Gesamtmassenträgheitsmoment sowie die Koordinaten des Gesamtmassenschwerpunkts unterschiedlichster Schwenkaufbauten zu berechnen. Diese sind dann die Grundlage zur Berechnung eines geeigneten Drehladers.
E90: ='Info-Translation'!A39 -> Alle in die Liste übernommenen Einzelkörperwerte können zeilenweise gelöscht werden.
E92: ='Info-Translation'!A40 -> Sind in die letzte Zeile der Liste bereits Einzelkörperwerte übernommen worden und Sie wollen weitere Einzelkörper berechnen und in die Liste übernehmen, erhalten Sie eine Meldung die Sie mit - JA - bestätigen. Das bisher berechnete Gesamtmassenträgheitsmoment mit Schwerpunktskoorinaten wird dann in die erste Zeile der Liste übernommen. Sie können nun weitere Einzelkörper berechnen und in die Liste übernehmen.
E97: ='Info-Translation'!A41 -> Über den Button - NEUBERECHNUNG - können Sie die komplette Berechnung löschen.
D100: ='Info-Translation'!A42 -> Nach vollständiger Berechnung des Gesamtmassenträgheitsmoments mit Schwerpunktkoordinaten Ihres zu schwenkenden Aufbaus, gelangen sie über den Button - Zur DRL-Berechnung - in die Modul-Berechnungsmaske, in der Sie bitte den gewünschten Schwenkwinkel und evtl. eine der Optionen ( beide gleichzeitig sind nicht möglich !) eingeben.
D110: ='Info-Translation'!A44 -> Berechnungsgrundlagen für Drehlader
D112: ='Info-Translation'!A45 -> Anwendungsdaten: | G112: ='Info-Translation'!A47 -> Gesamt-Massenträgheitsmoment | L112: ='Info-Translation'!A52 -> Moduldaten: | N112: ='Info-Translation'!A53 -> Betriebsdruck 6/5 bar ( DRL20/DRL25 )
D114: ='Info-Translation'!A46 -> Kundenanforderungen | G114: ='Info-Translation'!A48 -> Koordinaten des Massenschwerpunkts
G116: ='Info-Translation'!A49 -> Schwenkwinkel
D120: ='Info-Translation'!A59 -> Sind alle Daten eingegeben, können von den ursprünglich aufgezeigten Modulen aus folgenden Gründen einige Typen entfallen sein:
D123: ='Info-Translation'!A62 -> Massenträgheitsmoment > 100% des jeweils zulässigen Wertes
D126: ='Info-Translation'!A63 -> Gesamtmasse > zulässiger Wert
D129: ='Info-Translation'!A65 -> Mit allen verbliebenen Typen ist Ihr Anwendungsfall realisierbar.
D132: ='Info-Translation'!A66 -> Berechnungsergebnisse
D135: ='Info-Translation'!A68 -> Auslastung Massenträgheitsmoment
D137: ='Info-Translation'!A69 -> Gesamtmasse
D139: ='Info-Translation'!A71 -> Minimale Taktzeit
D141: ='Info-Translation'!A72 -> Maximale Zyklenzahl pro Minute
D150: ='Info-Translation'!A74 -> ACHTUNG: | F150: ='Info-Translation'!A75 -> Die berechneten Werte dürfen nicht über- bzw. unterschritten werden !
F152: ='Info-Translation'!A76 -> Wegen der vielfältigen Gestaltungsmöglichkeiten sind in den Taktzeiten und Zykluszahlen keine Ansteuerungs- und Ventilschaltzeiten berücksichtigt. Je nach Aufbau und Art der verwendeten Steuerungen und Ventile sind Ansteuerungs- und Schaltzeiten von 0,05 sek. pro Bewegung realisierbar. Diese sind zu den berechneten Zeiten zu addieren.
F156: ='Info-Translation'!A77 -> Keine harten Schläge durch die bewegten Massen !
F158: ='Info-Translation'!A78 -> Die bewegten Massen dürfen beim Aufprall auf den Stoßdämpfer und in den Endlagen keine Schläge verursachen. Dies ist durch entsprechende Hubeinstellung der Stoßdämpfer in den Anschlaghülsen sicherzustellen.
D165: ='Info-Translation'!A16 -> Pick&Place-Unit PPU-P
D169: ='Info-Translation'!A115 -> Zur Berechnung von Pick&Place-Einheiten ist - VORHER - die zu bewegende Masse und deren Schwerpunkt zu berechnen !
D172: ='Info-Translation'!A125 -> Aus nachfolgend aufgezeigten Einzelkörpern ist es möglich, durch Zusammensetzen, Aufsummieren oder Subtrahieren die Gesamtschwerpunktskoordinaten eines spezifischen Aufbaus zu ermitteln.
D186: ='Info-Translation'!A126 -> Direkte Eingabe von m | H186: ='Info-Translation'!A26 -> Quader | K186: ='Info-Translation'!A27 -> Scheibe | N186: ='Info-Translation'!A28 -> Welle längs | Q186: ='Info-Translation'!A29 -> Welle quer | T186: ='Info-Translation'!A31 -> Greifmodule
D191: ='Info-Translation'!A128 -> Einzelkörper-Massenwerte
D193: ='Info-Translation'!A129 -> Nach Auswahl des gewünschten Körpers und Eingabe der Körperdaten sind die Koordinaten des Massenschwerpunktes dieses Körpers zum Ausleger zu bestimmen.
D197: ='Info-Translation'!A130 -> Nach vollständiger Eingabe aller Daten müssen die Werte zur Berechnung der Gesamtmasse und des Gesamtmassen-Schwerpunkts in die Liste addiert oder subtrahiert werden.
D203: ='Info-Translation'!A131 -> Gesamtmasse / Schwerpunkt
D205: ='Info-Translation'!A132 -> Durch die Möglichkeit der Aufsummierung einzelner Körper werden die Gesamtmasse sowie die Koordinaten des Gesamtmassenschwerpunkts unterschiedlichster Aufbauten berechnet. Diese sind dann die Grundlage zur Berechnung einer geeigneten Pick&Place-Einheit.
E209: ='Info-Translation'!A39 -> Alle in die Liste übernommenen Einzelkörperwerte können zeilenweise gelöscht werden.
E211: ='Info-Translation'!A133 -> Sind in die letzte Zeile der Liste bereits Einzelkörperwerte übernommen worden und Sie wollen weitere Einzelkörper berechnen und in die Liste übernehmen, erhalten Sie eine Meldung die Sie mit - JA - bestätigen. Die bisher berechnete Gesamtmasse mit Schwerpunktskoorinaten werden dann in die erste Zeile der Liste übernommen. Sie können nun weitere Einzelkörper berechnen und in die Liste übernehmen.
E216: ='Info-Translation'!A41 -> Über den Button - NEUBERECHNUNG - können Sie die komplette Berechnung löschen.
D219: ='Info-Translation'!A127 -> Nach vollständiger Berechnung der Gesamtmasse mit Schwerpunktkoordinaten des Aufbaus, gelangen sie über den Button - Zur PPU-P-Berechnung - in die Modul-Berechnungsmaske.
D226: ='Info-Translation'!A118 -> Berechnungsgrundlagen für Pick&Place-Einheiten
D228: ='Info-Translation'!A45 -> Anwendungsdaten: | G228: ='Info-Translation'!A134 -> Gesamtmasse | L228: ='Info-Translation'!A52 -> Moduldaten: | N228: ='Info-Translation'!A139 -> Betriebsdruck 5 bar
D230: ='Info-Translation'!A46 -> Kundenanforderungen | G230: ='Info-Translation'!A48 -> Koordinaten des Massenschwerpunkts
D235: ='Info-Translation'!A59 -> Sind alle Daten eingegeben, können von den ursprünglich aufgezeigten Modulen aus folgenden Gründen einige Typen entfallen sein:
D239: ='Info-Translation'!A63 -> Gesamtmasse > zulässiger Wert
D242: ='Info-Translation'!A135 -> Schwerpunktskoordinate liegt außerhalb des zulässigen Bereichs
D246: ='Info-Translation'!A65 -> Mit allen verbliebenen Typen ist Ihr Anwendungsfall realisierbar.
D250: ='Info-Translation'!A66 -> Berechnungsergebnisse
D253: ='Info-Translation'!A69 -> Gesamtmasse
D255: ='Info-Translation'!A136 -> Schwerpunktskoordinate in X-Richtung
D257: ='Info-Translation'!A137 -> Schwerpunktskoordinate in Y-Richtung
D259: ='Info-Translation'!A138 -> Schwerpunktskoordinate in Z-Richtung
D261: ='Info-Translation'!A71 -> Minimale Taktzeit
D263: ='Info-Translation'!A72 -> Maximale Zyklenzahl pro Minute
D268: ='Info-Translation'!A74 -> ACHTUNG: | F268: ='Info-Translation'!A75 -> Die berechneten Werte dürfen nicht über- bzw. unterschritten werden !
F270: ='Info-Translation'!A76 -> Wegen der vielfältigen Gestaltungsmöglichkeiten sind in den Taktzeiten und Zykluszahlen keine Ansteuerungs- und Ventilschaltzeiten berücksichtigt. Je nach Aufbau und Art der verwendeten Steuerungen und Ventile sind Ansteuerungs- und Schaltzeiten von 0,05 sek. pro Bewegung realisierbar. Diese sind zu den berechneten Zeiten zu addieren.
F274: ='Info-Translation'!A77 -> Keine harten Schläge durch die bewegten Massen !
F276: ='Info-Translation'!A123 -> Die bewegten Massen dürfen beim Aufprall auf den Stoßdämpfer und in den Endlagen keine Schläge verursachen. Dies ist durch entsprechende Hubeinstellung der Stoßdämpfer sicherzustellen.
D287: ='Info-Translation'!A11 -> Allgemeine Infos
D292: ='Info-Translation'!A107 -> Haftung
D294: ='Info-Translation'!A108 -> Alle Angaben und technische Werte wurden nach bestem Wissen und Gewissen zusammengestellt. Eine Rechtsverbindlichkeit besteht nur dann, wenn Ihnen diese Daten, bezogen auf Ihren Anwendungsfall, schriftlich durch uns direkt zugesichert wurden. Änderungen und Abweichungen in der Ausführung eines in Auftrag gegebenen Produkts sind zulässig, insbesondere wenn sie qualitätsfördernd sind oder dem technischen Fortschritt dienen, also eine Produktverbesserung beinhalten. Sie sind aber immer so ausgelegt, daß sie den berechtigten Interessen des Verwenders zumutbar sind.
F11985: 10

Sheet Auswahl
A2: =Translation!A14 -> Toolbox-Pick&Place - MODULARE MONTAGEAUTOMATION
A3: =Translation!A26 -> Berechnung von Drehlader und Pick&Place-Unit

Sheet Info-Massenträgheitsmoment
A2: =Translation!A14 -> Toolbox-Pick&Place - MODULARE MONTAGEAUTOMATION
A3: =Translation!A37 -> Berechnung Drehlader DRL
D10: =Translation!A27 -> Beispiel 1 | L10: =Translation!A28 -> Beispiel 2
D40: =Translation!A33 -> Vor der Berechnung des Drehladers müssen die Massenträgheitsmomente der zu schwenkenden Massen ermittelt werden.

Sheet Massenträgheitsmoment
A2: =Translation!A14 -> Toolbox-Pick&Place - MODULARE MONTAGEAUTOMATION
A3: =Translation!A48 -> Berechnung Massenträgheitsmoment
D10: =Translation!A53 -> Gesamtmassenträgheitsmoment aus Einzelkörperberechnung | AC10: =Translation!A127 -> Körperauswahl
D13: =Translation!A54 -> Bezeichnung | H13: J (kgm2) | I13: m (kg) | J13: X (mm) | K13: Y (mm) | L13: h (mm) | M13: m x Z | N13: m x X | O13: m x Y | P13: =Translation!A55 -> Bezeichnung 1 | R13: =Translation!A56 -> Bezeichnung 2 | T13: =Translation!A57 -> Bezeichnung 3 | V13: =Translation!A58 -> Bezeichnung 4 | Y13: =Translation!A59 -> löschen
D14: =IF(D35="","",D35) ->  | H14: =IF(H35="","",H35) ->  | M14: =M35 -> 0 | N14: 0 | O14: 0 | P14: =IF(P35="","",P35) -> 
M15: 0 | N15: 0 | O15: 0
M16: 0 | N16: 0 | O16: 0
M17: 0 | N17: 0 | O17: 0
M18: 0 | N18: 0 | O18: 0
M19: 0 | N19: 0 | O19: 0
M20: 0 | N20: 0 | O20: 0
M21: 0 | N21: 0 | O21: 0
M22: 0 | N22: 0 | O22: 0
M23: 0 | N23: 0 | O23: 0
M24: 0 | N24: 0 | O24: 0
M25: 0 | N25: 0 | O25: 0
M26: 0 | N26: 0 | O26: 0
M27: 0 | N27: 0 | O27: 0
M28: 0 | N28: 0 | O28: 0
D30: =Translation!A60 -> Massenträgheitsmom. | H30: J ges = | I30: =SUM(H14:H28) -> 0 | K30: kgm2 | M30: =SUM(M14:M28) -> 0 | N30: =SUM(N14:N28) -> 0 | O30: =SUM(O14:O28) -> 0 | Q30: =Translation!A62 -> Koordinaten des Gesamtmassenschwerpunkts | U30: Xs = | V30: =IF(OR(I31=0,I31<0),0,N30/I31) -> 0 | W30: mm
D31: =Translation!A61 -> Gesamtmasse | H31: m ges = | I31: =SUM(I14:I28) -> 0 | K31: kg | U31: Ys = | V31: =IF(OR(I31=0,I31<0),0,O30/I31) -> 0 | W31: mm
U32: Zs = | V32: =IF(OR(I31=0,I31<0),0,M30/I31) -> 0 | W32: mm
D54: =Translation!A73 -> Direkte Eingabe von J0
H56: =Translation!A74 -> Eigenmassenträgheitsmom. | Q56: J 0 = | R56: 0 | S56: kgm2 | U56: J = | V56: =R56+POWER(V64/1000,2)*R58 -> 0 | W56: kgm2 | AN56: =V56*(-1) -> 0
H58: =Translation!A75 -> Masse des Körpers | Q58: m = | R58: 0 | S58: kg | U58: m = | V58: =R58 -> 0 | W58: kg | AN58: =V58*(-1) -> 0
R62: 0
H64: =Translation!A76 -> Massenschwerpunkts-Koordinaten | Q64: X = | R64: 0 | S64: mm | U64: R = | V64: =SQRT(POWER(R64,2)+POWER(R66,2)) -> 0 | W64: mm | AN64: =V58*R64 -> 0 | AO64: =V58*R66 -> 0 | AP64: =V58*V66 -> 0
Q66: Y = | R66: 0 | S66: mm | U66: Z = | V66: 0 | W66: mm | AN66: =AN58*R64 -> 0 | AO66: =AN58*R66 -> 0 | AP66: =AN58*V66 -> 0
I70: = | J70: =Translation!A77 -> Eingabefelder
D76: =Translation!A83 -> Quader | R76: =Translation!A84 -> Dichte
H78: =Translation!A85 -> Länge | I78: L = | J78: 0 | K78: mm | R78: 7.85 | S78: kg/dm3 | U78: J = | V78: =((((POWER(J78/1000,2))+POWER(J80/1000,2))/12)*V80)+(POWER(V86/1000,2)*V80) -> 0 | W78: kgm2 | AN78: =V78*(-1) -> 0 | AO78: FALSE | AP78: =IF(AO78=TRUE,7.85,IF(AO80=TRUE,2.7,IF(AO82=TRUE,R82,0))) -> 0
H80: =Translation!A86 -> Breite | I80: B = | J80: 0 | K80: mm | R80: 2.7 | S80: kg/dm3 | U80: m = | V80: =((J78*J80*J82)/1000000)*AP78 -> 0 | W80: kg | AN80: =V80*(-1) -> 0 | AO80: FALSE
H82: =Translation!A87 -> Höhe | I82: H = | J82: 0 | K82: mm | R82: 0 | S82: kg/dm3 | AO82: FALSE
H86: =Translation!A76 -> Massenschwerpunkts-Koordinaten | Q86: X = | R86: 0 | S86: mm | U86: R = | V86: =SQRT(POWER(R86,2)+POWER(R88,2)) -> 0 | W86: mm | AN86: =V80*R86 -> 0 | AO86: =V80*R88 -> 0 | AP86: =V80*V88 -> 0
Q88: Y = | R88: 0 | S88: mm | U88: Z = | V88: 0 | W88: mm | AN88: =AN80*R86 -> 0 | AO88: =AN80*R88 -> 0 | AP88: =AN80*V88 -> 0
I92: = | J92: =Translation!A77 -> Eingabefelder
D98: =Translation!A92 -> Scheibe | R98: =Translation!A93 -> Dichte
H100: =Translation!A94 -> Durch- | I100: D = | J100: 0 | K100: mm | R100: 7.85 | S100: kg/dm3 | U100: J = | V100: =(POWER(J100/1000,2)/8)*V102+(POWER(V108/1000,2)*V102) -> 0 | W100: kgm2 | AN100: =V100*(-1) -> 0 | AO100: FALSE | AP100: =IF(AO100=TRUE,7.85,IF(AO102=TRUE,2.7,IF(AO104=TRUE,R104,0))) -> 0
H102: =Translation!A95 -> messer | R102: 2.7 | S102: kg/dm3 | U102: m = | V102: =(POWER(J100/100,2)/4)*3.1416*(J104/100)*AP100 -> 0 | W102: kg | AN102: =V102*(-1) -> 0 | AO102: FALSE
H104: =Translation!A96 -> Dicke | I104: H = | J104: 0 | K104: mm | R104: 0 | S104: kg/dm3 | AO104: FALSE
H108: =Translation!A76 -> Massenschwerpunkts-Koordinaten | Q108: X = | R108: 0 | S108: mm | U108: R = | V108: =SQRT(POWER(R108,2)+POWER(R110,2)) -> 0 | W108: mm | AN108: =V102*R108 -> 0 | AO108: =V102*R110 -> 0 | AP108: =V102*V110 -> 0
Q110: Y = | R110: 0 | S110: mm | U110: Z = | V110: 0 | W110: mm | AN110: =AN102*R108 -> 0 | AO110: =AN102*R110 -> 0 | AP110: =AN102*V110 -> 0
I114: = | J114: =Translation!A77 -> Eingabefelder
D120: =Translation!A98 -> Welle längs zur Drehachse | R120: =Translation!A99 -> Dichte
H122: =Translation!A100 -> Durch- | I122: Da = | J122: 0 | K122: mm | R122: 7.85 | S122: kg/dm3 | U122: J = | V122: =(((POWER(AJ122/1000,2)+POWER(AJ124/1000,2))/8)*V124+(POWER(V130/1000,2)*V124)) -> 0 | W122: kgm2 | AJ122: =IF(OR(J122="",J124=""),0,J122) -> 0 | AN122: =V122*(-1) -> 0 | AO122: FALSE | AP122: =IF(AO122=TRUE,7.85,IF(AO124=TRUE,2.7,IF(AO126=TRUE,R126,0))) -> 0
H124: =Translation!A101 -> messer | I124: Di = | J124: 0 | K124: mm | R124: 2.7 | S124: kg/dm3 | U124: m = | V124: =(POWER(AJ122/100,2)-POWER(AJ124/100,2))*(3.1416*(J126/100)/4)*AP122 -> 0 | W124: kg | AJ124: =IF(OR(J124="",J122=""),0,J124) -> 0 | AN124: =V124*(-1) -> 0 | AO124: FALSE
H126: =Translation!A102 -> Länge | I126: L = | J126: 0 | K126: mm | R126: 0 | S126: kg/dm3 | AO126: FALSE
H130: =Translation!A76 -> Massenschwerpunkts-Koordinaten | Q130: X = | R130: 0 | S130: mm | U130: R = | V130: =SQRT(POWER(R130,2)+POWER(R132,2)) -> 0 | W130: mm | AN130: =V124*R130 -> 0 | AO130: =V124*R132 -> 0 | AP130: =V124*V132 -> 0
Q132: Y = | R132: 0 | S132: mm | U132: Z = | V132: 0 | W132: mm | AN132: =AN124*R130 -> 0 | AO132: =AN124*R132 -> 0 | AP132: =AN124*V132 -> 0
I136: = | J136: =Translation!A77 -> Eingabefelder
D142: =Translation!A104 -> Welle quer zur Drehachse | R142: =Translation!A105 -> Dichte
H144: =Translation!A106 -> Durch- | I144: Da = | J144: 0 | K144: mm | R144: 7.85 | S144: kg/dm3 | U144: J = | V144: =((POWER(AJ144/1000,2)/16)+(POWER(AJ146/1000,2)/16)+(POWER(J148/1000,2)/12))*V146+(POWER(V152/1000,2)*V146) -> 0 | W144: kgm2 | AJ144: =IF(OR(J144="",J146=""),0,J144) -> 0 | AN144: =V144*(-1) -> 0 | AO144: FALSE | AP144: =IF(AO144=TRUE,7.85,IF(AO146=TRUE,2.7,IF(AO148=TRUE,R148,0))) -> 0
H146: =Translation!A107 -> messer | I146: Di = | J146: 0 | K146: mm | R146: 2.7 | S146: kg/dm3 | U146: m = | V146: =(POWER(AJ144/100,2)-POWER(AJ146/100,2))*(3.1416*(J148/100)/4)*AP144 -> 0 | W146: kg | AJ146: =IF(OR(J146="",J144=""),0,J146) -> 0 | AN146: =V146*(-1) -> 0 | AO146: FALSE
H148: =Translation!A108 -> Länge | I148: L = | J148: 0 | K148: mm | R148: 0 | S148: kg/dm3 | AO148: FALSE
H152: =Translation!A76 -> Massenschwerpunkts-Koordinaten | Q152: X = | R152: 0 | S152: mm | U152: R = | V152: =SQRT(POWER(R152,2)+POWER(R154,2)) -> 0 | W152: mm | AN152: =V146*R152 -> 0 | AO152: =V146*R154 -> 0 | AP152: =V146*V154 -> 0
Q154: Y = | R154: 0 | S154: mm | U154: Z = | V154: 0 | W154: mm | AN154: =AN146*R152 -> 0 | AO154: =AN146*R154 -> 0 | AP154: =AN146*V154 -> 0
I158: = | J158: =Translation!A77 -> Eingabefelder
D164: =Translation!A110 -> Grundfläche / Masse
H166: =Translation!A111 -> Länge | I166: L = | J166: 0 | K166: mm | U166: J = | V166: =((((POWER(J166/1000,2))+POWER(J168/1000,2))/12)*V168)+(POWER(V174/1000,2)*V168) -> 0 | W166: kgm2 | AN166: =V166*(-1) -> 0
H168: =Translation!A112 -> Breite | I168: B = | J168: 0 | K168: mm | U168: m = | V168: =J170 -> 0 | W168: kg | AN168: =V168*(-1) -> 0
H170: =Translation!A113 -> Masse | I170: m = | J170: 0 | K170: kg
H174: =Translation!A76 -> Massenschwerpunkts-Koordinaten | Q174: X = | R174: 0 | S174: mm | U174: R = | V174: =SQRT(POWER(R174,2)+POWER(R176,2)) -> 0 | W174: mm | AN174: =V168*R174 -> 0 | AO174: =V168*R176 -> 0 | AP174: =V168*V176 -> 0
Q176: Y = | R176: 0 | S176: mm | U176: Z = | V176: 0 | W176: mm | AN176: =AN168*R174 -> 0 | AO176: =AN168*R176 -> 0 | AP176: =AN168*V176 -> 0
I180: = | J180: =Translation!A77 -> Eingabefelder
D186: =Translation!A115 -> Greifmodule
D188: =Translation!A116 -> Parallel-Greifer | H188: =A341&Translation!A116 -> Parallel-Greifer | L188: =A341&Translation!A116 -> Parallel-Greifer | R188: =#REF!&Translation!A117 ->  | V188: =A341&A341&A341&Translation!A118 -> Winkel-Greifer | AC188: =Translation!A119 -> Winkel-Parallel-Greifer
D189: PGN-plus | G189: MPG / MPG-plus | L189: GMP | Q189: MPZ / PZN-plus | U189: GAP | Y189: PRG | AD189: PWG-plus
D206: =Translation!A116&A341&AJ218 -> Parallel-Greifer | AQ206: Eigenmassenträgheitsmoment J0 (kgm2) | AT206: 1 | AU206: Masse m (kg) | AY206: Maß h (mm) | BC206: Eigenmassenträgheitsmoment Jz (kgm2) | BG206: Eigenmassenträgheitsmoment Jy (kgm2)
U208: J = | V208: =(AQ216+(POWER(V216/1000,2)*AU216)) -> 0 | W208: kgm2 | AJ208: FALSE | AK208: FALSE | AQ208: =IF($AT$206=1,BC208,IF($AT$206=2,BG208,0)) -> 1.8e-05 | AR208: =IF($AT$206=1,BD208,IF($AT$206=2,BH208,0)) -> 2.1e-05 | AU208: 0.08 | AV208: 0.1 | AY208: 9.5 | AZ208: 21.7 | BC208: 1.8e-05 | BD208: 2.1e-05 | BG208: 1.9e-05 | BH208: 2.6e-05
U210: m = | V210: =AU216 -> 0 | W210: kg | AJ210: FALSE | AK210: FALSE | AQ210: =IF($AT$206=1,BC210,IF($AT$206=2,BG210,0)) -> 6.2e-05 | AR210: =IF($AT$206=1,BD210,IF($AT$206=2,BH210,0)) -> 7.3e-05 | AU210: 0.17 | AV210: 0.21 | AY210: 19.1 | AZ210: 29.2 | BC210: 6.2e-05 | BD210: 7.3e-05 | BG210: 6.3e-05 | BH210: 9.6e-05
U212: h = | V212: =AY216 -> 0 | W212: mm | AJ212: FALSE | AK212: FALSE | AQ212: =IF($AT$206=1,BC212,IF($AT$206=2,BG212,0)) -> 0.000141 | AR212: =IF($AT$206=1,BD212,IF($AT$206=2,BH212,0)) -> 0.000167 | AU212: 0.28 | AV212: 0.37 | AY212: 23.5 | AZ212: 34.6 | BC212: 0.000141 | BD212: 0.000167 | BG212: 0.000148 | BH212: 0.000224
H216: =Translation!A76 -> Massenschwerpunkts-Koordinaten | Q216: X = | R216: 0 | S216: mm | U216: R = | V216: =SQRT(POWER(R216,2)+POWER(R218,2)) -> 0 | W216: mm | AN216: =V210*R216 -> 0 | AO216: =V210*R218 -> 0 | AP216: =V210*V218 -> 0 | AQ216: =IF(AJ208=TRUE,AQ208,IF(AJ210=TRUE,AQ210,IF(AJ212=TRUE,AQ212,IF(AK208=TRUE,AR208,IF(AK210=TRUE,AR210,IF(AK212=TRUE,AR212,0)))))) -> 0 | AU216: =IF(AJ208=TRUE,AU208,IF(AJ210=TRUE,AU210,IF(AJ212=TRUE,AU212,IF(AK208=TRUE,AV208,IF(AK210=TRUE,AV210,IF(AK212=TRUE,AV212,0)))))) -> 0 | AY216: =IF(AJ208=TRUE,AY208,IF(AJ210=TRUE,AY210,IF(AJ212=TRUE,AY212,IF(AK208=TRUE,AZ208,IF(AK210=TRUE,AZ210,IF(AK212=TRUE,AZ212,0)))))) -> 0
Q218: Y = | R218: 0 | S218: mm | U218: Z = | V218: =V212 -> 0 | W218: mm | AJ218: =IF(AJ208=TRUE,"PGN-plus 40",IF(AJ210=TRUE,"PGN-plus 50",IF(AJ212=TRUE,"PGN-plus 64",IF(AK208=TRUE,"PGN-plus 40-AS/IS",IF(AK210=TRUE,"PGN-plus 50-AS/IS",IF(AK212=TRUE,"PGN-plus 64-AS/IS","")))))) -> 
I222: = | J222: =Translation!A77 -> Eingabefelder
D228: =Translation!A116&A341&AK240 -> Parallel-Greifer | AQ228: Eigenmassenträgheitsmoment J0 (kgm2) | AT228: 1 | AU228: Masse m (kg) | AY228: Maß h (mm) | BC228: Eigenmassenträgheitsmoment Jz (kgm2) | BG228: Eigenmassenträgheitsmoment Jy (kgm2)
U230: J = | V230: =(AR238+(POWER(V238/1000,2)*AV238)) -> 0 | W230: kgm2 | AJ230: FALSE | AK230: FALSE | AL230: FALSE | AM230: FALSE | AQ230: =IF($AT$228=1,BC230,IF($AT$228=2,BG230,0)) -> 3e-06 | AR230: =IF($AT$228=1,BD230,IF($AT$228=2,BH230,0)) -> 3e-06 | AS230: =IF($AT$228=1,BE230,IF($AT$228=2,BI230,0)) -> 2.6e-05 | AT230: =IF($AT$228=1,BF230,IF($AT$228=2,BJ230,0)) -> 4.8e-05 | AU230: 0.04 | AV230: 0.05 | AW230: 0.18 | AX230: 0.24 | AY230: 14.9 | AZ230: 20.9 | BA230: 24.4 | BB230: 39.7 | BC230: 3e-06 | BD230: 3e-06 | BE230: 2.6e-05 | BF230: 4.8e-05 | BG230: 4e-06 | BH230: 7e-06 | BI230: 5.3e-05 | BJ230: 0.000127
U232: m = | V232: =AV238 -> 0 | W232: kg | AJ232: FALSE | AK232: FALSE | AL232: FALSE | AM232: FALSE | AQ232: =IF($AT$228=1,BC232,IF($AT$228=2,BG232,0)) -> 5e-06 | AR232: =IF($AT$228=1,BD232,IF($AT$228=2,BH232,0)) -> 6e-06 | AS232: =IF($AT$228=1,BE232,IF($AT$228=2,BI232,0)) -> 9.5e-05 | AT232: =IF($AT$228=1,BF232,IF($AT$228=2,BJ232,0)) -> 0.0002 | AU232: 0.06 | AV232: 0.07 | AW232: 0.35 | AX232: 0.4 | AY232: 16.6 | AZ232: 24.6 | BA232: 29.3 | BB232: 34.5 | BC232: 5e-06 | BD232: 6e-06 | BE232: 9.5e-05 | BF232: 0.0002 | BG232: 7e-06 | BH232: 1.4e-05 | BI232: 0.000133 | BJ232: 0.000405
U234: h = | V234: =AZ238 -> 0 | W234: mm | AJ234: FALSE | AK234: FALSE | AL234: FALSE | AM234: FALSE | AQ234: =IF($AT$228=1,BC234,IF($AT$228=2,BG234,0)) -> 1.3e-05 | AR234: =IF($AT$228=1,BD234,IF($AT$228=2,BH234,0)) -> 1.7e-05 | AS234: =IF($AT$228=1,BE234,IF($AT$228=2,BI234,0)) -> 0.00027 | AT234: =IF($AT$228=1,BF234,IF($AT$228=2,BJ234,0)) -> 0.000312 | AU234: 0.1 | AV234: 0.13 | AW234: 0.6 | AX234: 0.7 | AY234: 20.9 | AZ234: 29.1 | BA234: 34.3 | BB234: 44.3 | BC234: 1.3e-05 | BD234: 1.7e-05 | BE234: 0.00027 | BF234: 0.000312 | BG234: 2.1e-05 | BH234: 3.9e-05 | BI234: 0.000356 | BJ234: 0.000517
H238: =Translation!A76 -> Massenschwerpunkts-Koordinaten | Q238: X = | R238: 0 | S238: mm | U238: R = | V238: =SQRT(POWER(R238,2)+POWER(R240,2)) -> 0 | W238: mm | AN238: =V232*R238 -> 0 | AO238: =V232*R240 -> 0 | AP238: =V232*V240 -> 0 | AQ238: =IF(AJ230=TRUE,AQ230,IF(AJ232=TRUE,AQ232,IF(AJ234=TRUE,AQ234,IF(AK230=TRUE,AR230,IF(AK232=TRUE,AR232,IF(AK234=TRUE,AR234,0)))))) -> 0 | AR238: =IF(AQ238=0,AS238,AQ238) -> 0 | AS238: =IF(AL230=TRUE,AS230,IF(AL232=TRUE,AS232,IF(AL234=TRUE,AS234,IF(AM230=TRUE,AT230,IF(AM232=TRUE,AT232,IF(AM234=TRUE,AT234,0)))))) -> 0 | AU238: =IF(AJ230=TRUE,AU230,IF(AJ232=TRUE,AU232,IF(AJ234=TRUE,AU234,IF(AK230=TRUE,AV230,IF(AK232=TRUE,AV232,IF(AK234=TRUE,AV234,0)))))) -> 0 | AV238: =IF(AU238=0,AW238,AU238) -> 0 | AW238: =IF(AL230=TRUE,AW230,IF(AL232=TRUE,AW232,IF(AL234=TRUE,AW234,IF(AM230=TRUE,AX230,IF(AM232=TRUE,AX232,IF(AM234=TRUE,AX234,0)))))) -> 0 | AY238: =IF(AJ230=TRUE,AY230,IF(AJ232=TRUE,AY232,IF(AJ234=TRUE,AY234,IF(AK230=TRUE,AZ230,IF(AK232=TRUE,AZ232,IF(AK234=TRUE,AZ234,0)))))) -> 0 | AZ238: =IF(AY238=0,BA238,AY238) -> 0 | BA238: =IF(AL230=TRUE,BA230,IF(AL232=TRUE,BA232,IF(AL234=TRUE,BA234,IF(AM230=TRUE,BB230,IF(AM232=TRUE,BB232,IF(AM234=TRUE,BB234,0)))))) -> 0
Q240: Y = | R240: 0 | S240: mm | U240: Z = | V240: =V234 -> 0 | W240: mm | AJ240: =IF(AJ230=TRUE,"MPG 20",IF(AJ232=TRUE,"MPG-plus 25",IF(AJ234=TRUE,"MPG-plus 32",IF(AK230=TRUE,"MPG 20-AS/IS",IF(AK232=TRUE,"MPG-plus 25-AS/IS",IF(AK234=TRUE,"MPG-plus 32-AS/IS","")))))) ->  | AK240: =IF(AJ240="",AL240,AJ240) ->  | AL240: =IF(AL230=TRUE,"MPG-plus 40",IF(AL232=TRUE,"MPG 50",IF(AL234=TRUE,"MPG 64",IF(AM230=TRUE,"MPG-plus 40-AS/IS",IF(AM232=TRUE,"MPG 50-AS/IS",IF(AM234=TRUE,"MPG 64-AS/IS","")))))) -> 
I244: = | J244: =Translation!A77 -> Eingabefelder
D250: =Translation!A116&A341&AK264 -> Parallel-Greifer | AQ250: Eigenmassenträgheitsmoment J0 (kgm2) | AT250: 1 | AU250: Masse m (kg) | AY250: Maß h (mm) | BC250: Eigenmassenträgheitsmoment Jz (kgm2) | BG250: Eigenmassenträgheitsmoment Jy (kgm2)
U252: J = | V252: =(AR262+(POWER(V262/1000,2)*AV262)) -> 0 | W252: kgm2 | AJ252: FALSE | AK252: FALSE | AL252: FALSE | AM252: FALSE | AQ252: =IF($AT$250=1,BC252,IF($AT$250=2,BG252,0)) -> 2.42e-05 | AR252: =IF($AT$250=1,BD252,IF($AT$250=2,BH252,0)) -> 5.06e-05 | AS252: =IF($AT$250=1,BE252,IF($AT$250=2,BI252,0)) -> 0.0001259 | AT252: =IF($AT$250=1,BF252,IF($AT$250=2,BJ252,0)) -> 0.0003425 | AU252: 0.14 | AV252: 0.2 | AW252: 0.34 | AX252: 0.62 | AY252: 28.5 | AZ252: 32.7 | BA252: 39.5 | BB252: 48.8 | BC252: 2.42e-05 | BD252: 5.06e-05 | BE252: 0.0001259 | BF252: 0.0003425 | BG252: 4.5e-05 | BH252: 8.7e-05 | BI252: 0.000204 | BJ252: 0.000592
U254: m = | V254: =AV262 -> 0 | W254: kg | AJ254: FALSE | AK254: FALSE | AL254: FALSE | AM254: FALSE | AQ254: =IF($AT$250=1,BC254,IF($AT$250=2,BG254,0)) -> 2.73e-05 | AR254: =IF($AT$250=1,BD254,IF($AT$250=2,BH254,0)) -> 5.72e-05 | AS254: =IF($AT$250=1,BE254,IF($AT$250=2,BI254,0)) -> 0.0001391 | AT254: =IF($AT$250=1,BF254,IF($AT$250=2,BJ254,0)) -> 0.0003674 | AU254: 0.16 | AV254: 0.24 | AW254: 0.4 | AX254: 0.68 | AY254: 33.9 | AZ254: 38.5 | BA254: 46.5 | BB254: 55.7 | BC254: 2.73e-05 | BD254: 5.72e-05 | BE254: 0.0001391 | BF254: 0.0003674 | BG254: 6.7e-05 | BH254: 0.000126 | BI254: 0.000289 | BJ254: 0.000779
U256: h = | V256: =AZ262 -> 0 | W256: mm | AJ256: FALSE | AK256: FALSE | AL256: FALSE | AM256: FALSE | AQ256: =IF($AT$250=1,BC256,IF($AT$250=2,BG256,0)) -> 2.99e-05 | AR256: =IF($AT$250=1,BD256,IF($AT$250=2,BH256,0)) -> 6.27e-05 | AS256: =IF($AT$250=1,BE256,IF($AT$250=2,BI256,0)) -> 0.0001469 | AT256: =IF($AT$250=1,BF256,IF($AT$250=2,BJ256,0)) -> 0.0004042 | AU256: 0.16 | AV256: 0.26 | AW256: 0.42 | AX256: 0.78 | AY256: 39.5 | AZ256: 43 | BA256: 53.1 | BB256: 68.7 | BC256: 2.99e-05 | BD256: 6.27e-05 | BE256: 0.0001469 | BF256: 0.0004042 | BG256: 9.6e-05 | BH256: 0.000182 | BI256: 0.000399 | BJ256: 0.001249
AJ258: FALSE | AK258: FALSE | AL258: FALSE | AM258: FALSE | AQ258: =IF($AT$250=1,BC258,IF($AT$250=2,BG258,0)) -> 3.31e-05 | AR258: =IF($AT$250=1,BD258,IF($AT$250=2,BH258,0)) -> 6.93e-05 | AS258: =IF($AT$250=1,BE258,IF($AT$250=2,BI258,0)) -> 0.0001601 | AT258: =IF($AT$250=1,BF258,IF($AT$250=2,BJ258,0)) -> 0.0004291 | AU258: 0.18 | AV258: 0.28 | AW258: 0.48 | AX258: 0.86 | AY258: 44.9 | AZ258: 48.7 | BA258: 60.1 | BB258: 75.5 | BC258: 3.31e-05 | BD258: 6.93e-05 | BE258: 0.0001601 | BF258: 0.0004291 | BG258: 0.000134 | BH258: 0.000248 | BI258: 0.000542 | BJ258: 0.001588
H262: =Translation!A76 -> Massenschwerpunkts-Koordinaten | Q262: X = | R262: 0 | S262: mm | U262: R = | V262: =SQRT(POWER(R262,2)+POWER(R264,2)) -> 0 | W262: mm | AN262: =V254*R262 -> 0 | AO262: =V254*R264 -> 0 | AP262: =V254*V264 -> 0 | AQ262: =IF(AJ252=TRUE,AQ252,IF(AJ254=TRUE,AQ254,IF(AJ256=TRUE,AQ256,IF(AJ258=TRUE,AQ258,IF(AK252=TRUE,AR252,IF(AK254=TRUE,AR254,IF(AK256=TRUE,AR256,IF(AK258=TRUE,AR258,0)))))))) -> 0 | AR262: =IF(AQ262=0,AS262,AQ262) -> 0 | AS262: =IF(AL252=TRUE,AS252,IF(AL254=TRUE,AS254,IF(AL256=TRUE,AS256,IF(AL258=TRUE,AS258,IF(AM252=TRUE,AT252,IF(AM254=TRUE,AT254,IF(AM256=TRUE,AT256,IF(AM258=TRUE,AT258,0)))))))) -> 0 | AU262: =IF(AJ252=TRUE,AU252,IF(AJ254=TRUE,AU254,IF(AJ256=TRUE,AU256,IF(AJ258=TRUE,AU258,IF(AK252=TRUE,AV252,IF(AK254=TRUE,AV254,IF(AK256=TRUE,AV256,IF(AK258=TRUE,AV258,0)))))))) -> 0 | AV262: =IF(AU262=0,AW262,AU262) -> 0 | AW262: =IF(AL252=TRUE,AW252,IF(AL254=TRUE,AW254,IF(AL256=TRUE,AW256,IF(AL258=TRUE,AW258,IF(AM252=TRUE,AX252,IF(AM254=TRUE,AX254,IF(AM256=TRUE,AX256,IF(AM258=TRUE,AX258,0)))))))) -> 0 | AY262: =IF(AJ252=TRUE,AY252,IF(AJ254=TRUE,AY254,IF(AJ256=TRUE,AY256,IF(AJ258=TRUE,AY258,IF(AK252=TRUE,AZ252,IF(AK254=TRUE,AZ254,IF(AK256=TRUE,AZ256,IF(AK258=TRUE,AZ258,0)))))))) -> 0 | AZ262: =IF(AY262=0,BA262,AY262) -> 0 | BA262: =IF(AL252=TRUE,BA252,IF(AL254=TRUE,BA254,IF(AL256=TRUE,BA256,IF(AL258=TRUE,BA258,IF(AM252=TRUE,BB252,IF(AM254=TRUE,BB254,IF(AM256=TRUE,BB256,IF(AM258=TRUE,BB258,0)))))))) -> 0
Q264: Y = | R264: 0 | S264: mm | U264: Z = | V264: =V256 -> 0 | W264: mm | AJ264: =IF(AJ252=TRUE,"GMP 12",IF(AJ254=TRUE,"GMP 12-D",IF(AJ256=TRUE,"GMP 12-S/K",IF(AJ258=TRUE,"GMP 12-X/Z",IF(AK252=TRUE,"GMP 16",IF(AK254=TRUE,"GMP 16-D",IF(AK256=TRUE,"GMP 16-S/K",IF(AK258=TRUE,"GMP 16-X/Z","")))))))) ->  | AK264: =IF(AJ264="",AL264,AJ264) ->  | AL264: =IF(AL252=TRUE,"GMP 20",IF(AL254=TRUE,"GMP 20-D",IF(AL256=TRUE,"GMP 20-S/K",IF(AL258=TRUE,"GMP 20-X/Z",IF(AM252=TRUE,"GMP 28",IF(AM254=TRUE,"GMP 28-D",IF(AM256=TRUE,"GMP 28-S/K",IF(AM258=TRUE,"GMP 28-X/Z","")))))))) -> 
I268: = | J268: =Translation!A77 -> Eingabefelder
D274: =Translation!A117&A341&AK288 -> 3-Backen-Greifer | AQ274: Eigenmassenträgheitsmoment J0 (kgm2) | AT274: 1 | AU274: Masse m (kg) | AY274: Maß h (mm) | BC274: Eigenmassenträgheitsmoment Jz (kgm2) | BG274: Eigenmassenträgheitsmoment Jy (kgm2)
U276: J = | V276: =(AR286+(POWER(V286/1000,2)*AV286)) -> 0 | W276: kgm2 | AJ276: FALSE | AK276: FALSE | AL276: FALSE | AM276: FALSE | AQ276: =IF($AT$274=1,BC276,IF($AT$274=2,BG276,0)) -> 9e-06 | AR276: =IF($AT$274=1,BD276,IF($AT$274=2,BH276,0)) -> 1.1e-05 | AS276: =IF($AT$274=1,BE276,IF($AT$274=2,BI276,0)) -> 3.3e-05 | AT276: =IF($AT$274=1,BF276,IF($AT$274=2,BJ276,0)) -> 3.7e-05 | AU276: 0.08 | AV276: 0.09 | AW276: 0.13 | AX276: 0.15 | AY276: 18.8 | AZ276: 26.5 | BA276: 15.8 | BB276: 21.1 | BC276: 9e-06 | BD276: 1.1e-05 | BE276: 3.3e-05 | BF276: 3.7e-05 | BG276: 1.2e-05 | BH276: 2.3e-05 | BI276: 2.3e-05 | BJ276: 3.3e-05
U278: m = | V278: =AV286 -> 0 | W278: kg | AJ278: FALSE | AK278: FALSE | AL278: FALSE | AM278: FALSE | AQ278: =IF($AT$274=1,BC278,IF($AT$274=2,BG278,0)) -> 2.8e-05 | AR278: =IF($AT$274=1,BD278,IF($AT$274=2,BH278,0)) -> 3.8e-05 | AS278: =IF($AT$274=1,BE278,IF($AT$274=2,BI278,0)) -> 0.000115 | AT278: =IF($AT$274=1,BF278,IF($AT$274=2,BJ278,0)) -> 0.000129 | AU278: 0.14 | AV278: 0.19 | AW278: 0.27 | AX278: 0.32 | AY278: 22.4 | AZ278: 33.7 | BA278: 19.9 | BB278: 26.5 | BC278: 2.8e-05 | BD278: 3.8e-05 | BE278: 0.000115 | BF278: 0.000129 | BG278: 3.4e-05 | BH278: 8.5e-05 | BI278: 8e-05 | BJ278: 0.000112
U280: h = | V280: =AZ286 -> 0 | W280: mm | AJ280: FALSE | AK280: FALSE | AQ280: =IF($AT$274=1,BC280,IF($AT$274=2,BG280,0)) -> 6.2e-05 | AR280: =IF($AT$274=1,BD280,IF($AT$274=2,BH280,0)) -> 7.6e-05 | AU280: 0.22 | AV280: 0.28 | AY280: 25.7 | AZ280: 34.1 | BC280: 6.2e-05 | BD280: 7.6e-05 | BG280: 7e-05 | BH280: 0.000124
H286: =Translation!A76 -> Massenschwerpunkts-Koordinaten | Q286: X = | R286: 0 | S286: mm | U286: R = | V286: =SQRT(POWER(R286,2)+POWER(R288,2)) -> 0 | W286: mm | AN286: =V278*R286 -> 0 | AO286: =V278*R288 -> 0 | AP286: =V278*V288 -> 0 | AQ286: =IF(AJ276=TRUE,AQ276,IF(AJ278=TRUE,AQ278,IF(AJ280=TRUE,AQ280,IF(AJ282=TRUE,AQ282,IF(AK276=TRUE,AR276,IF(AK278=TRUE,AR278,IF(AK280=TRUE,AR280,IF(AK282=TRUE,AR282,0)))))))) -> 0 | AR286: =IF(AQ286=0,AS286,AQ286) -> 0 | AS286: =IF(AL276=TRUE,AS276,IF(AL278=TRUE,AS278,IF(AL280=TRUE,AS280,IF(AL282=TRUE,AS282,IF(AM276=TRUE,AT276,IF(AM278=TRUE,AT278,IF(AM280=TRUE,AT280,IF(AM282=TRUE,AT282,0)))))))) -> 0 | AU286: =IF(AJ276=TRUE,AU276,IF(AJ278=TRUE,AU278,IF(AJ280=TRUE,AU280,IF(AJ282=TRUE,AU282,IF(AK276=TRUE,AV276,IF(AK278=TRUE,AV278,IF(AK280=TRUE,AV280,IF(AK282=TRUE,AV282,0)))))))) -> 0 | AV286: =IF(AU286=0,AW286,AU286) -> 0 | AW286: =IF(AL276=TRUE,AW276,IF(AL278=TRUE,AW278,IF(AL280=TRUE,AW280,IF(AL282=TRUE,AW282,IF(AM276=TRUE,AX276,IF(AM278=TRUE,AX278,IF(AM280=TRUE,AX280,IF(AM282=TRUE,AX282,0)))))))) -> 0 | AY286: =IF(AJ276=TRUE,AY276,IF(AJ278=TRUE,AY278,IF(AJ280=TRUE,AY280,IF(AJ282=TRUE,AY282,IF(AK276=TRUE,AZ276,IF(AK278=TRUE,AZ278,IF(AK280=TRUE,AZ280,IF(AK282=TRUE,AZ282,0)))))))) -> 0 | AZ286: =IF(AY286=0,BA286,AY286) -> 0 | BA286: =IF(AL276=TRUE,BA276,IF(AL278=TRUE,BA278,IF(AL280=TRUE,BA280,IF(AL282=TRUE,BA282,IF(AM276=TRUE,BB276,IF(AM278=TRUE,BB278,IF(AM280=TRUE,BB280,IF(AM282=TRUE,BB282,0)))))))) -> 0
Q288: Y = | R288: 0 | S288: mm | U288: Z = | V288: =V280 -> 0 | W288: mm | AJ288: =IF(AJ276=TRUE,"MPZ 30",IF(AJ278=TRUE,"MPZ 38",IF(AJ280=TRUE,"MPZ 45",IF(AJ282=TRUE,"",IF(AK276=TRUE,"MPZ 30-AS/IS",IF(AK278=TRUE,"MPZ 38-AS/IS",IF(AK280=TRUE,"MPZ 45-AS/IS",IF(AK282=TRUE,"","")))))))) ->  | AK288: =IF(AJ288="",AL288,AJ288) ->  | AL288: =IF(AL276=TRUE,"PZN-plus 40",IF(AL278=TRUE,"PZN-plus 50",IF(AL280=TRUE,"",IF(AL282=TRUE,"",IF(AM276=TRUE,"PZN-plus 40-AS/IS",IF(AM278=TRUE,"PZN-plus 50-AS/IS",IF(AM280=TRUE,"",IF(AM282=TRUE,"","")))))))) -> 
I292: = | J292: =Translation!A77 -> Eingabefelder
D298: =Translation!A119&A341&AK312 -> Winkel-Parallel-Greifer | AQ298: Eigenmassenträgheitsmoment J0 (kgm2) | AT298: 1 | AU298: Masse m (kg) | AY298: Maß h (mm) | BC298: Eigenmassenträgheitsmoment Jz (kgm2) | BG298: Eigenmassenträgheitsmoment Jy (kgm2)
U300: J = | V300: =(AR310+(POWER(V310/1000,2)*AV310)) -> 0 | W300: kgm2 | AJ300: FALSE | AK300: FALSE | AQ300: =IF($AT$298=1,BC300,IF($AT$298=2,BG300,0)) -> 2.6e-05 | AR300: =IF($AT$298=1,BD300,IF($AT$298=2,BH300,0)) -> 3.5e-05 | AU300: 0.16 | AV300: 0.22 | AY300: 35.3 | AZ300: 47.4 | BC300: 2.6e-05 | BD300: 3.5e-05 | BG300: 7.1e-05 | BH300: 0.00016
U302: m = | V302: =AV310 -> 0 | W302: kg | AJ302: FALSE | AK302: FALSE | AQ302: =IF($AT$298=1,BC302,IF($AT$298=2,BG302,0)) -> 7.6e-05 | AR302: =IF($AT$298=1,BD302,IF($AT$298=2,BH302,0)) -> 9.9e-05 | AU302: 0.3 | AV302: 0.39 | AY302: 41.9 | AZ302: 55.5 | BC302: 7.6e-05 | BD302: 9.9e-05 | BG302: 0.000185 | BH302: 0.000386
U304: h = | V304: =AZ310 -> 0 | W304: mm | AJ304: FALSE | AK304: FALSE | AQ304: =IF($AT$298=1,BC304,IF($AT$298=2,BG304,0)) -> 0.000196 | AR304: =IF($AT$298=1,BD304,IF($AT$298=2,BH304,0)) -> 0.000262 | AU304: 0.54 | AV304: 0.7 | AY304: 50.7 | AZ304: 67.9 | BC304: 0.000196 | BD304: 0.000262 | BG304: 0.000464 | BH304: 0.001013
AJ306: FALSE | AK306: FALSE | AQ306: =IF($AT$298=1,BC306,IF($AT$298=2,BG306,0)) -> 0.000585 | AR306: =IF($AT$298=1,BD306,IF($AT$298=2,BH306,0)) -> 0.000773 | AU306: 1.03 | AV306: 1.33 | AY306: 62.6 | AZ306: 82.5 | BC306: 0.000585 | BD306: 0.000773 | BG306: 0.001358 | BH306: 0.002867
H310: =Translation!A76 -> Massenschwerpunkts-Koordinaten | Q310: X = | R310: 0 | S310: mm | U310: R = | V310: =SQRT(POWER(R310,2)+POWER(R312,2)) -> 0 | W310: mm | AN310: =V302*R310 -> 0 | AO310: =V302*R312 -> 0 | AP310: =V302*V312 -> 0 | AQ310: =IF(AJ300=TRUE,AQ300,IF(AJ302=TRUE,AQ302,IF(AJ304=TRUE,AQ304,IF(AJ306=TRUE,AQ306,IF(AK300=TRUE,AR300,IF(AK302=TRUE,AR302,IF(AK304=TRUE,AR304,IF(AK306=TRUE,AR306,0)))))))) -> 0 | AR310: =IF(AQ310=0,AS310,AQ310) -> 0 | AS310: =IF(AL300=TRUE,AS300,IF(AL302=TRUE,AS302,IF(AL304=TRUE,AS304,IF(AL306=TRUE,AS306,IF(AM300=TRUE,AT300,IF(AM302=TRUE,AT302,IF(AM304=TRUE,AT304,IF(AM306=TRUE,AT306,0)))))))) -> 0 | AU310: =IF(AJ300=TRUE,AU300,IF(AJ302=TRUE,AU302,IF(AJ304=TRUE,AU304,IF(AJ306=TRUE,AU306,IF(AK300=TRUE,AV300,IF(AK302=TRUE,AV302,IF(AK304=TRUE,AV304,IF(AK306=TRUE,AV306,0)))))))) -> 0 | AV310: =IF(AU310=0,AW310,AU310) -> 0 | AW310: =IF(AL300=TRUE,AW300,IF(AL302=TRUE,AW302,IF(AL304=TRUE,AW304,IF(AL306=TRUE,AW306,IF(AM300=TRUE,AX300,IF(AM302=TRUE,AX302,IF(AM304=TRUE,AX304,IF(AM306=TRUE,AX306,0)))))))) -> 0 | AY310: =IF(AJ300=TRUE,AY300,IF(AJ302=TRUE,AY302,IF(AJ304=TRUE,AY304,IF(AJ306=TRUE,AY306,IF(AK300=TRUE,AZ300,IF(AK302=TRUE,AZ302,IF(AK304=TRUE,AZ304,IF(AK306=TRUE,AZ306,0)))))))) -> 0 | AZ310: =IF(AY310=0,BA310,AY310) -> 0 | BA310: =IF(AL300=TRUE,BA300,IF(AL302=TRUE,BA302,IF(AL304=TRUE,BA304,IF(AL306=TRUE,BA306,IF(AM300=TRUE,BB300,IF(AM302=TRUE,BB302,IF(AM304=TRUE,BB304,IF(AM306=TRUE,BB306,0)))))))) -> 0
Q312: Y = | R312: 0 | S312: mm | U312: Z = | V312: =V304 -> 0 | W312: mm | AJ312: =IF(AJ300=TRUE,"GAP 16",IF(AJ302=TRUE,"GAP 20",IF(AJ304=TRUE,"GAP 28",IF(AJ306=TRUE,"GAP 32",IF(AK300=TRUE,"GAP 16-AS",IF(AK302=TRUE,"GAP 20-AS",IF(AK304=TRUE,"GAP 28-AS",IF(AK306=TRUE,"GAP 32-AS","")))))))) ->  | AK312: =IF(AJ312="",AL312,AJ312) ->  | AL312: =IF(AL300=TRUE,"",IF(AL302=TRUE,"",IF(AL304=TRUE,"",IF(AL306=TRUE,"",IF(AM300=TRUE,"",IF(AM302=TRUE,"",IF(AM304=TRUE,"",IF(AM306=TRUE,"","")))))))) -> 
I316: = | J316: =Translation!A77 -> Eingabefelder
D322: =Translation!A118&A341&AK334 -> Winkel-Greifer | AQ322: Eigenmassenträgheitsmoment J0 (kgm2) | AT322: 1 | AU322: Masse m (kg) | AY322: Maß h (mm) | BC322: Eigenmassenträgheitsmoment Jz (kgm2) | BG322: Eigenmassenträgheitsmoment Jy (kgm2)
U324: J = | V324: =(AR332+(POWER(V332/1000,2)*AV332)) -> 0 | W324: kgm2 | AJ324: FALSE | AK324: FALSE | AL324: FALSE | AM324: FALSE | AQ324: =IF($AT$322=1,BC324,IF($AT$322=2,BG324,0)) -> 1.2e-05 | AR324: =IF($AT$322=1,BD324,IF($AT$322=2,BH324,0)) -> 1.3e-05 | AS324: =IF($AT$322=1,BE324,IF($AT$322=2,BI324,0)) -> 0.000273 | AT324: =IF($AT$322=1,BF324,IF($AT$322=2,BJ324,0)) -> 0.000279 | AU324: 0.13 | AV324: 0.135 | AW324: 0.77 | AX324: 0.8 | AY324: 45.6 | AZ324: 44.9 | BA324: 86.2 | BB324: 84.5 | BC324: 1.2e-05 | BD324: 1.3e-05 | BE324: 0.000273 | BF324: 0.000279 | BG324: 7.5e-05 | BH324: 7.6e-05 | BI324: 0.001447 | BJ324: 0.001711
U326: m = | V326: =AV332 -> 0 | W326: kg | AJ326: FALSE | AK326: FALSE | AL326: FALSE | AM326: FALSE | AQ326: =IF($AT$322=1,BC326,IF($AT$322=2,BG326,0)) -> 3.8e-05 | AR326: =IF($AT$322=1,BD326,IF($AT$322=2,BH326,0)) -> 3.9e-05 | AS326: =IF($AT$322=1,BE326,IF($AT$322=2,BI326,0)) -> 0.000733 | AT326: =IF($AT$322=1,BF326,IF($AT$322=2,BJ326,0)) -> 0.000749 | AU326: 0.24 | AV326: 0.25 | AW326: 1.35 | AX326: 1.42 | AY326: 55.6 | AZ326: 55 | BA326: 106.9 | BB326: 106.1 | BC326: 3.8e-05 | BD326: 3.9e-05 | BE326: 0.000733 | BF326: 0.000749 | BG326: 0.000227 | BH326: 0.000231 | BI326: 0.004588 | BJ326: 0.004716
U328: h = | V328: =AZ332 -> 0 | W328: mm | AJ328: FALSE | AK328: FALSE | AQ328: =IF($AT$322=1,BC328,IF($AT$322=2,BG328,0)) -> 9.8e-05 | AR328: =IF($AT$322=1,BD328,IF($AT$322=2,BH328,0)) -> 0.0001 | AU328: 0.41 | AV328: 0.43 | AY328: 70.3 | AZ328: 68.8 | BC328: 9.8e-05 | BD328: 0.0001 | BG328: 0.000601 | BH328: 0.000623
H332: =Translation!A76 -> Massenschwerpunkts-Koordinaten | Q332: X = | R332: 0 | S332: mm | U332: R = | V332: =SQRT(POWER(R332,2)+POWER(R334,2)) -> 0 | W332: mm | AN332: =V326*R332 -> 0 | AO332: =V326*R334 -> 0 | AP332: =V326*V334 -> 0 | AQ332: =IF(AJ324=TRUE,AQ324,IF(AJ326=TRUE,AQ326,IF(AJ328=TRUE,AQ328,IF(AK324=TRUE,AR324,IF(AK326=TRUE,AR326,IF(AK328=TRUE,AR328,0)))))) -> 0 | AR332: =IF(AQ332=0,AS332,AQ332) -> 0 | AS332: =IF(AL324=TRUE,AS324,IF(AL326=TRUE,AS326,IF(AL328=TRUE,AS328,IF(AM324=TRUE,AT324,IF(AM326=TRUE,AT326,IF(AM328=TRUE,AT328,0)))))) -> 0 | AU332: =IF(AJ324=TRUE,AU324,IF(AJ326=TRUE,AU326,IF(AJ328=TRUE,AU328,IF(AK324=TRUE,AV324,IF(AK326=TRUE,AV326,IF(AK328=TRUE,AV328,0)))))) -> 0 | AV332: =IF(AU332=0,AW332,AU332) -> 0 | AW332: =IF(AL324=TRUE,AW324,IF(AL326=TRUE,AW326,IF(AL328=TRUE,AW328,IF(AM324=TRUE,AX324,IF(AM326=TRUE,AX326,IF(AM328=TRUE,AX328,0)))))) -> 0 | AY332: =IF(AJ324=TRUE,AY324,IF(AJ326=TRUE,AY326,IF(AJ328=TRUE,AY328,IF(AK324=TRUE,AZ324,IF(AK326=TRUE,AZ326,IF(AK328=TRUE,AZ328,0)))))) -> 0 | AZ332: =IF(AY332=0,BA332,AY332) -> 0 | BA332: =IF(AL324=TRUE,BA324,IF(AL326=TRUE,BA326,IF(AL328=TRUE,BA328,IF(AM324=TRUE,BB324,IF(AM326=TRUE,BB326,IF(AM328=TRUE,BB328,0)))))) -> 0
Q334: Y = | R334: 0 | S334: mm | U334: Z = | V334: =V328 -> 0 | W334: mm | AJ334: =IF(AJ324=TRUE,"PRG 26",IF(AJ326=TRUE,"PRG 34",IF(AJ328=TRUE,"PRG 42",IF(AK324=TRUE,"PRG 26-AS",IF(AK326=TRUE,"PRG 34-AS",IF(AK328=TRUE,"PRG 42-AS","")))))) ->  | AK334: =IF(AJ334="",AL334,AJ334) ->  | AL334: =IF(AL324=TRUE,"PRG 52",IF(AL326=TRUE,"PRG 64",IF(AL328=TRUE,"",IF(AM324=TRUE,"PRG 52-AS",IF(AM326=TRUE,"PRG 64-AS",IF(AM328=TRUE,"","")))))) -> 
I338: = | J338: =Translation!A77 -> Eingabefelder
A341: =" " -> 
D344: =Translation!A118&A341&AK358 -> Winkel-Greifer | AQ344: Eigenmassenträgheitsmoment J0 (kgm2) | AT344: 1 | AU344: Masse m (kg) | AY344: Maß h (mm) | BC344: Eigenmassenträgheitsmoment Jz (kgm2) | BG344: Eigenmassenträgheitsmoment Jy (kgm2)
U346: J = | V346: =(AR356+(POWER(V356/1000,2)*AV356)) -> 0 | W346: kgm2 | AJ346: FALSE | AK346: FALSE | AQ346: =IF($AT$344=1,BC346,IF($AT$344=2,BG346,0)) -> 4.2e-05 | AR346: =IF($AT$344=1,BD346,IF($AT$344=2,BH346,0)) -> 5.3e-05 | AU346: 0.13 | AV346: 0.17 | AY346: 23.9 | AZ346: 35 | BC346: 4.2e-05 | BD346: 5.3e-05 | BG346: 4.7e-05 | BH346: 8.1e-05
U348: m = | V348: =AV356 -> 0 | W348: kg | AJ348: FALSE | AK348: FALSE | AQ348: =IF($AT$344=1,BC348,IF($AT$344=2,BG348,0)) -> 0.00011 | AR348: =IF($AT$344=1,BD348,IF($AT$344=2,BH348,0)) -> 0.000152 | AU348: 0.24 | AV348: 0.33 | AY348: 27.7 | AZ348: 40.2 | BC348: 0.00011 | BD348: 0.000152 | BG348: 0.000124 | BH348: 0.000224
U350: h = | V350: =AZ356 -> 0 | W350: mm | AJ350: FALSE | AK350: FALSE | AQ350: =IF($AT$344=1,BC350,IF($AT$344=2,BG350,0)) -> 0.000255 | AR350: =IF($AT$344=1,BD350,IF($AT$344=2,BH350,0)) -> 0.00032 | AU350: 0.39 | AV350: 0.49 | AY350: 32.1 | AZ350: 44.3 | BC350: 0.000255 | BD350: 0.00032 | BG350: 0.000291 | BH350: 0.000457
AJ352: FALSE | AK352: FALSE | AQ352: =IF($AT$344=1,BC352,IF($AT$344=2,BG352,0)) -> 0.000767 | AR352: =IF($AT$344=1,BD352,IF($AT$344=2,BH352,0)) -> 0.000958 | AU352: 0.76 | AV352: 0.95 | AY352: 40.3 | AZ352: 55.5 | BC352: 0.000767 | BD352: 0.000958 | BG352: 0.000876 | BH352: 0.001416
R354: 0
H356: =Translation!A76 -> Massenschwerpunkts-Koordinaten | Q356: X = | R356: 0 | S356: mm | U356: R = | V356: =SQRT(POWER(R356,2)+POWER(R358,2)) -> 0 | W356: mm | AN356: =V348*R356 -> 0 | AO356: =V348*R358 -> 0 | AP356: =V348*V358 -> 0 | AQ356: =IF(AJ346=TRUE,AQ346,IF(AJ348=TRUE,AQ348,IF(AJ350=TRUE,AQ350,IF(AJ352=TRUE,AQ352,IF(AK346=TRUE,AR346,IF(AK348=TRUE,AR348,IF(AK350=TRUE,AR350,IF(AK352=TRUE,AR352,0)))))))) -> 0 | AR356: =IF(AQ356=0,AS356,AQ356) -> 0 | AS356: =IF(AL346=TRUE,AS346,IF(AL348=TRUE,AS348,IF(AL350=TRUE,AS350,IF(AL352=TRUE,AS352,IF(AM346=TRUE,AT346,IF(AM348=TRUE,AT348,IF(AM350=TRUE,AT350,IF(AM352=TRUE,AT352,0)))))))) -> 0 | AU356: =IF(AJ346=TRUE,AU346,IF(AJ348=TRUE,AU348,IF(AJ350=TRUE,AU350,IF(AJ352=TRUE,AU352,IF(AK346=TRUE,AV346,IF(AK348=TRUE,AV348,IF(AK350=TRUE,AV350,IF(AK352=TRUE,AV352,0)))))))) -> 0 | AV356: =IF(AU356=0,AW356,AU356) -> 0 | AW356: =IF(AL346=TRUE,AW346,IF(AL348=TRUE,AW348,IF(AL350=TRUE,AW350,IF(AL352=TRUE,AW352,IF(AM346=TRUE,AX346,IF(AM348=TRUE,AX348,IF(AM350=TRUE,AX350,IF(AM352=TRUE,AX352,0)))))))) -> 0 | AY356: =IF(AJ346=TRUE,AY346,IF(AJ348=TRUE,AY348,IF(AJ350=TRUE,AY350,IF(AJ352=TRUE,AY352,IF(AK346=TRUE,AZ346,IF(AK348=TRUE,AZ348,IF(AK350=TRUE,AZ350,IF(AK352=TRUE,AZ352,0)))))))) -> 0 | AZ356: =IF(AY356=0,BA356,AY356) -> 0 | BA356: =IF(AL346=TRUE,BA346,IF(AL348=TRUE,BA348,IF(AL350=TRUE,BA350,IF(AL352=TRUE,BA352,IF(AM346=TRUE,BB346,IF(AM348=TRUE,BB348,IF(AM350=TRUE,BB350,IF(AM352=TRUE,BB352,0)))))))) -> 0
Q358: Y = | R358: 0 | S358: mm | U358: Z = | V358: =V350 -> 0 | W358: mm | AJ358: =IF(AJ346=TRUE,"PWG-plus 50",IF(AJ348=TRUE,"PWG-plus 64",IF(AJ350=TRUE,"PWG-plus 80",IF(AJ352=TRUE,"PWG-plus 100",IF(AK346=TRUE,"PWG-plus 50-AS",IF(AK348=TRUE,"PWG-plus 64-AS",IF(AK350=TRUE,"PWG-plus 80-AS",IF(AK352=TRUE,"PWG-plus 100-AS","")))))))) ->  | AK358: =IF(AJ358="",AL358,AJ358) ->  | AL358: =IF(AL346=TRUE,"",IF(AL348=TRUE,"",IF(AL350=TRUE,"",IF(AL352=TRUE,"",IF(AM346=TRUE,"",IF(AM348=TRUE,"",IF(AM350=TRUE,"",IF(AM352=TRUE,"","")))))))) -> 
I362: = | J362: =Translation!A77 -> Eingabefelder
D368: =Translation!A128 -> Zubehör
K370: =Translation!A129 -> Zubehörvarianten
K372: =Translation!A299 -> Anbausatz Energieschlauch AS-DRL 20/25-ES
K373: =Translation!A131 -> und
K374: =Translation!A298 -> Anbausatz Winkeladapter AS-DRL 20/25-WA
K376: =Translation!A130 -> müssen bei der Berechnung des Massenträgheitsmomentes nicht berücksichtigt werden. Sie können auf der "DRL-Berechnungsseite" angewählt werden !

Sheet Grafik

Sheet Info-Anbau
A2: =Translation!A14 -> Toolbox-Pick&Place - MODULARE MONTAGEAUTOMATION
A3: =Translation!A38 -> Berechnung PickPlace-Unit PPU-P
D10: =Translation!A27 -> Beispiel 1 | L10: =Translation!A28 -> Beispiel 2
D40: =Translation!A302 -> Für die Berechnung der Pick&Place-Unit muss der Schwerpunkt der bewegten Masse ermittelt werden.

Sheet Massenschwerpunkt
A2: =Translation!A14 -> Toolbox-Pick&Place - MODULARE MONTAGEAUTOMATION
A3: =Translation!A312 -> Berechnung Massenschwerpunkt
D10: =Translation!A313 -> Gesamtmassenschwerpunkt aus Einzelkörperberechnung | AC10: =Translation!A63 -> Körper-
AC12: =Translation!A64 -> auswahl
D13: =Translation!A54 -> Bezeichnung | I13: m (kg) | J13: X (mm) | K13: Y (mm) | L13: Z (mm) | M13: m x Z | N13: m x X | O13: m x Y | P13: =Translation!A55 -> Bezeichnung 1 | R13: =Translation!A56 -> Bezeichnung 2 | T13: =Translation!A57 -> Bezeichnung 3 | V13: =Translation!A58 -> Bezeichnung 4 | Y13: =Translation!A59 -> löschen
D14: =IF(D35="","",D35) ->  | H14: =IF(H35="","",H35) ->  | M14: =M35 -> 0 | N14: 0 | O14: 0 | P14: =IF(P35="","",P35) -> 
M15: 0 | N15: 0 | O15: 0
M16: 0 | N16: 0 | O16: 0
M17: 0 | N17: 0 | O17: 0
M18: 0 | N18: 0 | O18: 0
M19: 0 | N19: 0 | O19: 0
M20: 0 | N20: 0 | O20: 0
M21: 0 | N21: 0 | O21: 0
M22: 0 | N22: 0 | O22: 0
M23: 0 | N23: 0 | O23: 0
M24: 0 | N24: 0 | O24: 0
M25: 0 | N25: 0 | O25: 0
M26: 0 | N26: 0 | O26: 0
M27: 0 | N27: 0 | O27: 0
M28: 0 | N28: 0 | O28: 0
D30: =Translation!A61 -> Gesamtmasse | H30: m ges = | I30: =SUM(I14:I28) -> 0 | K30: kg | M30: =SUM(M14:M28) -> 0 | N30: =SUM(N14:N28) -> 0 | O30: =SUM(O14:O28) -> 0 | Q30: =Translation!A62 -> Koordinaten des Gesamtmassenschwerpunkts | U30: Xs = | V30: =IF(OR(I30=0,I30<0),0,N30/I30) -> 0 | W30: mm
U31: Ys = | V31: =IF(OR(I30=0,I30<0),0,O30/I30) -> 0 | W31: mm
U32: Zs = | V32: =IF(OR(I30=0,I30<0),0,M30/I30) -> 0 | W32: mm
D54: =Translation!A315 -> Direkte Eingabe der Masse
H56: =Translation!A75 -> Masse des Körpers | Q56: m = | R56: 0 | S56: kg | U56: m = | V56: =R56 -> 0 | W56: kg | AN56: =V56*(-1) -> 0
R62: 0
H64: =Translation!A76 -> Massenschwerpunkts-Koordinaten | Q64: X = | R64: 0 | S64: mm | AN64: =V56*R64 -> 0 | AO64: =V56*R66 -> 0 | AP64: =V56*V66 -> 0
Q66: Y = | R66: 0 | S66: mm | U66: Z = | V66: 0 | W66: mm | AN66: =AN56*R64 -> 0 | AO66: =AN56*R66 -> 0 | AP66: =AN56*V66 -> 0
I70: = | J70: =Translation!A77 -> Eingabefelder
D76: =Translation!A83 -> Quader | R76: =Translation!A84 -> Dichte
H78: =Translation!A85 -> Länge | I78: L = | J78: 0 | K78: mm | R78: 7.85 | S78: kg/dm3 | U78: m = | V78: =((J78*J80*J82)/1000000)*AP78 -> 0 | W78: kg | AN78: =V78*(-1) -> 0 | AO78: FALSE | AP78: =IF(AO78=TRUE,7.85,IF(AO80=TRUE,2.7,IF(AO82=TRUE,R82,0))) -> 0
H80: =Translation!A86 -> Breite | I80: B = | J80: 0 | K80: mm | R80: 2.7 | S80: kg/dm3 | AO80: FALSE
H82: =Translation!A87 -> Höhe | I82: H = | J82: 0 | K82: mm | R82: 0 | S82: kg/dm3 | AO82: FALSE
H86: =Translation!A76 -> Massenschwerpunkts-Koordinaten | Q86: X = | R86: 0 | S86: mm | AN86: =V78*R86 -> 0 | AO86: =V78*R88 -> 0 | AP86: =V78*V88 -> 0
Q88: Y = | R88: 0 | S88: mm | U88: Z = | V88: 0 | W88: mm | AN88: =AN78*R86 -> 0 | AO88: =AN78*R88 -> 0 | AP88: =AN78*V88 -> 0
I92: = | J92: =Translation!A77 -> Eingabefelder
D98: =Translation!A92 -> Scheibe | R98: =Translation!A93 -> Dichte
H100: =Translation!A94 -> Durch- | I100: D = | J100: 0 | K100: mm | R100: 7.85 | S100: kg/dm3 | U100: m = | V100: =(POWER(J100/100,2)/4)*3.1416*(J104/100)*AP100 -> 0 | W100: kg | AN100: =V100*(-1) -> 0 | AO100: FALSE | AP100: =IF(AO100=TRUE,7.85,IF(AO102=TRUE,2.7,IF(AO104=TRUE,R104,0))) -> 0
H102: =Translation!A95 -> messer | R102: 2.7 | S102: kg/dm3 | AO102: FALSE
H104: =Translation!A96 -> Dicke | I104: H = | J104: 0 | K104: mm | R104: 0 | S104: kg/dm3 | AO104: FALSE
H108: =Translation!A76 -> Massenschwerpunkts-Koordinaten | Q108: X = | R108: 0 | S108: mm | AN108: =V100*R108 -> 0 | AO108: =V100*R110 -> 0 | AP108: =V100*V110 -> 0
Q110: Y = | R110: 0 | S110: mm | U110: Z = | V110: 0 | W110: mm | AN110: =AN100*R108 -> 0 | AO110: =AN100*R110 -> 0 | AP110: =AN100*V110 -> 0
I114: = | J114: =Translation!A77 -> Eingabefelder
D120: =Translation!A316 -> Welle längs | R120: =Translation!A99 -> Dichte
H122: =Translation!A100 -> Durch- | I122: Da = | J122: 0 | K122: mm | R122: 7.85 | S122: kg/dm3 | U122: m = | V122: =(POWER(AJ122/100,2)-POWER(AJ124/100,2))*(3.1416*(J126/100)/4)*AP122 -> 0 | W122: kg | AJ122: =IF(OR(J122="",J124=""),0,J122) -> 0 | AN122: =V122*(-1) -> 0 | AO122: FALSE | AP122: =IF(AO122=TRUE,7.85,IF(AO124=TRUE,2.7,IF(AO126=TRUE,R126,0))) -> 0
H124: =Translation!A101 -> messer | I124: Di = | J124: 0 | K124: mm | R124: 2.7 | S124: kg/dm3 | AJ124: =IF(OR(J124="",J122=""),0,J124) -> 0 | AO124: FALSE
H126: =Translation!A102 -> Länge | I126: L = | J126: 0 | K126: mm | R126: 0 | S126: kg/dm3 | AO126: FALSE
H130: =Translation!A76 -> Massenschwerpunkts-Koordinaten | Q130: X = | R130: 0 | S130: mm | AN130: =V122*R130 -> 0 | AO130: =V122*R132 -> 0 | AP130: =V122*V132 -> 0
Q132: Y = | R132: 0 | S132: mm | U132: Z = | V132: 0 | W132: mm | AN132: =AN122*R130 -> 0 | AO132: =AN122*R132 -> 0 | AP132: =AN122*V132 -> 0
I136: = | J136: =Translation!A77 -> Eingabefelder
D142: =Translation!A317 -> Welle quer | R142: =Translation!A105 -> Dichte
H144: =Translation!A106 -> Durch- | I144: Da = | J144: 0 | K144: mm | R144: 7.85 | S144: kg/dm3 | U144: m = | V144: =(POWER(AJ144/100,2)-POWER(AJ146/100,2))*(3.1416*(J148/100)/4)*AP144 -> 0 | W144: kg | AJ144: =IF(OR(J144="",J146=""),0,J144) -> 0 | AN144: =V144*(-1) -> 0 | AO144: FALSE | AP144: =IF(AO144=TRUE,7.85,IF(AO146=TRUE,2.7,IF(AO148=TRUE,R148,0))) -> 0
H146: =Translation!A107 -> messer | I146: Di = | J146: 0 | K146: mm | R146: 2.7 | S146: kg/dm3 | AJ146: =IF(OR(J146="",J144=""),0,J146) -> 0 | AO146: FALSE
H148: =Translation!A108 -> Länge | I148: L = | J148: 0 | K148: mm | R148: 0 | S148: kg/dm3 | AO148: FALSE
H152: =Translation!A76 -> Massenschwerpunkts-Koordinaten | Q152: X = | R152: 0 | S152: mm | AN152: =V144*R152 -> 0 | AO152: =V144*R154 -> 0 | AP152: =V144*V154 -> 0
Q154: Y = | R154: 0 | S154: mm | U154: Z = | V154: 0 | W154: mm | AN154: =AN144*R152 -> 0 | AO154: =AN144*R154 -> 0 | AP154: =AN144*V154 -> 0
I158: = | J158: =Translation!A77 -> Eingabefelder
D186: =Translation!A115 -> Greifmodule
D188: =Translation!A116 -> Parallel-Greifer | H188: =A341&Translation!A116 -> Parallel-Greifer | L188: =A341&Translation!A116 -> Parallel-Greifer | R188: =A342&Translation!A117 -> 3-Backen-Greifer | V188: =A341&A341&A341&Translation!A118 -> Winkel-Greifer | AC188: =Translation!A119 -> Winkel-Parallel-Greifer
D189: PGN-plus | G189: MPG / MPG-plus | L189: GMP | Q189: MPZ / PZN-plus | U189: GAP | Y189: PRG | AD189: PWG-plus
D206: =Translation!A116&A341&AJ218 -> Parallel-Greifer | AU206: Masse m (kg) | AY206: Maß h (mm)
U208: m = | V208: =AU216 -> 0 | W208: kg | AJ208: FALSE | AK208: FALSE | AU208: 0.08 | AV208: 0.1 | AY208: 9.5 | AZ208: 21.7
U210: h = | V210: =AY216 -> 0 | W210: mm | AJ210: FALSE | AK210: FALSE | AU210: 0.17 | AV210: 0.21 | AY210: 19.1 | AZ210: 29.2
AJ212: FALSE | AK212: FALSE | AU212: 0.28 | AV212: 0.37 | AY212: 23.5 | AZ212: 34.6
H216: =Translation!A76 -> Massenschwerpunkts-Koordinaten | Q216: X = | R216: 0 | S216: mm | U216: h = | V216: =V210 -> 0 | W216: mm | AN216: =V208*R216 -> 0 | AO216: =V208*R218 -> 0 | AP216: =V208*V218 -> 0 | AU216: =IF(AJ208=TRUE,AU208,IF(AJ210=TRUE,AU210,IF(AJ212=TRUE,AU212,IF(AK208=TRUE,AV208,IF(AJ218=TRUE,AV210,IF(AK212=TRUE,AV212,0)))))) -> 0 | AY216: =IF(AJ208=TRUE,AY208,IF(AJ210=TRUE,AY210,IF(AJ212=TRUE,AY212,IF(AK208=TRUE,AZ208,IF(AK210=TRUE,AZ210,IF(AK212=TRUE,AZ212,0)))))) -> 0
Q218: Y = | R218: 0 | S218: mm | U218: Z = | V218: 0 | W218: mm | AJ218: =IF(AJ208=TRUE,"PGN-plus 40",IF(AJ210=TRUE,"PGN-plus 50",IF(AJ212=TRUE,"PGN-plus 64",IF(AK208=TRUE,"PGN-plus 40-AS/IS",IF(AK210=TRUE,"PGN-plus 50-AS/IS",IF(AK212=TRUE,"PGN-plus 64-AS/IS","")))))) -> 
I222: = | J222: =Translation!A77 -> Eingabefelder
D228: =Translation!A116&A341&AK240 -> Parallel-Greifer | AU228: Masse m (kg) | AY228: Maß h (mm)
U230: m = | V230: =AV238 -> 0 | W230: kg | AJ230: FALSE | AK230: FALSE | AL230: FALSE | AM230: FALSE | AU230: 0.04 | AV230: 0.05 | AW230: 0.18 | AX230: 0.24 | AY230: 14.9 | AZ230: 20.9 | BA230: 24.4 | BB230: 39.7
U232: h = | V232: =AZ238 -> 0 | W232: mm | AJ232: FALSE | AK232: FALSE | AL232: FALSE | AM232: FALSE | AU232: 0.06 | AV232: 0.07 | AW232: 0.35 | AX232: 0.4 | AY232: 16.6 | AZ232: 24.6 | BA232: 29.3 | BB232: 34.5
AJ234: FALSE | AK234: FALSE | AL234: FALSE | AM234: FALSE | AU234: 0.1 | AV234: 0.13 | AW234: 0.6 | AX234: 0.7 | AY234: 20.9 | AZ234: 29.1 | BA234: 34.3 | BB234: 44.3
H238: =Translation!A76 -> Massenschwerpunkts-Koordinaten | Q238: X = | R238: 0 | S238: mm | U238: h = | V238: =V232 -> 0 | W238: mm | AN238: =V230*R238 -> 0 | AO238: =V230*R240 -> 0 | AP238: =V230*V240 -> 0 | AU238: =IF(AJ230=TRUE,AU230,IF(AJ232=TRUE,AU232,IF(AJ234=TRUE,AU234,IF(AK230=TRUE,AV230,IF(AK232=TRUE,AV232,IF(AK234=TRUE,AV234,0)))))) -> 0 | AV238: =IF(AU238=0,AW238,AU238) -> 0 | AW238: =IF(AL230=TRUE,AW230,IF(AL232=TRUE,AW232,IF(AL234=TRUE,AW234,IF(AM230=TRUE,AX230,IF(AM232=TRUE,AX232,IF(AM234=TRUE,AX234,0)))))) -> 0 | AY238: =IF(AJ230=TRUE,AY230,IF(AJ232=TRUE,AY232,IF(AJ234=TRUE,AY234,IF(AK230=TRUE,AZ230,IF(AK232=TRUE,AZ232,IF(AK234=TRUE,AZ234,0)))))) -> 0 | AZ238: =IF(AY238=0,BA238,AY238) -> 0 | BA238: =IF(AL230=TRUE,BA230,IF(AL232=TRUE,BA232,IF(AL234=TRUE,BA234,IF(AM230=TRUE,BB230,IF(AM232=TRUE,BB232,IF(AM234=TRUE,BB234,0)))))) -> 0
Q240: Y = | R240: 0 | S240: mm | U240: Z = | V240: 0 | W240: mm | AJ240: =IF(AJ230=TRUE,"MPG 20",IF(AJ232=TRUE,"MPG-plus 25",IF(AJ234=TRUE,"MPG-plus 32",IF(AK230=TRUE,"MPG 20-AS/IS",IF(AK232=TRUE,"MPG-plus 25-AS/IS",IF(AK234=TRUE,"MPG-plus 32-AS/IS","")))))) ->  | AK240: =IF(AJ240="",AL240,AJ240) ->  | AL240: =IF(AL230=TRUE,"MPG-plus 40",IF(AL232=TRUE,"MPG 50",IF(AL234=TRUE,"MPG 64",IF(AM230=TRUE,"MPG-plus 40-AS/IS",IF(AM232=TRUE,"MPG 50-AS/IS",IF(AM234=TRUE,"MPG 64-AS/IS","")))))) -> 
I244: = | J244: =Translation!A77 -> Eingabefelder
D250: =Translation!A116&A341&AK264 -> Parallel-Greifer | AU250: Masse m (kg) | AY250: Maß h (mm)
U252: m = | V252: =AV262 -> 0 | W252: kg | AJ252: FALSE | AK252: FALSE | AL252: FALSE | AM252: FALSE | AU252: 0.14 | AV252: 0.2 | AW252: 0.34 | AX252: 0.62 | AY252: 28.5 | AZ252: 32.7 | BA252: 39.5 | BB252: 48.8
U254: h = | V254: =AZ262 -> 0 | W254: mm | AJ254: FALSE | AK254: FALSE | AL254: FALSE | AM254: FALSE | AU254: 0.16 | AV254: 0.24 | AW254: 0.4 | AX254: 0.68 | AY254: 33.9 | AZ254: 38.5 | BA254: 46.5 | BB254: 55.7
AJ256: FALSE | AK256: FALSE | AL256: FALSE | AM256: FALSE | AU256: 0.16 | AV256: 0.26 | AW256: 0.42 | AX256: 0.78 | AY256: 39.5 | AZ256: 43 | BA256: 53.1 | BB256: 68.7
AJ258: FALSE | AK258: FALSE | AL258: FALSE | AM258: FALSE | AU258: 0.18 | AV258: 0.28 | AW258: 0.48 | AX258: 0.86 | AY258: 44.9 | AZ258: 48.7 | BA258: 60.1 | BB258: 75.5
H262: =Translation!A76 -> Massenschwerpunkts-Koordinaten | Q262: X = | R262: 0 | S262: mm | U262: h = | V262: =V254 -> 0 | W262: mm | AN262: =V252*R262 -> 0 | AO262: =V252*R264 -> 0 | AP262: =V252*V264 -> 0 | AU262: =IF(AJ252=TRUE,AU252,IF(AJ254=TRUE,AU254,IF(AJ256=TRUE,AU256,IF(AJ258=TRUE,AU258,IF(AK252=TRUE,AV252,IF(AK254=TRUE,AV254,IF(AK256=TRUE,AV256,IF(AK258=TRUE,AV258,0)))))))) -> 0 | AV262: =IF(AU262=0,AW262,AU262) -> 0 | AW262: =IF(AL252=TRUE,AW252,IF(AL254=TRUE,AW254,IF(AL256=TRUE,AW256,IF(AL258=TRUE,AW258,IF(AM252=TRUE,AX252,IF(AM254=TRUE,AX254,IF(AM256=TRUE,AX256,IF(AM258=TRUE,AX258,0)))))))) -> 0 | AY262: =IF(AJ252=TRUE,AY252,IF(AJ254=TRUE,AY254,IF(AJ256=TRUE,AY256,IF(AJ258=TRUE,AY258,IF(AK252=TRUE,AZ252,IF(AK254=TRUE,AZ254,IF(AK256=TRUE,AZ256,IF(AK258=TRUE,AZ258,0)))))))) -> 0 | AZ262: =IF(AY262=0,BA262,AY262) -> 0 | BA262: =IF(AL252=TRUE,BA252,IF(AL254=TRUE,BA254,IF(AL256=TRUE,BA256,IF(AL258=TRUE,BA258,IF(AM252=TRUE,BB252,IF(AM254=TRUE,BB254,IF(AM256=TRUE,BB256,IF(AM258=TRUE,BB258,0)))))))) -> 0
Q264: Y = | R264: 0 | S264: mm | U264: Z = | V264: 0 | W264: mm | AJ264: =IF(AJ252=TRUE,"GMP 12",IF(AJ254=TRUE,"GMP 12-D",IF(AJ256=TRUE,"GMP 12-S/K",IF(AJ258=TRUE,"GMP 12-X/Z",IF(AK252=TRUE,"GMP 16",IF(AK254=TRUE,"GMP 16-D",IF(AK256=TRUE,"GMP 16-S/K",IF(AK258=TRUE,"GMP 16-X/Z","")))))))) ->  | AK264: =IF(AJ264="",AL264,AJ264) ->  | AL264: =IF(AL252=TRUE,"GMP 20",IF(AL254=TRUE,"GMP 20-D",IF(AL256=TRUE,"GMP 20-S/K",IF(AL258=TRUE,"GMP 20-X/Z",IF(AM252=TRUE,"GMP 28",IF(AM254=TRUE,"GMP 28-D",IF(AM256=TRUE,"GMP 28-S/K",IF(AM258=TRUE,"GMP 28-X/Z","")))))))) -> 
I268: = | J268: =Translation!A77 -> Eingabefelder
D274: =Translation!A117&A341&AK288 -> 3-Backen-Greifer | AU274: Masse m (kg) | AY274: Maß h (mm)
U276: m = | V276: =AV286 -> 0 | W276: kg | AJ276: FALSE | AK276: FALSE | AL276: FALSE | AM276: FALSE | AU276: 0.08 | AV276: 0.09 | AW276: 0.13 | AX276: 0.15 | AY276: 18.8 | AZ276: 26.5 | BA276: 15.8 | BB276: 21.1
U278: h = | V278: =AZ286 -> 0 | W278: mm | AJ278: FALSE | AK278: FALSE | AL278: FALSE | AM278: FALSE | AU278: 0.14 | AV278: 0.19 | AW278: 0.27 | AX278: 0.32 | AY278: 22.4 | AZ278: 33.7 | BA278: 19.9 | BB278: 26.5
AJ280: FALSE | AK280: FALSE | AU280: 0.22 | AV280: 0.28 | AY280: 25.7 | AZ280: 34.1
H286: =Translation!A76 -> Massenschwerpunkts-Koordinaten | Q286: X = | R286: 0 | S286: mm | U286: h = | V286: =V278 -> 0 | W286: mm | AN286: =V276*R286 -> 0 | AO286: =V276*R288 -> 0 | AP286: =V276*V288 -> 0 | AU286: =IF(AJ276=TRUE,AU276,IF(AJ278=TRUE,AU278,IF(AJ280=TRUE,AU280,IF(AJ282=TRUE,AU282,IF(AK276=TRUE,AV276,IF(AK278=TRUE,AV278,IF(AK280=TRUE,AV280,IF(AK282=TRUE,AV282,0)))))))) -> 0 | AV286: =IF(AU286=0,AW286,AU286) -> 0 | AW286: =IF(AL276=TRUE,AW276,IF(AL278=TRUE,AW278,IF(AL280=TRUE,AW280,IF(AL282=TRUE,AW282,IF(AM276=TRUE,AX276,IF(AM278=TRUE,AX278,IF(AM280=TRUE,AX280,IF(AM282=TRUE,AX282,0)))))))) -> 0 | AY286: =IF(AJ276=TRUE,AY276,IF(AJ278=TRUE,AY278,IF(AJ280=TRUE,AY280,IF(AJ282=TRUE,AY282,IF(AK276=TRUE,AZ276,IF(AK278=TRUE,AZ278,IF(AK280=TRUE,AZ280,IF(AK282=TRUE,AZ282,0)))))))) -> 0 | AZ286: =IF(AY286=0,BA286,AY286) -> 0 | BA286: =IF(AL276=TRUE,BA276,IF(AL278=TRUE,BA278,IF(AL280=TRUE,BA280,IF(AL282=TRUE,BA282,IF(AM276=TRUE,BB276,IF(AM278=TRUE,BB278,IF(AM280=TRUE,BB280,IF(AM282=TRUE,BB282,0)))))))) -> 0
Q288: Y = | R288: 0 | S288: mm | U288: Z = | V288: 0 | W288: mm | AJ288: =IF(AJ276=TRUE,"MPZ 30",IF(AJ278=TRUE,"MPZ 38",IF(AJ280=TRUE,"MPZ 45",IF(AJ282=TRUE,"",IF(AK276=TRUE,"MPZ 30-AS/IS",IF(AK278=TRUE,"MPZ 38-AS/IS",IF(AK280=TRUE,"MPZ 45-AS/IS",IF(AK282=TRUE,"","")))))))) ->  | AK288: =IF(AJ288="",AL288,AJ288) ->  | AL288: =IF(AL276=TRUE,"PZN-plus 40",IF(AL278=TRUE,"PZN-plus 50",IF(AL280=TRUE,"",IF(AL282=TRUE,"",IF(AM276=TRUE,"PZN-plus 40-AS/IS",IF(AM278=TRUE,"PZN-plus 50-AS/IS",IF(AM280=TRUE,"",IF(AM282=TRUE,"","")))))))) -> 
I292: = | J292: =Translation!A77 -> Eingabefelder
D298: =Translation!A119&A341&AK312 -> Winkel-Parallel-Greifer | AU298: Masse m (kg) | AY298: Maß h (mm)
U300: m = | V300: =AV310 -> 0 | W300: kg | AJ300: FALSE | AK300: FALSE | AU300: 0.16 | AV300: 0.22 | AY300: 35.3 | AZ300: 47.4
U302: h = | V302: =AZ310 -> 0 | W302: mm | AJ302: FALSE | AK302: FALSE | AU302: 0.3 | AV302: 0.39 | AY302: 41.9 | AZ302: 55.5
AJ304: FALSE | AK304: FALSE | AU304: 0.54 | AV304: 0.7 | AY304: 50.7 | AZ304: 67.9
AJ306: FALSE | AK306: FALSE | AU306: 1.03 | AV306: 1.33 | AY306: 62.6 | AZ306: 82.5
H310: =Translation!A76 -> Massenschwerpunkts-Koordinaten | Q310: X = | R310: 0 | S310: mm | U310: h = | V310: =V302 -> 0 | W310: mm | AN310: =V300*R310 -> 0 | AO310: =V300*R312 -> 0 | AP310: =V300*V312 -> 0 | AU310: =IF(AJ300=TRUE,AU300,IF(AJ302=TRUE,AU302,IF(AJ304=TRUE,AU304,IF(AJ306=TRUE,AU306,IF(AK300=TRUE,AV300,IF(AK302=TRUE,AV302,IF(AK304=TRUE,AV304,IF(AK306=TRUE,AV306,0)))))))) -> 0 | AV310: =IF(AU310=0,AW310,AU310) -> 0 | AW310: =IF(AL300=TRUE,AW300,IF(AL302=TRUE,AW302,IF(AL304=TRUE,AW304,IF(AL306=TRUE,AW306,IF(AM300=TRUE,AX300,IF(AM302=TRUE,AX302,IF(AM304=TRUE,AX304,IF(AM306=TRUE,AX306,0)))))))) -> 0 | AY310: =IF(AJ300=TRUE,AY300,IF(AJ302=TRUE,AY302,IF(AJ304=TRUE,AY304,IF(AJ306=TRUE,AY306,IF(AK300=TRUE,AZ300,IF(AK302=TRUE,AZ302,IF(AK304=TRUE,AZ304,IF(AK306=TRUE,AZ306,0)))))))) -> 0 | AZ310: =IF(AY310=0,BA310,AY310) -> 0 | BA310: =IF(AL300=TRUE,BA300,IF(AL302=TRUE,BA302,IF(AL304=TRUE,BA304,IF(AL306=TRUE,BA306,IF(AM300=TRUE,BB300,IF(AM302=TRUE,BB302,IF(AM304=TRUE,BB304,IF(AM306=TRUE,BB306,0)))))))) -> 0
Q312: Y = | R312: 0 | S312: mm | U312: Z = | V312: 0 | W312: mm | AJ312: =IF(AJ300=TRUE,"GAP 16",IF(AJ302=TRUE,"GAP 20",IF(AJ304=TRUE,"GAP 28",IF(AJ306=TRUE,"GAP 32",IF(AK300=TRUE,"GAP 16-AS",IF(AK302=TRUE,"GAP 20-AS",IF(AK304=TRUE,"GAP 28-AS",IF(AK306=TRUE,"GAP 32-AS","")))))))) ->  | AK312: =IF(AJ312="",AL312,AJ312) ->  | AL312: =IF(AL300=TRUE,"",IF(AL302=TRUE,"",IF(AL304=TRUE,"",IF(AL306=TRUE,"",IF(AM300=TRUE,"",IF(AM302=TRUE,"",IF(AM304=TRUE,"",IF(AM306=TRUE,"","")))))))) -> 
I316: = | J316: =Translation!A77 -> Eingabefelder
D322: =Translation!A118&A341&AK334 -> Winkel-Greifer | AU322: Masse m (kg) | AY322: Maß h (mm)
U324: m = | V324: =AV332 -> 0 | W324: kg | AJ324: FALSE | AK324: FALSE | AL324: FALSE | AM324: FALSE | AU324: 0.13 | AV324: 0.135 | AW324: 0.77 | AX324: 0.8 | AY324: 45.6 | AZ324: 44.9 | BA324: 86.2 | BB324: 84.5
U326: h = | V326: =AZ332 -> 0 | W326: mm | AJ326: FALSE | AK326: FALSE | AL326: FALSE | AM326: FALSE | AU326: 0.24 | AV326: 0.25 | AW326: 1.35 | AX326: 1.42 | AY326: 55.6 | AZ326: 55 | BA326: 106.9 | BB326: 106.1
AJ328: FALSE | AK328: FALSE | AU328: 0.41 | AV328: 0.43 | AY328: 70.3 | AZ328: 68.8
H332: =Translation!A76 -> Massenschwerpunkts-Koordinaten | Q332: X = | R332: 0 | S332: mm | U332: h = | V332: =V326 -> 0 | W332: mm | AN332: =V324*R332 -> 0 | AO332: =V324*R334 -> 0 | AP332: =V324*V334 -> 0 | AU332: =IF(AJ324=TRUE,AU324,IF(AJ326=TRUE,AU326,IF(AJ328=TRUE,AU328,IF(AK324=TRUE,AV324,IF(AK326=TRUE,AV326,IF(AK328=TRUE,AV328,0)))))) -> 0 | AV332: =IF(AU332=0,AW332,AU332) -> 0 | AW332: =IF(AL324=TRUE,AW324,IF(AL326=TRUE,AW326,IF(AL328=TRUE,AW328,IF(AM324=TRUE,AX324,IF(AM326=TRUE,AX326,IF(AM328=TRUE,AX328,0)))))) -> 0 | AY332: =IF(AJ324=TRUE,AY324,IF(AJ326=TRUE,AY326,IF(AJ328=TRUE,AY328,IF(AK324=TRUE,AZ324,IF(AK326=TRUE,AZ326,IF(AK328=TRUE,AZ328,0)))))) -> 0 | AZ332: =IF(AY332=0,BA332,AY332) -> 0 | BA332: =IF(AL324=TRUE,BA324,IF(AL326=TRUE,BA326,IF(AL328=TRUE,BA328,IF(AM324=TRUE,BB324,IF(AM326=TRUE,BB326,IF(AM328=TRUE,BB328,0)))))) -> 0
Q334: Y = | R334: 0 | S334: mm | U334: Z = | V334: 0 | W334: mm | AJ334: =IF(AJ324=TRUE,"PRG 26",IF(AJ326=TRUE,"PRG 34",IF(AJ328=TRUE,"PRG 42",IF(AK324=TRUE,"PRG 26-AS",IF(AK326=TRUE,"PRG 34-AS",IF(AK328=TRUE,"PRG 42-AS","")))))) ->  | AK334: =IF(AJ334="",AL334,AJ334) ->  | AL334: =IF(AL324=TRUE,"PRG 52",IF(AL326=TRUE,"PRG 64",IF(AL328=TRUE,"",IF(AM324=TRUE,"PRG 52-AS",IF(AM326=TRUE,"PRG 64-AS",IF(AM328=TRUE,"","")))))) -> 
I338: = | J338: =Translation!A77 -> Eingabefelder
A341: =" " -> 
D344: =Translation!A118&A341&AK358 -> Winkel-Greifer PWG-plus 100-AS | AU344: Masse m (kg) | AY344: Maß h (mm)
U346: m = | V346: =AV356 -> 0.95 | W346: kg | AJ346: FALSE | AK346: FALSE | AU346: 0.13 | AV346: 0.17 | AY346: 23.9 | AZ346: 35
U348: h = | V348: =AZ356 -> 55.5 | W348: mm | AJ348: FALSE | AK348: FALSE | AU348: 0.24 | AV348: 0.33 | AY348: 27.7 | AZ348: 40.2
AJ350: FALSE | AK350: FALSE | AU350: 0.39 | AV350: 0.49 | AY350: 32.1 | AZ350: 44.3
AJ352: FALSE | AK352: TRUE | AU352: 0.76 | AV352: 0.95 | AY352: 40.3 | AZ352: 55.5
H356: =Translation!A76 -> Massenschwerpunkts-Koordinaten | Q356: X = | R356: 0 | S356: mm | U356: h = | V356: =V348 -> 55.5 | W356: mm | AN356: =V346*R356 -> 0 | AO356: =V346*R358 -> 0 | AP356: =V346*V358 -> 0 | AU356: =IF(AJ346=TRUE,AU346,IF(AJ348=TRUE,AU348,IF(AJ350=TRUE,AU350,IF(AJ352=TRUE,AU352,IF(AK346=TRUE,AV346,IF(AK348=TRUE,AV348,IF(AK350=TRUE,AV350,IF(AK352=TRUE,AV352,0)))))))) -> 0.95 | AV356: =IF(AU356=0,AW356,AU356) -> 0.95 | AW356: =IF(AL346=TRUE,AW346,IF(AL348=TRUE,AW348,IF(AL350=TRUE,AW350,IF(AL352=TRUE,AW352,IF(AM346=TRUE,AX346,IF(AM348=TRUE,AX348,IF(AM350=TRUE,AX350,IF(AM352=TRUE,AX352,0)))))))) -> 0 | AY356: =IF(AJ346=TRUE,AY346,IF(AJ348=TRUE,AY348,IF(AJ350=TRUE,AY350,IF(AJ352=TRUE,AY352,IF(AK346=TRUE,AZ346,IF(AK348=TRUE,AZ348,IF(AK350=TRUE,AZ350,IF(AK352=TRUE,AZ352,0)))))))) -> 55.5 | AZ356: =IF(AY356=0,BA356,AY356) -> 55.5 | BA356: =IF(AL346=TRUE,BA346,IF(AL348=TRUE,BA348,IF(AL350=TRUE,BA350,IF(AL352=TRUE,BA352,IF(AM346=TRUE,BB346,IF(AM348=TRUE,BB348,IF(AM350=TRUE,BB350,IF(AM352=TRUE,BB352,0)))))))) -> 0
Q358: Y = | R358: 0 | S358: mm | U358: Z = | V358: 0 | W358: mm | AJ358: =IF(AJ346=TRUE,"PWG-plus 50",IF(AJ348=TRUE,"PWG-plus 64",IF(AJ350=TRUE,"PWG-plus 80",IF(AJ352=TRUE,"PWG-plus 100",IF(AK346=TRUE,"PWG-plus 50-AS",IF(AK348=TRUE,"PWG-plus 64-AS",IF(AK350=TRUE,"PWG-plus 80-AS",IF(AK352=TRUE,"PWG-plus 100-AS","")))))))) -> PWG-plus 100-AS | AK358: =IF(AJ358="",AL358,AJ358) -> PWG-plus 100-AS | AL358: =IF(AL346=TRUE,"",IF(AL348=TRUE,"",IF(AL350=TRUE,"",IF(AL352=TRUE,"",IF(AM346=TRUE,"",IF(AM348=TRUE,"",IF(AM350=TRUE,"",IF(AM352=TRUE,"","")))))))) -> 
I362: = | J362: =Translation!A77 -> Eingabefelder

Sheet Eingabe1
A2: =Translation!A14 -> Toolbox-Pick&Place - MODULARE MONTAGEAUTOMATION
A3: =Translation!A279 -> Berechnung Drehlader
C6: =Translation!A280 -> Drehlader DRL 20-…/DRL 25-… | M6: =Translation!A171 -> Ergebnisse aus der Berechnung des Massenträgheitsmoments
M8: J ges ( kgm2 ) = | N8: =Massenträgheitsmoment!I30 -> 0 | P8: =Translation!A172 -> Gesamtmassenträgheitsmoment
M9: m ges ( kg ) = | N9: =Massenträgheitsmoment!I31 -> 0 | P9: =Translation!A173 -> Gesamtmasse
M10: Xs ( mm ) = | N10: =Massenträgheitsmoment!V30 -> 0 | P10: =Translation!A174 -> Gesamtmassenschwerpunkts-Koordinaten
M11: Ys ( mm ) = | N11: =Massenträgheitsmoment!V31 -> 0
M12: Zs ( mm ) = | N12: =Massenträgheitsmoment!V32 -> 0
M16: =Translation!A175 -> Geben Sie Ihre Werte mit -Enter- ein !
M19: 180 | O19: =Translation!A286 -> Schwenkwinkel ( 90° - 180° )
K21: p (bar) | M21: 6 | O21: p = Betriebsdruck ( 3 bis 8 )
M22: Nein | O22: =Translation!A298 -> Anbausatz Winkeladapter AS-DRL 20/25-WA
M24: Nein | O24: =Translation!A299 -> Anbausatz Energieschlauch AS-DRL 20/25-ES
M28: =Translation!A185 -> Module
C29: =Translation!A289 -> Taktzeiten sind reine Fahrzeiten für die kombinierte Hub-Dreh-Bewegung unter optimalen Bedingungen * . Verweilzeiten oder SPS-Reaktionszeiten sind nicht enthalten und bei der Ermittlung von Gesamt-Zykluszeiten zu berücksichtigen ! | M29: =Translation!A186 -> Berechneter Modul-Typ | Q29: ="DRL 20-"&M19 -> DRL 20-180 | S29: ="DRL 25-"&M19 -> DRL 25-180
M30: =Translation!A294 -> Hubkraft (N) | Q30: 245 ( 6 bar ) | S30: 321 ( 5 bar )
M31: =Translation!A288 -> Antriebsmoment ( Nm ) | Q31: 2,2 ( 6 bar ) | S31: 3,7 ( 5 bar )
M32: =Translation!A246 -> Schwenkwinkelbereich ( ° ) | Q32: =IF(OR(Q36>1,N9>Q56),C54,"90 - 180") -> 90 - 180 | S32: =IF(OR(S36>1,N9>S56),C54,"90 - 180") -> 90 - 180
Q34: =IF(Q36>1,C57,IF(Q32=C54,C55," ")) ->  | S34: =IF(S36>1,C57,IF(S32=C54,C55," ")) -> 
M36: =Translation!A196 -> Auslastung Massenträgheitsmoment | Q36: =(N8+Q59+Q63)/Q53 -> 0 | S36: =(N8+S59+S63)/S53 -> 0
M37: =Translation!A290 -> Gesamtmasse (kg) | Q37: =N9+Q61+Q65 -> 0 | S37: =N9+S61+S65 -> 0
B38: * | C38: =Translation!A291 -> Betrieb mit Schlauchlängen zwischen Ventilbox und DRL : 0,5 m ( DRL 20 ), 0,7 m ( DRL 25 ), Betriebsdruck: 6 bar ( DRL 20 ), 5 bar ( DRL 25 ) | M38: =Translation!A281 -> Min. Taktzeit (s) | Q38: =Ber_DRL20!B47 -> 0.48 | S38: =Ber_DRL25!B47 -> 0.76
M39: =Translation!A200 -> Max. Zyklenzahl / min. ** | Q39: =Ber_DRL20!G51 -> 63 | S39: =Ber_DRL25!G51 -> 63
L42: ** | M42: =Translation!A292 -> Zyklus: Vertikal auf - Schwenken - Vertikal ab - Vertikal auf - Schwenken - Vertikal ab
C53: Max. zul. J | K53: =Translation!A296 -> Ja | M53: =IF(M24=K53," ",K53) -> Ja | O53: =IF(M22=K53," ",K53) -> Ja | Q53: 0.008 | S53: 0.03
C54: =Translation!A189 -> UNZULÄSSIG | K54: =Translation!A297 -> Nein | M54: =Translation!A297 -> Nein | O54: =Translation!A297 -> Nein
C55: =Translation!A190 -> Masse zu hoch
C56: Max. zul. Zusatzgewicht | Q56: 1 | S56: 3
C57: =Translation!A295 -> Jges zu hoch
C58: Massenträgheitsmoment Winkeladapter | Q58: 0.000295 | S58: 0.000427
Q59: =IF(M22=K53,Q58,0) -> 0 | S59: =IF(M22=K53,S58,0) -> 0
C60: Masse Winkeladapter | Q60: 0.19 | S60: 0.35
Q61: =IF(M22=K53,Q60,0) -> 0 | S61: =IF(M22=K53,S60,0) -> 0
C62: Massenträgheitsmoment Energieführung ohne Schlauch | Q62: 0.00035 | S62: 0.000878
Q63: =IF(M24=K53,Q62,0) -> 0 | S63: =IF(M24=K53,S62,0) -> 0
C64: Masse Energieführung ohne Schlauch | Q64: 0.085 | S64: 0.14
Q65: =IF(M24=K53,Q64,0) -> 0 | S65: =IF(M24=K53,S64,0) -> 0

Sheet Eingabe2
A2: =Translation!A14 -> Toolbox-Pick&Place - MODULARE MONTAGEAUTOMATION
A3: =Translation!A326 -> Berechnung Pick & Place-Unit
C6: =Translation!A328 -> Pick&Place-Unit PPU-P-10 / PPU-P-30 | L6: =Translation!A330 -> Ergebnisse aus der Berechnung des Massenschwerpunktes
L8: m ges ( kg ) = | N8: =Massenschwerpunkt!I30 -> 0 | P8: =Translation!A173 -> Gesamtmasse
L9: Xs ( mm ) = | N9: =Massenschwerpunkt!V30 -> 0 | P9: =Translation!A174 -> Gesamtmassenschwerpunkts-Koordinaten
L10: Ys ( mm ) = | N10: =Massenschwerpunkt!V31 -> 0
L11: Zs ( mm ) = | N11: =Massenschwerpunkt!V32 -> 0
L16: =Translation!A335 -> Berechnung
L21: =Translation!A186 -> Berechneter Modul-Typ
L22: m ges max ( kg ) | Q22: 1 | S22: 3
L23: Xs max ( mm ) | P23: 25 | Q23: ± 25,0 | R23: 30 | S23: ± 30,0
L24: Ys max ( mm ) | P24: 25 | Q24: ± 25,0 | R24: 30 | S24: ± 30,0
L25: Zs max ( mm ) | P25: 50 | Q25: ± 50,0 | R25: 80 | S25: ± 80,0
L26: Horizontalhub (mm) | Q26: =IF(D42=1,C47,IF(D43=1,C45,"121 - 145")) -> 121 - 145 | S26: =IF(F42=1,C47,IF(F43=1,C45,"174 - 210")) -> 174 - 210
L27: Vertikalhub (mm) | Q27: =IF(OR(D42=1,D43=1),C46,"30 - 45") -> 30 - 45 | S27: =IF(OR(F42=1,F43=1),C46,"40 - 60") -> 40 - 60
L29: =Translation!A290 -> Gesamtmasse (kg) | Q29: =N8 -> 0 | S29: =N8 -> 0
L30: Koordinate Xs (mm) | Q30: =N9 -> 0 | S30: =N9 -> 0
C31: =Translation!A329 -> Taktzeiten sind reine Fahrzeiten für die kombinierte Vertikal-Horizontal-Bewegung unter optimalen Bedingungen *. Verweilzeiten oder SPS-Reaktionszeiten sind nicht enthalten und bei der Ermittlung von Gesamt-Zykluszeiten zu berücksichtigen ! | L31: Koordinate Ys (mm) | Q31: =N10 -> 0 | S31: =N10 -> 0
L32: Koordinate Zs (mm) | Q32: =N11 -> 0 | S32: =N11 -> 0
L33: =Translation!A281 -> Min. Taktzeit (s) | Q33: =Ber_PPU!B15/1000 -> 0.61 | S33: =Ber_PPU!B25/1000 -> 0.8
L34: =Translation!A200 -> Max. Zyklenzahl / min. ** | Q34: =Ber_PPU!G32 -> 95 | S34: =Ber_PPU!G39 -> 75
D42: =IF(Q29>Q22,1,0) -> 0 | F42: =IF(S29>S22,1,0) -> 0
D43: =IF(OR(ABS(Q30)>P23,ABS(Q31)>P24,ABS(Q32)>P25),1,0) -> 0 | F43: =IF(OR(ABS(S30)>R23,ABS(S31)>R24,ABS(S32)>R25),1,0) -> 0
C45: Koordinate !
C46: =Translation!A189 -> UNZULÄSSIG
C47: =Translation!A190 -> Masse zu hoch
C52: =Translation!A331 -> * Betrieb mit SCHUNK Ventilbox VCU 25 ( PPU-P-10 )
C53: =Translation!A332 -> Schlauchlängen zwischen Ventilbox und P&P-Unit : 0,5 m ( PPU-P-10 ), 0,7 m ( PPU-P-30 )
C54: =Translation!A333 -> Betriebsdruck: 5 bar
C55: =Translation!A334 -> ** Zyklus: Vertikal auf - Horizontal vor - Vertikal ab - Vertikal auf - Horizontal zurück - Vertikal ab

Sheet Ber_DRL20
B1: Werte aus Eingabeblatt
B3: =Eingabe1!N9 -> 0 | C3: Gesamtmasse m ges (kg)
B5: =Eingabe1!M19 -> 180 | C5: Schwenkwinkel (°)
B7: =Eingabe1!N8 -> 0 | C7: Gesamtmassenträgheitsmoment Jges( kgm2 )
B9: Berechnung der Zykluszeit ( Gesamtzyklus ohne Verweilzeit in der Endlage ) in Abhängigkeit der Gesamtmasse m ges
B11: =B13+(B15-B13)*((B$5-90)/90) -> 480 | C11: t = t 90° + (t180° - t90°)*(Winkel-90/90) | G11: m max | H11: m min | I11: t max | J11: t min | K11: Steigung m | L11: bei Schwenkwinkel | N11: Berechnung der Zeit über Geradengleichung
B13: =(B$3/K13)+J13 -> 430 | C13: t90° = ( mges / Steigung m90° ) + a90° | G13: 1 | H13: 0 | I13: 660 | J13: 430 | K13: =(G13-H13)/(I13-J13) -> 0.004347826087 | L13: 90° | N13: Werte für t min und t max aus Zeitmessungen vom 23.10.2013
B15: =(B$3/K15)+J15 -> 480 | C15: t180° = ( mges / Steigung m180° ) + a180° | G15: 1 | H15: 0 | I15: 800 | J15: 480 | K15: =(G15-H15)/(I15-J15) -> 0.003125 | L15: 180°
C17: a = tmin
B19: Berechnung der Zykluszeit ( Gesamtzyklus ohne Verweilzeit in der Endlage ) in Abhängigkeit des Gesamtmassenträgheitsmomentes J ges
B21: =B23+(B25-B23)*((B$5-90)/90) -> 480 | C21: t1 = t 90° + (t180° - t90°)*(Winkel-90/90) | G21: J max | H21: J min | I21: t max | J21: t min | K21: Steigung m | L21: bei Schwenkwinkel | N21: Berechnung der Zeit über Geradengleichung, Kurven des J-t Diagramms in 3 Teilbereiche aufgeteilt !!
B23: =((B$7-H23)/K23)+J23 -> 430 | C23: t90° = (( Jges - Jmin) / Steigung m90° ) + a90° | G23: 0.00084 | H23: 0 | I23: 450 | J23: 430 | K23: =(G23-H23)/(I23-J23) -> 4.2e-05 | L23: 90° | N23: Werte für t min und t max aus Zeitmessungen vom 23.10.2013
B25: =((B$7-H25)/K25)+J25 -> 480 | C25: t180° = ( (Jges - Jmin) / Steigung m180° ) + a180° | G25: 0.00084 | H25: 0 | I25: 490 | J25: 480 | K25: =(G25-H25)/(I25-J25) -> 8.4e-05 | L25: 180° | N25: Achtung: | O25: t1 nur gültig für Teilbereich 1 ( J = 0 bis 0,00084 )
C27: a = tmin | O27: t2 nur gültig für Teilbereich 2 ( J = 0,00084 bis 0,00353 )
B29: =B31+(B33-B31)*((B$5-90)/90) -> 436.9144981 | C29: t2 = t 90° + (t180° - t90°)*(Winkel-90/90) | G29: J max | H29: J min | I29: t max | J29: t min | K29: Steigung m | L29: bei Schwenkwinkel | O29: t3 nur gültig für Teilbereich 3 ( J = 0,00353 bis 0,008 )
B31: =((B$7-H31)/K31)+J31 -> 409.4052045 | C31: t90° = (( Jges - Jmin) / Steigung m90° ) + a90° | G31: 0.00353 | H31: 0.00084 | I31: 580 | J31: 450 | K31: =(G31-H31)/(I31-J31) -> 2.069230769e-05 | L31: 90°
B33: =((B$7-H33)/K33)+J33 -> 436.9144981 | C33: t180° = ( (Jges - Jmin) / Steigung m180° ) + a180° | G33: 0.00353 | H33: 0.00084 | I33: 660 | J33: 490 | K33: =(G33-H33)/(I33-J33) -> 1.582352941e-05 | L33: 180°
C35: a = tmin
B37: =B39+(B41-B39)*((B$5-90)/90) -> 549.4407159 | C37: t3 = t 90° + (t180° - t90°)*(Winkel-90/90) | G37: J max | H37: J min | I37: t max | J37: t min | K37: Steigung m | L37: bei Schwenkwinkel
B39: =((B$7-H39)/K39)+J39 -> 516.8232662 | C39: t90° = (( Jges - Jmin) / Steigung m90° ) + a90° | G39: 0.008 | H39: 0.00353 | I39: 660 | J39: 580 | K39: =(G39-H39)/(I39-J39) -> 5.5875e-05 | L39: 90°
B41: =((B$7-H41)/K41)+J41 -> 549.4407159 | C41: t180° = ( (Jges - Jmin) / Steigung m180° ) + a180° | G41: 0.008 | H41: 0.00353 | I41: 800 | J41: 660 | K41: =(G41-H41)/(I41-J41) -> 3.192857143e-05 | L41: 180°
C43: a = tmin
B45: =IF(B7<=0.00084,B21,IF(B7<=0.00353,B29,B37)) -> 480 | C45: gültige Zykluszeit aus Teilbereichen !
O46: Betriebsdruck: 6 bar
B47: =MAX(B11,B45)/1000 -> 0.48 | C47: Min. zulässige Zykluszeit in Abhängigkeit der Gesamtmasse und des Gesamtmassenträgheitsmomentes in Sekunden | O47: Ansteuerung VCU 50
B49: Berechnung der max. Zyklenzahl
B51: Kriterium: Zykluszeit | D51: max. Zykl. / min : | F51: =60/B47 -> 125 | G51: =MIN(F51,F53) -> 63 | H51: Min. Zyklenzahl / min.
B53: Kriterium: Stoßdämpfer | D53: max. Zykl. / min : | F53: 63

Sheet Ber_DRL25
B1: Werte aus Eingabeblatt
B3: =Eingabe1!N9 -> 0 | C3: Gesamtmasse m ges (kg)
B5: =Eingabe1!M19 -> 180 | C5: Schwenkwinkel (°)
B7: =Eingabe1!N8 -> 0 | C7: Gesamtmassenträgheitsmoment Jges( kgm2 )
B9: Berechnung der Zykluszeit ( Gesamtzyklus ohne Verweilzeit in der Endlage ) in Abhängigkeit der Gesamtmasse m ges
B11: =B13+(B15-B13)*((B$5-90)/90) -> 760 | C11: t = t 90° + (t180° - t90°)*(Winkel-90/90) | G11: m max | H11: m min | I11: t max | J11: t min | K11: Steigung m | L11: bei Schwenkwinkel | N11: Berechnung der Zeit über Geradengleichung
B13: =(B$3/K13)+J13 -> 680 | C13: t90° = ( mges / Steigung m90° ) + a90° | G13: 3 | H13: 0 | I13: 900 | J13: 680 | K13: =(G13-H13)/(I13-J13) -> 0.01363636364 | L13: 90° | N13: Werte für t min und t max aus Zeitmessungen vom 02.08.2012
B15: =(B$3/K15)+J15 -> 760 | C15: t180° = ( mges / Steigung m180° ) + a180° | G15: 3 | H15: 0 | I15: 1150 | J15: 760 | K15: =(G15-H15)/(I15-J15) -> 0.007692307692 | L15: 180°
C17: a = tmin
B19: Berechnung der Zykluszeit ( Gesamtzyklus ohne Verweilzeit in der Endlage ) in Abhängigkeit des Gesamtmassenträgheitsmomentes J ges
B21: =B23+(B25-B23)*((B$5-90)/90) -> 760 | C21: t1 = t 90° + (t180° - t90°)*(Winkel-90/90) | G21: J max | H21: J min | I21: t max | J21: t min | K21: Steigung m | L21: bei Schwenkwinkel | N21: Berechnung der Zeit über Geradengleichung, Kurven des J-t Diagramms in 3 Teilbereiche aufgeteilt !!
B23: =((B$7-H23)/K23)+J23 -> 680 | C23: t90° = (( Jges - Jmin) / Steigung m90° ) + a90° | G23: 0.0056 | H23: 0 | I23: 740 | J23: 680 | K23: =(G23-H23)/(I23-J23) -> 9.333333333e-05 | L23: 90° | N23: Werte für t min und t max aus Zeitmessungen vom 23.02.2012
B25: =((B$7-H25)/K25)+J25 -> 760 | C25: t180° = ( (Jges - Jmin) / Steigung m180° ) + a180° | G25: 0.0056 | H25: 0 | I25: 800 | J25: 760 | K25: =(G25-H25)/(I25-J25) -> 0.00014 | L25: 180° | N25: Achtung: | O25: t1 nur gültig für Teilbereich 1 ( J = 0 bis 0,0056 )
C27: a = tmin | O27: t2 nur gültig für Teilbereich 2 ( J = 0,0056 bis 0,0138 )
B29: =B31+(B33-B31)*((B$5-90)/90) -> 772.6829268 | C29: t2 = t 90° + (t180° - t90°)*(Winkel-90/90) | G29: J max | H29: J min | I29: t max | J29: t min | K29: Steigung m | L29: bei Schwenkwinkel | O29: t3 nur gültig für Teilbereich 3 ( J = 0,0138 bis 0,03 )
B31: =((B$7-H31)/K31)+J31 -> 719.5121951 | C31: t90° = (( Jges - Jmin) / Steigung m90° ) + a90° | G31: 0.0138 | H31: 0.0056 | I31: 770 | J31: 740 | K31: =(G31-H31)/(I31-J31) -> 0.0002733333333 | L31: 90°
B33: =((B$7-H33)/K33)+J33 -> 772.6829268 | C33: t180° = ( (Jges - Jmin) / Steigung m180° ) + a180° | G33: 0.0138 | H33: 0.0056 | I33: 840 | J33: 800 | K33: =(G33-H33)/(I33-J33) -> 0.000205 | L33: 180°
C35: a = tmin
B37: =B39+(B41-B39)*((B$5-90)/90) -> 610 | C37: t3 = t 90° + (t180° - t90°)*(Winkel-90/90) | G37: J max | H37: J min | I37: t max | J37: t min | K37: Steigung m | L37: bei Schwenkwinkel | U37: Grafik mit alten Werten
B39: =((B$7-H39)/K39)+J39 -> 710.3703704 | C39: t90° = (( Jges - Jmin) / Steigung m90° ) + a90° | G39: 0.03 | H39: 0.0138 | I39: 840 | J39: 770 | K39: =(G39-H39)/(I39-J39) -> 0.0002314285714 | L39: 90°
B41: =((B$7-H41)/K41)+J41 -> 610 | C41: t180° = ( (Jges - Jmin) / Steigung m180° ) + a180° | G41: 0.03 | H41: 0.0138 | I41: 1110 | J41: 840 | K41: =(G41-H41)/(I41-J41) -> 6e-05 | L41: 180°
C43: a = tmin
B45: =IF(B7<=0.0056,B21,IF(B7<=0.0138,B29,B37)) -> 760 | C45: gültige Zykluszeit aus Teilbereichen !
B47: =MAX(B11,B45)/1000 -> 0.76 | C47: Min. zulässige Zykluszeit in Abhängigkeit der Gesamtmasse und des Gesamtmassenträgheitsmomentes in Sekunden
B49: Berechnung der max. Zyklenzahl | N49: Gesamtdiagramm | R49: Masse / Zeit
N50: Zeiten korrigiert am 08.06.16 | R50: Zeiten korrigiert am 08.06.16
B51: Kriterium: Zykluszeit | D51: max. Zykl. / min : | F51: =60/B47 -> 78.94736842 | G51: =MIN(F51,F53) -> 63 | H51: Min. Zyklenzahl / min. | P51: 180° | Q51: 90° | T51: 180° | U51: 90°
O52: J (kg/m2) | P52: t (s) | Q52: t (s) | S52: M (kg) | T52: t (ms) | U52: t (ms)
B53: Kriterium: Stoßdämpfer | D53: max. Zykl. / min : | F53: 63
O54: 0 | P54: 0.76 | Q54: 0.68 | S54: 0 | T54: 0.76 | U54: 0.68
O55: 0.0056 | P55: 0.8 | Q55: 0.74 | S55: 3 | T55: 1.15 | U55: 0.9
O56: 0.0105 | P56: 0.82 | Q56: 0.76
O57: 0.0138 | P57: 0.84 | Q57: 0.77
O58: 0.0167 | P58: 0.87 | Q58: 0.78
O59: 0.0212 | P59: 0.94 | Q59: 0.79
O60: 0.0239 | P60: 0.99 | Q60: 0.8
O61: 0.0301 | P61: 1.11 | Q61: 0.84

Sheet Ber_PPU
B1: Werte aus Eingabeblatt
B3: =Eingabe2!N8 -> 0 | C3: Gesamtmasse m ges (kg)
B9: Berechnung der Zykluszeit ( Gesamtzyklus ohne Verweilzeit in der Endlage ) in Abhängigkeit der Gesamtmasse m ges
B11: PPU-P-10
G13: m max | H13: m min | I13: t max | J13: t min | K13: Steigung m | M13: Berechnung der Zeit über Geradengleichung
B15: =K15*(B3-H15)+J15 -> 610 | C15: t =Steigung m *( mges - m min ) + b | G15: 1 | H15: 0 | I15: 640 | J15: 610 | K15: =(I15-J15)/(G15-H15) -> 30 | M15: Werte für t min und t max aus Zeitmessungen vom 06.07.2011
C17: b = tmin
B19: PPU-P-30
B21: =K21*(B3-H21)+J21 -> 775 | C21: t =Steigung m *( mges - m min ) + b | G21: 3 | H21: 0.5 | I21: 925 | J21: 800 | K21: =(I21-J21)/(G21-H21) -> 50
C23: b = tmin
B25: =IF(B3<0.5,800,B21) -> 800
B28: Berechnung der max. Zyklenzahl
B30: PPU-P-10
B32: Kriterium: Zykluszeit | D32: max. Zykl. / min : | F32: =60/B15*1000 -> 98.36065574 | G32: =MIN(F32,F34) -> 95 | H32: Min. Zyklenzahl / min.
B34: Kriterium: Stoßdämpfer | D34: max. Zykl. / min : | F34: 95
B37: PPU-P-30
B39: Kriterium: Zykluszeit | D39: max. Zykl. / min : | F39: =60/B25*1000 -> 75 | G39: =MIN(F39,F41) -> 75 | H39: Min. Zyklenzahl / min.
B41: Kriterium: Stoßdämpfer | D41: max. Zykl. / min : | F41: 75

Sheet Info-Translation
A2: =STARTSEITE!A50 -> 1 | B2: Deutsch | C2: Englisch | D2: Französisch | E2: Italienisch | F2: Spanisch
A4: =IF($A$2=1,B4,IF($A$2=2,C4,IF($A$2=3,D4,IF($A$2=4,E4,IF($A$2=5,F4))))) -> Startseite | B4: Startseite | C4: Start page | D4: Page d'accueil | E4: Pagina iniziale | F4: Página de inicio
A5: =IF($A$2=1,B5,IF($A$2=2,C5,IF($A$2=3,D5,IF($A$2=4,E5,IF($A$2=5,F5))))) -> Zum Anfang | B5: Zum Anfang | C5: To Start | D5: Haut de page | E5: Torna all'inizio | F5: Ir al principio
A6: Infos zur Toolbox-Pick&Place | B6: Infos zur Toolbox-Pick&Place | C6: Info on Toolbox Pick&Place | D6: Infos sur la Toolbox-Pick&Place | E6: Informazioni su Toolbox-Pick&Place | F6: Información sobre la caja de herramientas Pick&Place
A7: Klicken Sie hier... | B7: Klicken Sie hier... | C7: Click here... | D7: Cliquez ici ... | E7: Clicca qui... | F7: Haga clic aquí...
A8: Linearmodule | B8: Linearmodule | C8: Linear actuators | D8: Modules linéaires | E8: Moduli lineari | F8: Módulos lineales
A9: Drehlader DRL | B9: Drehlader DRL | C9: Rotary loader DRL | D9: Chargeur rotatif DRL | E9: Caricatore rotante DRL | F9: Cargador giratorio DRL
A10: Mehrachssysteme | B10: Mehrachssysteme | C10: Multi-axis systems | D10: Systèmes multiaxes | E10: Sistemi multiasse | F10: Sistemas de ejes múltiples
A11: Allgemeine Infos | B11: Allgemeine Infos | C11: General info | D11: Info`s générales | E11: Informazioni generali | F11: Información general
A12: Berechnung der Taktzeiten und Massenschwerpunkte | B12: Berechnung der Taktzeiten und Massenschwerpunkte | C12: Calculation of the cycle times and mass centers of gravity | D12: Calcul des cadences et des points de gravité de la masse | E12: Calcolo dei tempi di ciclo e dei baricentri della massa | F12: Cálculos de tiempos de ciclo y de centros de gravedad de masa
A13: Berechnung der Taktzeiten und Massenträgheitsmomente | B13: Berechnung der Taktzeiten und Massenträgheitsmomente | C13: Calculation of cycle times and moments of inertia | D13: Calcul des temps de cycle et des couples d'inertie | E13: Calcolo dei tempi ciclo e dei momenti di inerzia della massa | F13: Cálculo de los tiempos de ciclo y momentos de inercia de la masa
A14: Berechnung der Taktzeiten und Belastungen | B14: Berechnung der Taktzeiten und Belastungen | C14: Calculation of cycle times and loads | D14: Calcul des temps de cycle et des charges | E14: Calcolo dei tempi ciclo e dei carichi | F14: Cálculo de los tiempos de ciclo y cargas
A15: Informationen | B15: Informationen | C15: Information | D15: Information | E15: Informazioni | F15: Información
A16: Pick&Place-Unit PPU-P | B16: Pick&Place-Unit PPU-P | C16: Pick&Place-Unit PPU-P | D16: Pick&Place-Unit PPU-P | E16: Pick&Place-Unit PPU-P | F16: Pick&Place-Unit PPU-P
A20: Drehlader
A22: =IF($A$2=1,B22,IF($A$2=2,C22,IF($A$2=3,D22,IF($A$2=4,E22,IF($A$2=5,F22))))) -> SCHUNK bietet Ihnen Produkte und Dienstleistungen mit zukunftsgerichtetem technischen Niveau. Um Ihnen die geforderte Planungssicherheit zu garantieren, wurde diese Software entwickelt, mit der Pick&Place-Einheiten berechnet werden können. Nachfolgend ist die Funktion und Bedienung kurz beschrieben. | B22: SCHUNK bietet Ihnen Produkte und Dienstleistungen mit zukunftsgerichtetem technischen Niveau. Um Ihnen die geforderte Planungssicherheit zu garantieren, wurde diese Software entwickelt, mit der Pick&Place-Einheiten berechnet werden können. Nachfolgend ist die Funktion und Bedienung kurz beschrieben. | C22: SCHUNK offers you products and services of a future-oriented technical level. This software for calculating Pick&Place units was developed to guarantee you the required planning reliability. The functions and operation are described below. | D22: SCHUNK vous propose des produits et des prestations de service d'un niveau technique axé sur l'avenir. Ce logiciel a été développé pour vous garantir la sécurité demandée de planification. Il permet de calculer les unités Pick&Place. Voici une brève description de son fonctionnement et de son utilisation. | E22: SCHUNK offre prodotti e servizi di livello tecnico futuribile. Questo software che consente di calcolare le unità Pick&Place è stato sviluppato per garantirvi la sicurezza di progettazione richiesta. Qui di seguito ne sono descritti in maniera sintetica il funzionamento e l'uso. | F22: SCHUNK le ofrece productos y servicios con un nivel técnico orientado hacia el futuro. Para garantizarle la seguridad de planificación requerida, hemos desarrollado este software, con el que se pueden calcular unidades Pick&Place. A continuación, se describe brevemente su funcionamiento y su manejo.
A23: =IF($A$2=1,B23,IF($A$2=2,C23,IF($A$2=3,D23,IF($A$2=4,E23,IF($A$2=5,F23))))) -> Zur Berechnung von Drehladern ist - VORHER - das Massenträgheitsmoment J der zu schwenkenden Masse zu berechnen ! | B23: Zur Berechnung von Drehladern ist - VORHER - das Massenträgheitsmoment J der zu schwenkenden Masse zu berechnen ! | C23: Calculation of rotary loaders requires that you FIRST calculate the mass moment of inertia J of the mass to be rotated! | D23: Pour calculer les chargeurs rotatifs, il faut - D'ABORD - calculer le couple d'inertie J de la masse à pivoter ! | E23: Per il calcolo dei caricatori rotanti - PRIMA - deve essere calcolato il momento di inerzia di massa J della massa da far oscillare! | F23: Para calcular cargadores giratorios, hay que calcular PREVIAMENTE el momento de inercia de masa J de la masa a bascular.
A24: =IF($A$2=1,B24,IF($A$2=2,C24,IF($A$2=3,D24,IF($A$2=4,E24,IF($A$2=5,F24))))) -> Aus nachfolgend aufgezeigten Einzelkörpern, deren Massenträgheitsmomente und Schwerpunktskoordinaten mit dieser Software berechnet werden können, ist es möglich durch Zusammensetzen, Aufsummieren oder Subtrahieren das Gesamtmassenträgheitsmoment mit Schwerpunktskoordinaten eines spezifischen Schwenkaufbaus zu ermitteln. | B24: Aus nachfolgend aufgezeigten Einzelkörpern, deren Massenträgheitsmomente und Schwerpunktskoordinaten mit dieser Software berechnet werden können, ist es möglich durch Zusammensetzen, Aufsummieren oder Subtrahieren das Gesamtmassenträgheitsmoment mit Schwerpunktskoordinaten eines spezifischen Schwenkaufbaus zu ermitteln. | C24: Using the individual bodies listed below, whose mass moments of inertia and co-ordinates of centre of gravity can be calculated using this software, the total mass moment of inertia with co-ordinates of centre of gravity can be determined for a specific swivel design by combination, addition or subtraction. | D24: Il est possible, à partir des pièces individuelles dont les couples d'inertie et coordonnées du centre de gravité peuvent être calculés à l'aide de ce logiciel, de déterminer le couple d'inertie total avec les coordonnées du centre de gravité d'un ensemble pivotant spécifique par composition, addition ou soustraction. | E24: Dai singoli corpi indicati in seguito, i cui momenti di inerzia della massa e le cui coordinate del baricentro possono essere calcolati con questo software, è possibile, mediante composizione, somma e sottrazione, calcolare il momento di inerzia della massa totale con le coordinate del baricentro di una specifica struttura di rotazione. | F24: Mediante la integración, suma, o sustracción, se puede calcular a partir de los distintos cuerpos que se muestran a continuación, cuyos momentos de inercia y coordinadas del centro de masa se pueden calcular con este software, el momento de inercia de la masa total con las coordinadas del centro de masa de una construcción de giro específica.
A25: =IF($A$2=1,B25,IF($A$2=2,C25,IF($A$2=3,D25,IF($A$2=4,E25,IF($A$2=5,F25))))) -> Direkte Eingabe von J | B25: Direkte Eingabe von J | C25: Direct input of J | D25: Saisie directe de J | E25: Immissione diretta di J | F25: Introducción directa de J
A26: =IF($A$2=1,B26,IF($A$2=2,C26,IF($A$2=3,D26,IF($A$2=4,E26,IF($A$2=5,F26))))) -> Quader | B26: Quader | C26: Cuboid | D26: Parallélépipède | E26: Parallelepipedo | F26: Paralelepípedo
A27: Scheibe | B27: Scheibe | C27: Disc | D27: Disque | E27: Disco | F27: Disco
A28: Welle längs | B28: Welle längs | C28: Shaft, longitudinal | D28: Arbre longitudinal | E28: Albero longitudinale | F28: Eje longitudinal
A29: Welle quer | B29: Welle quer | C29: Shaft, transverse | D29: Arbre transversal | E29: Albero trasversale | F29: Eje transversal
A30: Grundfläche/Masse | B30: Grundfläche/Masse | C30: Base area/mass | D30: Surface / masse | E30: Superficie di base/massa | F30: Base/Masa
A31: Greifmodule | B31: Greifmodule | C31: Gripper actuators | D31: Modules de préhension | E31: Moduli di presa | F31: Módulos de agarre
A32: Zur Berechnungsmaske | B32: Zur Berechnungsmaske | C32: To calculation mask | D32: Masque de saisie | E32: Vai alla maschera di calcolo | F32: Ir a la máscara de cálculo
A33: Einzelkörper-Massenträgheitsmomente | B33: Einzelkörper-Massenträgheitsmomente | C33: Single body mass moments of inertia | D33: Couples d'inertie de pièces individuelles | E33: Momenti di inerzia della massa corpi singoli | F33: Momentos de inercia de las masas de cuerpos individuales
A34: Nach Auswahl des gewünschten Körpers und Eingabe der Körperdaten sind die Koordinaten des Massenschwerpunktes dieses Körpers zur Drehachse zu bestimmen. | B34: Nach Auswahl des gewünschten Körpers und Eingabe der Körperdaten sind die Koordinaten des Massenschwerpunktes dieses Körpers zur Drehachse zu bestimmen. | C34: After selecting the desired body and entering the data and coordinates, the mass center of gravity of the body to the rotational axis must be calculated. | D34: Après avoir choisi le corps souhaité et indiqué les données du corps, il faut déterminer les coordonnées du centre de gravité de la masse de ce corps par rapport à l'axe de rotation. | E34: Dopo la selezione del corpo desiderato e l'immissione dei dati del corpo devono essere determinate le coordinate del baricentro della massa di tale corpo rispetto all'asse di rotazione. | F34: Tras escoger el cuerpo deseado e introducir los datos del cuerpo, es necesario determinar las coordenadas del centro de gravedad de masa de este cuerpo con respecto al eje giratorio.
A35: Bei der Bestimmung der Startpunktkoordinaten ist auf die Vorzeichen zu achten. Ob die Schwenkachse horizontal oder vertikal angeordnet ist spielt hier noch keine Rolle. | B35: Bei der Bestimmung der Startpunktkoordinaten ist auf die Vorzeichen zu achten. Ob die Schwenkachse horizontal oder vertikal angeordnet ist spielt hier noch keine Rolle. | C35: When determining the start point co-ordinates, pay attention to the sign. A horizontal or vertical swivel axis is not significant at this point. | D35: Attention aux signes lors de la détermination des coordonnées du point de départ. La disposition horizontale ou verticale de l'axe de pivotement n'a pas encore d'importance à ce niveau. | E35: Per la determinazione delle coordinate del punto di avvio si deve prestare attenzione al segno iniziale. Qui non è ancora rilevante se l'asse rotante è disposto orizzontalmente o verticalmente. | F35: Al definir las coordenadas del punto inicial se debe prestar atención al signo. En este caso, no tiene ninguna importancia si el eje de giro está orientado horizontal o verticalmente.
A36: Nach vollständiger Eingabe aller Daten müssen die Werte zur Berechnung des Gesamtmassenträgheitsmoments in die Liste addiert oder subtrahiert werden. | B36: Nach vollständiger Eingabe aller Daten müssen die Werte zur Berechnung des Gesamtmassenträgheitsmoments in die Liste addiert oder subtrahiert werden. | C36: After all data have been entered in full, the values for calculating the total mass moment of inertia must be added or subtracted in the list. | D36: Après la saisie de l'ensemble des données les valeurs nécessaires au calcul du couple d'inertie de masse totale doivent être ajoutées ou soustraites de la liste. | E36: Dopo l'immissione completa di tutti i dati i valori per il calcolo del momento di inerzia della massa totale devono essere sommati o sottratti nella lista. | F36: Tras introducir todos los datos, se deben sumar o sustraer los valores en la lista para calcular el momento de inercia de la masa total.
A37: Gesamt-Massenträgheitsmoment | B37: Gesamt-Massenträgheitsmoment | C37: Total mass moment of inertia | D37: Moment d’inertie de la masse totale | E37: Momento di inerzia della massa totale | F37: Momento de inercia de la masa total
A38: Durch die Möglichkeit der Aufsummierung einzelner Körper ist es möglich das Gesamtmassenträgheitsmoment sowie die Koordinaten des Gesamtmassenschwerpunkts unterschiedlichster Schwenkaufbauten zu berechnen. Diese sind dann die Grundlage zur Berechnung eines geeigneten Drehladers. | B38: Durch die Möglichkeit der Aufsummierung einzelner Körper ist es möglich das Gesamtmassenträgheitsmoment sowie die Koordinaten des Gesamtmassenschwerpunkts unterschiedlichster Schwenkaufbauten zu berechnen. Diese sind dann die Grundlage zur Berechnung eines geeigneten Drehladers. | C38: The possibility of adding up single bodies allows calculation of the total mass moment of inertia as well as the coordinates of the total mass center of gravity of a wide range of different rotary assemblies. They are the basis for calculation of a suitable rotary loader. | D38: La possibilité d'additionner les différents corps permet de calculer le couple d'inertie de la masse totale ainsi que les coordonnées du centre de gravité de la masse totale des constructions pivotantes les plus diverses. Il s'agit ensuite de la base de calcul d'un chargeur rotatif adapté. | E38: Grazie alla possibilità di sommare i singoli corpi è possibile calcolare il momento di inerzia di massa totale nonché le coordinate del baricentro della massa totale delle più svariate strutture oscillanti. Questi costituiscono quindi il fondamento per il calcolo di un caricatore rotante idoneo. | F38: Gracias a la posibilidad de sumar distintos cuerpos, se pueden calcular el momento de inercia de la masa total y las coordenadas del centro de gravedad de la masa total de distintas estructuras basculantes. Esto es lo que sirve más adelante como base para calcular un cargador giratorio adecuado.
A39: Alle in die Liste übernommenen Einzelkörperwerte können zeilenweise gelöscht werden. | B39: Alle in die Liste übernommenen Einzelkörperwerte können zeilenweise gelöscht werden. | C39: All single body values included in the list can be deleted line by line. | D39: Toutes les valeurs de pièces individuelles reprises dans la liste peuvent être supprimées temporairement. | E39: Tutti i valori dei corpi singoli registrati nella lista possono essere cancellati una riga alla volta. | F39: Todos los cuerpos individuales aceptados en la lista se pueden borrar por líneas.
A40: Sind in die letzte Zeile der Liste bereits Einzelkörperwerte übernommen worden und Sie wollen weitere Einzelkörper berechnen und in die Liste übernehmen, erhalten Sie eine Meldung die Sie mit - JA - bestätigen. Das bisher berechnete Gesamtmassenträgheitsmoment mit Schwerpunktskoorinaten wird dann in die erste Zeile der Liste übernommen. Sie können nun weitere Einzelkörper berechnen und in die Liste übernehmen. | B40: Sind in die letzte Zeile der Liste bereits Einzelkörperwerte übernommen worden und Sie wollen weitere Einzelkörper berechnen und in die Liste übernehmen, erhalten Sie eine Meldung die Sie mit - JA - bestätigen. Das bisher berechnete Gesamtmassenträgheitsmoment mit Schwerpunktskoorinaten wird dann in die erste Zeile der Liste übernommen. Sie können nun weitere Einzelkörper berechnen und in die Liste übernehmen. | C40: If single body values have been included in the last line of the list and you want to calculate further single bodies and include these in the list, you will receive a message you must confirm with -YES-. The total mass moment of inertia and co-ordinates of centre of gravity previously calculated will then be included in the first line of the list. You can now calculate other single bodies and include these in the list. | D40: Si des valeurs de pièces individuelles sont déjà saisies dans la dernière ligne de la liste et que vous souhaitez calculer d'autres pièces individuelles et les ajouter à la liste, le logiciel génère un message que vous confirmerez par - OUI -. Le couple d'inertie de masse totale calculé avec les coordonnées du centre de gravité sera alors repris en première ligne de la liste. Vous pouvez ainsi calculer d'autres pièces individuelles et les ajouter à la liste. | E40: Se nell'ultima riga della lista sono già stati registrati valori di corpi singoli e si desiderano calcolare e registrare nella lista ulteriori corpi singoli, si riceve un messaggio da confermare con - SÌ -. Il momento di inerzia della massa totale con coordinate del baricentro, calcolato precedentemente, viene quindi registrato nella prima riga della lista. Ora è possibile calcolare e registrare nella lista ulteriori corpi singoli. | F40: Si ya se han aceptado valores de cuerpos individuales en la última línea de la lista, y se desea calcular otros cuerpos individuales y aceptarlos en la lista, aparece un mensaje que debe ser confirmado con - SÍ -. El momento de inercia de la masa total, con las coordenadas del centro de masa, ya calculado es aceptado en la primera línea de la lista. Se pueden calcular otros cuerpos individuales y aceptarlos en la lista.
A41: Über den Button - NEUBERECHNUNG - können Sie die komplette Berechnung löschen. | B41: Über den Button - NEUBERECHNUNG - können Sie die komplette Berechnung löschen. | C41: Using the button - NEW CALCULATION - you can delete the entire calculation. | D41: L'icône - NOUVEAU CALCUL - permet de supprimer l'ensemble du calcul. | E41: Mediante il pulsante - NUOVO CALCOLO - è possibile cancellare l'intero calcolo. | F41: Con el botón - NUEVO CÁLCULO - se puede borrar el cálculo completo.
A42: Nach vollständiger Berechnung des Gesamtmassenträgheitsmoments mit Schwerpunktkoordinaten Ihres zu schwenkenden Aufbaus, gelangen sie über den Button - Zur DRL-Berechnung - in die Modul-Berechnungsmaske, in der Sie bitte den gewünschten Schwenkwinkel und evtl. eine der Optionen ( beide gleichzeitig sind nicht möglich !) eingeben. | B42: Nach vollständiger Berechnung des Gesamtmassenträgheitsmoments mit Schwerpunktkoordinaten Ihres zu schwenkenden Aufbaus, gelangen sie über den Button - Zur DRL-Berechnung - in die Modul-Berechnungsmaske, in der Sie bitte den gewünschten Schwenkwinkel und evtl. eine der Optionen ( beide gleichzeitig sind nicht möglich !) eingeben. | C42: After complete calculation of the total mass moment of inertia with center of gravity coordinates of your assembly to be rotated, push the button - DRL calculation - to open the module calculation mask where you then enter the desired angle of rotation and possibly one of the options (both at the same time are not possible!). | D42: Après calcul complet du couple d'inertie de la masse totale avec les coordonnées du centre de gravité de votre construction devant pivoter, vous parvenez au bouton - pour le calcul DRL - dans le masque de calcul du module dans lequel vous indiquez l'angle souhaité de pivotement et éventuellement une des options (les deux en même temps ne sont pas possibles !). | E42: Dopo il calcolo completo del momento di inerzia di massa totale con coordinate del baricentro della vostra struttura da far oscillare, tramite il pulsante - Al calcolo del DRL - si va alla schermata di calcolo del modulo in cui vanno immessi l'angolo di oscillazione desiderato ed eventualmente una delle opzioni (entrambe contemporaneamente è impossibile!). | F42: Tras el cálculo completo del momento de inercia de la masa total con las coordenadas del centro de gravedad de la estructura a bascular, puede pulsar el botón "Ir al cálculo DRL" para pasar a la interfaz de cálculo de módulo, en la que introducirá el ángulo de giro deseado y, eventualmente, una de las opciones (no es posible seleccionar las dos al mismo tiempo).
A43: Hier wählen Sie den gewünschten Typ aus, dessen zulässiges Massenträgheitsmoment im Bereich Ihres berechnenten Wertes liegt. Durch anklicken gelangen Sie in die Modul-Berechnungsmaske in der Sie bitte Ihre Daten eingeben. | B43: Hier wählen Sie den gewünschten Typ aus, dessen zulässiges Massenträgheitsmoment im Bereich Ihres berechnenten Wertes liegt. Durch anklicken gelangen Sie in die Modul-Berechnungsmaske in der Sie bitte Ihre Daten eingeben. | C43: Here you can choose the desired type, and its admissible mass moment of inertia within the calculated value. Click on the module selection screen to enter your data. | D43: Ici, sélectionner le type de module souhaité dont le couple d'inertie de masse admissible est compris dans la plage de la valeur calculée. Un clic sur le module permet d'accéder au masque de calcul du module où il faut saisir les données. | E43: Qui potete scegliere il tipo desiderato e il suo momento d'inerzia di massa ammissibile entro il valore calcolato. Fare clic sulla schermata di selezione del modulo per inserire i vostri dati. | F43: Aqui eligen en deseado tipo que cumple corespondiente con su valor calculado. Marcando llegaran al modul de calcular y aqui introducen sus sus valores.
A44: Berechnungsgrundlagen für Drehlader | B44: Berechnungsgrundlagen für Drehlader | C44: Calculation principles for rotary loaders | D44: Principes de calcul pour le chargeur rotatif | E44: Fondamenti per il calcolo del caricatore rotante | F44: Principios básicos para calcular cargadores giratorios
A45: Anwendungsdaten: | B45: Anwendungsdaten: | C45: Application data: | D45: Données d'application : | E45: Dati di applicazione: | F45: Datos de aplicación:
A46: Kundenanforderungen | B46: Kundenanforderungen | C46: Customer requirements | D46: Exigences du client | E46: Richieste del cliente | F46: Exigencias del cliente
A47: Gesamt-Massenträgheitsmoment | B47: Gesamt-Massenträgheitsmoment | C47: Total mass moment of inertia | D47: Moment d’inertie de la masse totale | E47: Momento di inerzia della massa totale | F47: Momento de inercia de la masa total
A48: Koordinaten des Massenschwerpunkts | B48: Koordinaten des Massenschwerpunkts | C48: Co-ordinates of centre of gravity | D48: Coordonnées du centre de gravité de la masse | E48: Coordinate del baricentro della massa | F48: Coordinadas del centro de masa total
A49: Schwenkwinkel | B49: Schwenkwinkel | C49: Swivel angle | D49: Angle de pivotement | E49: Angolo di rotazione | F49: Ángulo de giro
A50: Drehachse horizontal oder vertikal | B50: Drehachse horizontal oder vertikal | C50: Axis of rotation: horizontal or vertical | D50: Axe de rotation horizontal ou vertical | E50: Asse di rotazione orizzontale o verticale | F50: Eje de rotación horizontal o vertical
A51: Drehrichtung UZ oder GUZ | B51: Drehrichtung UZ oder GUZ | C51: Direction of rotation: clockwise or anticlockwise | D51: Sens de rotation dans le sens des aiguilles d'une montre ou dans le sens contraire aux aiguilles d'une montre. | E51: Senso di rotazione OR o AOR | F51: Sentido de rotación AR o CAR
A52: Moduldaten: | B52: Moduldaten: | C52: Actuator data: | D52: Données des modules : | E52: Dati del modulo: | F52: Datos del módulo:
A53: Betriebsdruck 6/5 bar ( DRL20/DRL25 ) | B53: Betriebsdruck 6/5 bar ( DRL20/DRL25 ) | C53: Operating pressure 6/5 bar ( DRL20/DRL25 ) | D53: Pression de service 6/5 bars ( DRL20/DRL25 ) | E53: Pressione d'esercizio 6/5 bar ( DRL20/DRL25 ) | F53: Presión de trabajo 6/5 bar ( DRL20/DRL25 )
A54: Stoßdämpferauslastung pro Hub und Stunde max. 100% | B54: Stoßdämpferauslastung pro Hub und Stunde max. 100% | C54: Shock absorber utilisation per stroke and hour max. 100% | D54: Taux d'utilisation des amortisseurs par course et par heure 100% maximum | E54: Distribuzione del carico sull'ammortizzatore per ogni corsa e all'ora max. 100% | F54: Sobreutilización del amortiguador por carrera y hora máx. 100%
A55: Lagerbelastung durch Beschleunigung und Verzögerung unter Berücksichtigung aller auftretenden Kräfte und Momente | B55: Lagerbelastung durch Beschleunigung und Verzögerung unter Berücksichtigung aller auftretenden Kräfte und Momente | C55: Bearing load by acceleration and deceleration taking account of all forces and moments | D55: Charge de palier par accélération et décélération en tenant compte de toutes les forces et de tous les couples présents | E55: Carico sul cuscinetto mediante accelerazione e ritardo considerando tutti i momenti e le forze che si verificano | F55: Carga sobre el cojinete por aceleración y desaceleración considerando todas las fuerzas y momentos que actúan
A56: Wirkt eine externe Kraft F bzw. ein externes Moment M auf das Rotationsmodul, ist die Auslastung der Lagerung neu zu berechnen. | B56: Wirkt eine externe Kraft F bzw. ein externes Moment M auf das Rotationsmodul, ist die Auslastung der Lagerung neu zu berechnen. | C56: If an external force F or external moment M acts on the rotary actuator, the utilisation of the bearing arrangement must be recalculated. | D56: Si une force externe ou un couple externe agit sur le module de rotation, le taux d'utilisation du palier doit être recalculé. | E56: Se sul modulo di rotazione agiscono una forza esterna F o un momento esterno M, la distribuzione del carico sul cuscinetto deve essere ricalcolata. | F56: Si actúa una fuerza externa F o un momento externo M sobre el módulo rotatorio, se debe calcular de nuevo la sobreutilización de la disposición de los cojinetes.
A57: Setzen Sie sich bitte mit uns in Verbindung !! | B57: Setzen Sie sich bitte mit uns in Verbindung !! | C57: Please contact us !! | D57: Veuillez prendre contact avec notre service technique !! | E57: Siete pregati di contattarci !! | F57: Contacte inmediatamente con nosotros.
A58: Eine extern einwirkende Kraft kann auch eine Belastung durch Beschleunigung oder Verzögerung darstellen. Dies ist der Fall wenn das mit dieser Software zu berechnende Modul auf einer weiteren Bewegungsachse aufgebaut ist und somit einer dynamischen Belastung ausgesetzt wird. | B58: Eine extern einwirkende Kraft kann auch eine Belastung durch Beschleunigung oder Verzögerung darstellen. Dies ist der Fall wenn das mit dieser Software zu berechnende Modul auf einer weiteren Bewegungsachse aufgebaut ist und somit einer dynamischen Belastung ausgesetzt wird. | C58: An external force can also influence the greater load on acceleration or deceleration. This is particularly the case if a module has been calculated with this software, and will be attached to a further motion axis. In this case it will be exposed to a dynamic load. | D58: Une force appliquée de l'extérieur peut également représenter une charge dû à l'accélération ou à la décélération. C'est le cas, lorsque le module à calculer avec ce logiciel est installé sur un axe de déplacement supplémentaire et par conséquent exposé à une charge dynamique. | E58: Una forza esterna può anche influenzare il carico in accelerazione o decelerazione. Questo è in particolare il caso se il modulo è stato calcolato con questo software, e sarà collegato ad un unlteriore asse di movimentazione. In questo caso sarà sottoposto ad un carico dinamico. | F58: Una fuerza actuando externamente tambien puede significar una carga por aceleración o deaceleración. Eso en el caso de que su aplicación esta montado sobre otro eje de movimiento y así sometido a una carga dinamica.
A59: Sind alle Daten eingegeben, können von den ursprünglich aufgezeigten Modulen aus folgenden Gründen einige Typen entfallen sein: | B59: Sind alle Daten eingegeben, können von den ursprünglich aufgezeigten Modulen aus folgenden Gründen einige Typen entfallen sein: | C59: Once all data are entered, some of the actuators originally displayed may be omitted for the following reasons: | D59: Lorsque toutes les données sont saisies, certains parmi les types de modules présentés initialement peuvent ne plus être affichés pour les raisons suivantes : | E59: Dopo aver immesso tutti i dati, è possibile che alcuni tipi dei moduli indicati in origine siano venuti meno per i seguenti motivi: | F59: Una vez introducidos todos los datos, se pueden suprimir algunos tipos de los módulos mostrados en un principio debido a las siguientes razones:
A60: Drehwinkel < 10 Grad (nur bei RM 50) | B60: Drehwinkel < 10 Grad (nur bei RM 50) | C60: Rotation angle < 10 deg (only RM 50) | D60: Angle de rotation < 10° (uniquement sur RM 50) | E60: Angolo di rotazione < 10 gradi (solo con RM 50) | F60: Ángulo de rotación < 10 grados (sólo para RM 50)
A61: Auslastung der Stoßdämpfer pro Zyklus > 100% | B61: Auslastung der Stoßdämpfer pro Zyklus > 100% | C61: Utilisation of shock absorbers per cycle > 100% | D61: Taux d'utilisation des amortisseurs par cycle > 100% | E61: Distribuzione del carico degli ammortizzatori per ogni ciclo > 100% | F61: Sobreutilización de los amortiguadores por ciclo > 100%
A62: Massenträgheitsmoment > 100% des jeweils zulässigen Wertes | B62: Massenträgheitsmoment > 100% des jeweils zulässigen Wertes | C62: Mass moment of inertia > 100% of permissible value | D62: Couple d'inertie de masse > 100% de la valeur admissible respective | E62: Momento di inerzia della massa > 100% del valore rispettivamente ammissibile | F62: Momento de inercia de la masa > 100% del valor admisible correspondiente
A63: Gesamtmasse > zulässiger Wert | B63: Gesamtmasse > zulässiger Wert | C63: Total mass > permissible value | D63: Masse totale > valeur autorisée | E63: Massa totale > valore ammesso | F63: Masa total > Valor admisible
A64: Massenbedingte Reduzierung des Antriebsmoments > 50% bei horizontaler Drehachse | B64: Massenbedingte Reduzierung des Antriebsmoments > 50% bei horizontaler Drehachse | C64: Mass-induced reduction in drive moment > 50% for horizontal axis of rotation | D64: Réduction du couple d'entraînement due à la masse > 50% pour un axe de rotation horizontal | E64: Riduzione della coppia motrice dovuta alla massa > 50% con asse di rotazione orizzontale | F64: Reducción del momento de accionamiento debido a la masa > 50% para eje de rotación horizontal
A65: Mit allen verbliebenen Typen ist Ihr Anwendungsfall realisierbar. | B65: Mit allen verbliebenen Typen ist Ihr Anwendungsfall realisierbar. | C65: Your application can be implemented with all remaining types. | D65: Avec tous les types restants, votre cas d'application est réalisable. | E65: Il suo caso di applicazione è realizzabile con tutti i modelli rimasti. | F65: Su caso de aplicación se puede realizar con todos los modelos restantes.
A66: Berechnungsergebnisse | B66: Berechnungsergebnisse | C66: Calculation results | D66: Résultats de calcul | E66: Risultati del calcolo | F66: Resultados del cálculo
A67: Auslastung Stoßdämpfer pro Zyklus | B67: Auslastung Stoßdämpfer pro Zyklus | C67: Utilisation of shock absorber per cycle | D67: Taux d'utilisation des amortisseurs par cycle | E67: Distribuzione del carico sull'ammortizzatore per ogni ciclo | F67: Sobreutilización amortiguador por ciclo
A68: Auslastung Massenträgheitsmoment | B68: Auslastung Massenträgheitsmoment | C68: Utilisation of mass moment of inertia | D68: Taux d'utilisation du couple d'inertie de la masse | E68: Distribuzione del carico momento di inerzia della massa | F68: Sobreutilización momento de inercia de la masa
A69: Gesamtmasse | B69: Gesamtmasse | C69: Total mass | D69: Masse totale | E69: Massa totale | F69: Masa total
A70: Auslastung Antriebsmoment bei horizontaler Drehachse | B70: Auslastung Antriebsmoment bei horizontaler Drehachse | C70: Utilisation of drive moment with horizontal axis of rotation | D70: Taux d'utilisation du couple d'entraînement pour un axe de rotation horizontal | E70: Distribuzione del carico coppia motrice con asse di rotazione orizzontale | F70: Sobreutilización del momento de accionamiento para eje de rotación horizontal
A71: Minimale Taktzeit | B71: Minimale Taktzeit | C71: Minimum cycle time | D71: Cadence minimale | E71: Tempo di ciclo minimo | F71: Tiempo de ciclo mínimo
A72: Maximale Zyklenzahl pro Minute | B72: Maximale Zyklenzahl pro Minute | C72: Maximum number of cycles per minute | D72: Nombre maximal de cycles par minute | E72: Massimo numero di cicli al minuto | F72: Número de ciclos máximo por minuto
A73: Beispiel | B73: Beispiel | C73: Example | D73: Exemple | E73: Esempio | F73: Ejemplo
A74: ACHTUNG: | B74: ACHTUNG: | C74: NOTE: | D74: ATTENTION : | E74: ATTENZIONE: | F74: ATENCIÓN:
A75: Die berechneten Werte dürfen nicht über- bzw. unterschritten werden ! | B75: Die berechneten Werte dürfen nicht über- bzw. unterschritten werden ! | C75: Actual values must not be higher or lower than calculated values ! | D75: Les valeurs calculées ne doivent être dépassées ni vers le haut, ni vers le bas ! | E75: I valori calcolati devono sempre essere raggiunti e non devono essere superati ! | F75: Los valores calculados no pueden ser excedidos ni quedar por debajo.
A76: Wegen der vielfältigen Gestaltungsmöglichkeiten sind in den Taktzeiten und Zykluszahlen keine Ansteuerungs- und Ventilschaltzeiten berücksichtigt. Je nach Aufbau und Art der verwendeten Steuerungen und Ventile sind Ansteuerungs- und Schaltzeiten von 0,05 sek. pro Bewegung realisierbar. Diese sind zu den berechneten Zeiten zu addieren. | B76: Wegen der vielfältigen Gestaltungsmöglichkeiten sind in den Taktzeiten und Zykluszahlen keine Ansteuerungs- und Ventilschaltzeiten berücksichtigt. Je nach Aufbau und Art der verwendeten Steuerungen und Ventile sind Ansteuerungs- und Schaltzeiten von 0,05 sek. pro Bewegung realisierbar. Diese sind zu den berechneten Zeiten zu addieren. | C76: Due to the diverse design possibilities the cycle times and cycle numbers do not take into account any actuation and valve switching times. Depending on the assembly and the type of controllers and valves used, actuation and switching times of 0.05 seconds per movement can be achieved. They must be added to the calculated times. | D76: Du fait des multiples possibilités de conception, les cadences et les nombres de cycles ne prennnent pas en compte les temps de déclenchement et de commutations de vannes. Selon la construction et le type de commandes et de vannes utilisées, des temps de déclenchement et de commutation de 0,05 sec. par mouvement sont réalisables. Il faut les additionner aux temps devant être calculés. | E76: A fronte delle svariate possibilità di strutturazione i tempi di pilotaggio e di commutazione della valvola non sono tenuti presenti nei tempi di ciclo e nei numeri di cicli. A seconda della struttura e del tipo di comandi e delle valvole utilizzati sono realizzabili tempi di pilotaggio e di commutazione di 0,05 sec. per movimento. Questi vanno quindi aggiuti ai tempi calcolati. | F76: Debido a las múltiples posibilidades de configuración, en los tiempos y en los números de ciclo no se tienen en cuenta tiempos de accionamiento ni tiempos de conmutación de válvulas. Dependiendo de la estructura y del tipo de controles y válvulas utilizados, se podrán ejecutar tiempos de accionamiento y de conmutación de 0,05 s por movimiento. Estos deberán sumarse a los tiempos calculados.
A77: Keine harten Schläge durch die bewegten Massen ! | B77: Keine harten Schläge durch die bewegten Massen ! | C77: No hard impacts by moving masses ! | D77: Les chocs durs provoqués par les masses déplacées ne sont pas admis ! | E77: Evitare forti urti causati dalle masse in movimento ! | F77: Se deben evitar que se produzcan fuertes impactos por masas en movimiento.
A78: Die bewegten Massen dürfen beim Aufprall auf den Stoßdämpfer und in den Endlagen keine Schläge verursachen. Dies ist durch entsprechende Hubeinstellung der Stoßdämpfer in den Anschlaghülsen sicherzustellen. | B78: Die bewegten Massen dürfen beim Aufprall auf den Stoßdämpfer und in den Endlagen keine Schläge verursachen. Dies ist durch entsprechende Hubeinstellung der Stoßdämpfer in den Anschlaghülsen sicherzustellen. | C78: The moving masses must not cause impacts when coming into contact with the shock absorber and at the end positions. This must be ensured by appropriate stroke adjustment of the shock absorbers in the stop sleeves. | D78: Les masses en mouvement ne doivent pas provoquer de chocs au niveau de l'amortisseur et des fins de courses. Un ajustement correct de la course de l’amortisseur sur les douilles d'arrêt permet d'assurer l'absence de chocs. | E78: Le masse in movimento non devono causare urti quando collidono con l'ammortizzatore e le posizioni finali. Questo deve essere garantito mediante rispettiva regolazione della corsa degli ammortizzatori nelle boccole di arresto. | F78: Las masas en movimiento no deben causar ningún impacto al chocar con los amortiguadores y alcanzar las posiciones finales. Esto se debe garantizar mediante el debido ajuste de la carrera de los amortiguadores en los manguitos de tope.
A79: Zur Ergebnismaske | B79: Zur Ergebnismaske | C79: Results mask | D79: A propos du masque de résultat | E79: Alla schermata dei risultati | F79: Ir a la interfaz de resultados
A92: Allgemeine Infos
A94: =IF($A$2=1,B94,IF($A$2=2,C94,IF($A$2=3,D94,IF($A$2=4,E94,IF($A$2=5,F94))))) -> Systemvorraussetzungen | B94: Systemvorraussetzungen | C94: System requirements | D94: Config. de base du système | E94: Requisiti di sistema | F94: Requisitos del sistema
A95: Diese Software muss nicht auf Ihrem Rechner installiert werden da es sich um eine Excel-Datei mit Anwendungen in Visual Basic handelt. Unter Umständen muß Ihr Virenschutz für Excel-Makros auf eine mittlere Sicherheitsstufe gesetzt werden. Im Zweifelsfall wenden Sie sich bitte an Ihren Systemadministrator. Folgende MINDESTVORAUSSETZUNGEN müssen auf Ihrem Arbeitsplatz erfüllt sein: | B95: Diese Software muss nicht auf Ihrem Rechner installiert werden da es sich um eine Excel-Datei mit Anwendungen in Visual Basic handelt. Unter Umständen muß Ihr Virenschutz für Excel-Makros auf eine mittlere Sicherheitsstufe gesetzt werden. Im Zweifelsfall wenden Sie sich bitte an Ihren Systemadministrator. Folgende MINDESTVORAUSSETZUNGEN müssen auf Ihrem Arbeitsplatz erfüllt sein: | C95: This software does not require installation on your computer, since itis an Excel file with applications in Visual Basic. In certain circumstances, your virus protection for Excel macros will require setting to a moderate safety level. If in doubt, please consult your system administrator. Your workstation must fulfil the following MINIMUM REQUIREMENTS: | D95: Ce logiciel ne doit pas être installé sur votre ordinateur, puisqu'il s'agît simplement d'un fichier Excell avec applications en Visual Basic. Il sera éventuellement nécessaire de régler votre anti-virus pour les macros Excel sur un niveau de protection moyen. En cas de doute adressez-vous à votre administrateur système. Les CONIGURATIONS MINIMALES suivantes doivent être disponibles sur votre lieu de travail : | E95: Questo software non deve essere installato sul vostro computer, dato che si tratta di un file Excel con applicazioni in Visual Basic. È possibile che il vostro antivirus per macro Excel debba essere impostato su un grado di sicurezza medio. In caso di dubbio rivolgersi al proprio amministratore di sistema. Nelle vostre risorse del sistema devono esserci i seguenti REQUISITI MINIMI: | F95: No instale este software en su ordenador, ya que se trata de un archivo Excel con aplicaciones para Visual Basic. Quizás sea necesario actualizar su antivirus para macros de Excel a un nivel de seguridad medio. En caso de duda, póngase en contacto con su administrador de sistema. REQUISITOS MÍNIMOS de su equipo de trabajo:
A96: Hardware: | B96: Hardware: | C96: Hardware: | D96: Matériel informatique : | E96: Hardware: | F96: Hardware:
A97: Software: | B97: Software: | C97: Software: | D97: Logiciels : | E97: Software: | F97: Software:
A98: Prozessor: | B98: Prozessor: | C98: Processor: | D98: Processeur : | E98: Processore: | F98: Procesador:
A99: Freier Arbeitsspeicher: | B99: Freier Arbeitsspeicher: | C99: Free space: | D99: Mémoire vive disponible : | E99: Memoria di lavoro libera: | F99: Capacidad de mem. libre:
A100: Betriebssystem: | B100: Betriebssystem: | C100: Operating system: | D100: Système d'exploitation : | E100: Sistema operativo: | F100: Sistema operativo:
A101: Software: | B101: Software: | C101: Software: | D101: Logiciels : | E101: Software: | F101: Software:
A102: Pentium III - 500MHz | B102: Pentium III - 500MHz | C102: Pentium III - 500MHz | D102: Pentium III - 500MHz | E102: Pentium III - 500MHz | F102: Pentium III - 500MHz
A103: min. 35MB | B103: min. 35MB | C103: min. 35MB | D103: min. 35MO | E103: min. 35MB | F103: mín. 35MB
A104: Microsoft Windows 98 | B104: Microsoft Windows 98 | C104: Microsoft Windows 98 | D104: Microsoft Windows 98 | E104: Microsoft Windows 98 | F104: Microsoft Windows 98
A105: MS-Excel 2000-2003 | B105: MS-Excel 2000-2003 | C105: MS-Excel 2000-2003 | D105: MS-Excel 2000-2003 | E105: MS-Excel 2000-2003 | F105: MS-Excel 2000-2003
A106: Je nach Hardwarevoraussetzung kann das Öffnen der umfangreichen Datei bis zu einer Minute in Anspruch nehmen. Bei der Anwendung der geöffneten Datei entstehen keine langen Wartezeiten. | B106: Je nach Hardwarevoraussetzung kann das Öffnen der umfangreichen Datei bis zu einer Minute in Anspruch nehmen. Bei der Anwendung der geöffneten Datei entstehen keine langen Wartezeiten. | C106: Depending on the hardward configuration, opening the extensive file may take up to one minute. Use of the file once opened does not involve long waiting times. | D106: L'ouverture de ce fichier volumineux peut prendre jusqu'à une minute selon votre configuration matérielle. Ensuite, lorsque vous travaillez sur le fichier, il n'y aura plus de temps d'attente prolongés. | E106: A seconda dei requisiti hardware è possibile che l'apertura del file molto esteso richieda fino a un minuto. Durante l'impiego del file aperto non insorgono tempi di attesa lunghi. | F106: En función de las características del hardware es posible que el archivo tarde hasta un minuto en abrirse. Una vez abierto, la utilización del mismo no conlleva largos tiempos de espera.
A107: Haftung | B107: Haftung | C107: Liability | D107: Garantie | E107: Garanzia | F107: Responsabilidad
A108: Alle Angaben und technische Werte wurden nach bestem Wissen und Gewissen zusammengestellt. Eine Rechtsverbindlichkeit besteht nur dann, wenn Ihnen diese Daten, bezogen auf Ihren Anwendungsfall, schriftlich durch uns direkt zugesichert wurden. Änderungen und Abweichungen in der Ausführung eines in Auftrag gegebenen Produkts sind zulässig, insbesondere wenn sie qualitätsfördernd sind oder dem technischen Fortschritt dienen, also eine Produktverbesserung beinhalten. Sie sind aber immer so ausgelegt, daß sie den berechtigten Interessen des Verwenders zumutbar sind. | B108: Alle Angaben und technische Werte wurden nach bestem Wissen und Gewissen zusammengestellt. Eine Rechtsverbindlichkeit besteht nur dann, wenn Ihnen diese Daten, bezogen auf Ihren Anwendungsfall, schriftlich durch uns direkt zugesichert wurden. Änderungen und Abweichungen in der Ausführung eines in Auftrag gegebenen Produkts sind zulässig, insbesondere wenn sie qualitätsfördernd sind oder dem technischen Fortschritt dienen, also eine Produktverbesserung beinhalten. Sie sind aber immer so ausgelegt, daß sie den berechtigten Interessen des Verwenders zumutbar sind. | C108: All data and technical values were compiled to the best of our knowledge and in good faith. No legal liability can be accepted unless these data are directly confirmed to you in writing in specific relation to your application. Changes and deviations in the design of a product stated in an order are permitted, especially where these serve to improve quality or aid technical progress and thus constitute an improvement in the product. These will always be carried out, however, such that they correspond to the justified interests of the user. | D108: Toutes les données et valeurs techniques ont été rassemblées à partir des meilleures connaissanes et savoir-faire. Une obligation juridique existe seulement si nous vous avons assuré ces données relatives à votre cas d’application directement par écrit. Des modifications et des écarts lors de la fabrication d’un produit commandé sont autorisées, en particulier lorsqu’elles contribuent à la qualité ou au progès technique, et donc à une amélioration du produit. Toutefois celle-ci doivent toujours servir l'intérêt légitime de l'utilisateur. | E108: Tutte le indicazioni e i valori tecnici sono stati riportati secondo scienza e coscienza. Il vincolo giuridico sussiste solo qualora tali dati siano stati confermati direttamente per iscritto da parte nostra, in riferimento al vostro tipo di impiego. Sono ammesse modifiche e variazioni nella realizzazione di un prodotto ordinato, soprattutto se incentivano la qualità o favoriscono il progresso tecnico, con una conseguente ottimizzazione del prodotto. Esse sono sempre realizzate compatibilmente ai legittimi interessi dell'utente. | F108: Todos los datos y valores técnicos han sido confeccionados según nuestro leal saber y entender. Estos datos sólo son de obligatoriedad jurídica si se los hemos confirmado por escrito referidos a su caso concreto. Los cambios y variaciones del producto original son admisibles especialmente cuando respondan a un aumento de la calidad o a la actualización técnica, es decir, cuando se trate de una mejora del producto. Están pensados de forma que respeten siempre las exigencias de los intereses del usuario.
A114: PPU-P
A115: =IF($A$2=1,B115,IF($A$2=2,C115,IF($A$2=3,D115,IF($A$2=4,E115,IF($A$2=5,F115))))) -> Zur Berechnung von Pick&Place-Einheiten ist - VORHER - die zu bewegende Masse und deren Schwerpunkt zu berechnen ! | B115: Zur Berechnung von Pick&Place-Einheiten ist - VORHER - die zu bewegende Masse und deren Schwerpunkt zu berechnen ! | C115: For calculation of Pick&Place units the mass to be moved and its center of gravity must be calculated FIRST! | D115: Pour calculer les unités Pick&Place, il faut - D'ABORD - calculer la masse devant être mise en mouvement et sont centre de gravité ! | E115: Per il calcolo delle unità Pick&Place - PRIMA - è necessario calcolare la massa da movimentare e il relativo baricentro! | F115: Para calcular unidades Pick&Place, hay que calcular PREVIAMENTE la masa a mover y su punto de gravedad.
A116: Berechnung Massenträgheitsmoment | B116: Berechnung Massenträgheitsmoment | C116: Calculation of the mass moment of inertia | D116: Calcul du couple d'inertie de masse | E116: Calcolo del momento d'inerzia della massa | F116: Calculación del momento del centro de la gravedad
A117: Zurück zu "Ringschalttische" | B117: Zurück zu "Ringschalttische" | C117: Back to the "ring indexing tables" | D117: Retour aux « plateaux tournants à indexation » | E117: Torna a "tavole rotanti indicizzate" | F117: Volver a "Mesas de indexado"
A118: Berechnungsgrundlagen für Pick&Place-Einheiten | B118: Berechnungsgrundlagen für Pick&Place-Einheiten | C118: Calculation principles for Pick&Place units | D118: Principes de calcul des unités Pick&Place | E118: Fondamenti per il calcolo delle unità Pick&Place | F118: Principios básicos para calcular unidades Pick&Place
A119: Teilung | B119: Teilung | C119: Pitch | D119: Division | E119: Divisione | F119: Index
A120: Teilung nicht möglich | B120: Teilung nicht möglich | C120: Pitch not possible | D120: Division impossible | E120: Divisione non possibile | F120: Index no posible
A121: Minimale Zykluszeit | B121: Minimale Zykluszeit | C121: Minimum cycle time | D121: Temps de cycle minimal | E121: Tempo ciclo minimo | F121: Tiempo de ciclo minimo
A122: Minimale Schwenkzeit | B122: Minimale Schwenkzeit | C122: Minimum swivelling time | D122: Temps de pivotement minimal | E122: Tempo di rotazione minimo | F122: Tiempo de giro minimo
A123: Die bewegten Massen dürfen beim Aufprall auf den Stoßdämpfer und in den Endlagen keine Schläge verursachen. Dies ist durch entsprechende Hubeinstellung der Stoßdämpfer sicherzustellen. | B123: Die bewegten Massen dürfen beim Aufprall auf den Stoßdämpfer und in den Endlagen keine Schläge verursachen. Dies ist durch entsprechende Hubeinstellung der Stoßdämpfer sicherzustellen. | C123: The moving masses shouldn't cause any shocks if they hit the shock absorber and the end positions. This has to be ensured by correspondingly adjusting the stroke position of the shock absorber | D123: Les masses en mouvement ne doivent pas causer de chocs lors de l'impact sur l'amortisseur et dans les positions de fin de course. Cela doit être assuré par le réglage correspondant de la course des amortisseurs. | E123: Le masse in movimento non dovrebbe causare urti quando raggiungono con l'ammortizzatore le posizioni finali. Questo deve essere evitanto regolando opportunamente la posizione, ovvero la corsa dell'ammortizzatore | F123: Las masas no deben producir golpes en el momento de llegar a su posición final (contacto con el amortiguador) Se puede evitar eso ajustando las carreras de los amortiguadores.
A124: Wirkt eine externe Kraft F bzw. ein externes Moment M auf den Ringschalttisch, ist die Auslastung der Lagerung neu zu berechnen. | B124: Wirkt eine externe Kraft F bzw. ein externes Moment M auf den Ringschalttisch, ist die Auslastung der Lagerung neu zu berechnen. | C124: If an external force (F) or an external moment (M) effects the ring indexing table, the maximum load capacity has to be re-calculated. | D124: Si une force externe F ou un couple externe M agit sur le plateau tournant à indexation, calculer de nouveau le taux d'utilisation du palier. | E124: In presenza di una forza esterna (F) o di un momento esterno (M) sulla tavola rotante indicizzata, la capacità di carico massima della medesima deve essere ricalcolata. | F124: Sí actua una fuerza F o un momento M externo a la mesa de indexado, se ha de calcula la carga de nuevo.
A125: Aus nachfolgend aufgezeigten Einzelkörpern ist es möglich, durch Zusammensetzen, Aufsummieren oder Subtrahieren die Gesamtschwerpunktskoordinaten eines spezifischen Aufbaus zu ermitteln. | B125: Aus nachfolgend aufgezeigten Einzelkörpern ist es möglich, durch Zusammensetzen, Aufsummieren oder Subtrahieren die Gesamtschwerpunktskoordinaten eines spezifischen Aufbaus zu ermitteln. | C125: From the single bodies calculated below it is possible, through combination, addition or subtraction to determine the total center of gravity coordinates of a specific assembly. | D125: A partir des différents corps désignés ci-dessous, il est possible de déterminer, en regroupant, en additionnant ou en soustrayant, l'ensemble des coordonnées du centre de gravité d'une construction spécifique. | E125: Dai corpi singoli indicati qui di seguito è possibile determinare, mediante composizione, addizione o sottrazione, le coordinate del baricentro totale di una struttura specifica. | F125: A partir de los cuerpos individuales que se indican a continuación, es posible averiguar las coordenadas totales del centro de gravedad de una estructura específica mediante combinaciones, sumas o restas.
A126: Direkte Eingabe von m | B126: Direkte Eingabe von m | C126: Direct input of m | D126: Saisie directe de m | E126: Immissione diretta di m | F126: Introducción directa de m
A127: Nach vollständiger Berechnung der Gesamtmasse mit Schwerpunktkoordinaten des Aufbaus, gelangen sie über den Button - Zur PPU-P-Berechnung - in die Modul-Berechnungsmaske. | B127: Nach vollständiger Berechnung der Gesamtmasse mit Schwerpunktkoordinaten des Aufbaus, gelangen sie über den Button - Zur PPU-P-Berechnung - in die Modul-Berechnungsmaske. | C127: After complete calculation of the total mass with center of gravity coordinates of the assembly, you can press the button - PPU-P calculation - to open the module calculation mask. | D127: Après calcul complet de la masse totale avec les coordonnées de centre de gravité de la construction, vous parvenez dans le masque de calcul du module à l'aide du bouton - Pour le calcul PPU-P -. | E127: Dopo il calcolo completo della massa totale con coordinate del baricentro della struttura, con il pulsante - Al calcolo di PPU-P - si va alla schermata di calcolo del modulo. | F127: Tras el cálculo completo de la masa total con las coordenadas del centro de gravedad de la estructura, puede pulsar el botón - Ir al cálculo PPU-P - para pasar a la interfaz de cálculo de módulo.
A128: Einzelkörper-Massenwerte | B128: Einzelkörper-Massenwerte | C128: Single body mass values | D128: Valeurs de la masse du corps individuel | E128: Valori di massa del singolo corpo | F128: Valores de masa de cuerpos individuales
A129: Nach Auswahl des gewünschten Körpers und Eingabe der Körperdaten sind die Koordinaten des Massenschwerpunktes dieses Körpers zum Ausleger zu bestimmen. | B129: Nach Auswahl des gewünschten Körpers und Eingabe der Körperdaten sind die Koordinaten des Massenschwerpunktes dieses Körpers zum Ausleger zu bestimmen. | C129: After selecting the desired body and entering the data and coordinates, the mass center of gravity of the body to the pivot arm must be calculated. | D129: Après avoir choisi le corps souhaité et indiqué les données du corps, il faut déterminer les coordonnées du centre de gravité de la masse de ce corps par rapport à la flèche. | E129: Dopo la selezione del corpo desiderato e l'immissione dei dati del corpo devono essere determinate le coordinate del baricentro della massa di tale corpo rispetto all'asse a sbalzo. | F129: Tras escoger el cuerpo deseado e introducir los datos del cuerpo, es necesario determinar las coordenadas del centro de gravedad de masa de este cuerpo con respecto al brazo.
A130: Nach vollständiger Eingabe aller Daten müssen die Werte zur Berechnung der Gesamtmasse und des Gesamtmassen-Schwerpunkts in die Liste addiert oder subtrahiert werden. | B130: Nach vollständiger Eingabe aller Daten müssen die Werte zur Berechnung der Gesamtmasse und des Gesamtmassen-Schwerpunkts in die Liste addiert oder subtrahiert werden. | C130: After complete input of all data the values for calculation of the total mass and of the total mass center of gravity must be added to or subtracted from the list. | D130: Après avoir saisi toutes les données, il faut additionner ou soustraire les valeurs pour calculer la masse totale et le centre de gravité de la masse totale dans la liste. | E130: Dopo l'immissione completa di tutti i dati i valori per il calcolo della massa totale e del baricentro della massa totale nella lista devono essere sommati o sottratti. | F130: Tras introducir la totalidad de los datos, se deben sumar o restar en la lista los valores para calcular la masa total y el centro de gravedad de la masa total.
A131: Gesamtmasse / Schwerpunkt | B131: Gesamtmasse / Schwerpunkt | C131: Total mass / center of gravity | D131: Masse totale / centre de gravité | E131: Massa totale / baricentro | F131: Masa total / centro de gravedad
A132: Durch die Möglichkeit der Aufsummierung einzelner Körper werden die Gesamtmasse sowie die Koordinaten des Gesamtmassenschwerpunkts unterschiedlichster Aufbauten berechnet. Diese sind dann die Grundlage zur Berechnung einer geeigneten Pick&Place-Einheit. | B132: Durch die Möglichkeit der Aufsummierung einzelner Körper werden die Gesamtmasse sowie die Koordinaten des Gesamtmassenschwerpunkts unterschiedlichster Aufbauten berechnet. Diese sind dann die Grundlage zur Berechnung einer geeigneten Pick&Place-Einheit. | C132: The possibility of adding up single bodies allows calculation of the total mass as well as the coordinates of the total mass center of gravity of a wide range of different assemblies. They are the basis for calculation of a suitable Pick&Place unit. | D132: La possibilité d'additionner les différents corps permet de calculer la masse totale ainsi que les coordonnées du centre de gravité de la masse totale des constructions les plus diverses. Il s'agit ensuite de la base de calcul d'une unité Pick&Place adaptée. | E132: Grazie alla possibilità di sommare singoli corpi vengono calcolate la massa totale nonché le coordinate del baricentro della massa totale delle strutture più disparate. Queste costituiscono quindi il fondamento per il calcolo di un'unità Pick&Place idonea. | F132: Gracias a la posibilidad de sumar distintos cuerpos, se pueden calcular la masa total y las coordenadas del punto de gravedad de la masa total de distintas estructuras. Esto es lo que sirve más adelante como base para calcular una unidad Pick&Place adecuada.
A133: Sind in die letzte Zeile der Liste bereits Einzelkörperwerte übernommen worden und Sie wollen weitere Einzelkörper berechnen und in die Liste übernehmen, erhalten Sie eine Meldung die Sie mit - JA - bestätigen. Die bisher berechnete Gesamtmasse mit Schwerpunktskoorinaten werden dann in die erste Zeile der Liste übernommen. Sie können nun weitere Einzelkörper berechnen und in die Liste übernehmen. | B133: Sind in die letzte Zeile der Liste bereits Einzelkörperwerte übernommen worden und Sie wollen weitere Einzelkörper berechnen und in die Liste übernehmen, erhalten Sie eine Meldung die Sie mit - JA - bestätigen. Die bisher berechnete Gesamtmasse mit Schwerpunktskoorinaten werden dann in die erste Zeile der Liste übernommen. Sie können nun weitere Einzelkörper berechnen und in die Liste übernehmen. | C133: If single body values have already been entered in the last line of the list and you wish to calculate additional single bodies and add them to the list, you will see a prompt, which must be confirmed with -YES-. The previously calculated total mass and center of gravity coordinates are then entered in the first line of the list. You can now calculate additional single bodies and add them to the list. | D133: Si des valeurs de corps individuels ont déjà été prises en charge sur la dernière ligne de la liste, et que vous voulez calculer d'autres corps individuels, et les prendre en charge dans la liste, vous recevez un message que vous validez avec - OUI -. La masse totale calculée jusqu'à présent avec les coordonnées du centre de gravité sont alors prises en charge sur la dernière ligne de la liste. Vous pouvez alors calculer d'autres corps individuels et les prendre en charge dans la liste. | E133: Se nell'ultima riga dell'elenco sono già stati rilevati valori di corpi singoli e si vogliono calcolare e rilevare nell'elenco altri corpi singoli, si riceve un messaggio che va confermato con SI'. La massa totale con coordinate del baricentro calcolata sinora è quindi rilevata nella prima riga dell'elenco. A questo punto è possibile calcolare e rilevare nell'elenco altri corpi singoli. | F133: Si ya se han incorporado valores de cuerpos individuales a la última fila de la lista y desea calcular más cuerpos individuales e incorporarlos a la lista, confirme con "SÍ" el mensaje que reciba. La masa total calculada hasta el momento con coordenadas del centro de gravedad, se incorporará entonces a la primera fila de la lista. A continuación, podrá seguir calculando más cuerpos individuales e incorporarlos a la lista.
A134: Gesamtmasse | B134: Gesamtmasse | C134: Total mass | D134: Masse totale | E134: Massa totale | F134: Masa total
A135: Schwerpunktskoordinate liegt außerhalb des zulässigen Bereichs | B135: Schwerpunktskoordinate liegt außerhalb des zulässigen Bereichs | C135: Center of gravity coordinate outside of permitted range | D135: Les coordonnées du centre de gravité se trouvent en dehors de la zone autorisée | E135: La coordinata del baricentro è al di fuori dell'intervallo ammesso | F135: Coordenada del centro de gravedad fuera del rango admisible
A136: Schwerpunktskoordinate in X-Richtung | B136: Schwerpunktskoordinate in X-Richtung | C136: Center of gravity coordinate in X direction | D136: Coordonnées du centre de gravité dans le sens X | E136: Coordinata del baricentro in direzione X | F136: Coordenada del centro de gravedad en dirección X
A137: Schwerpunktskoordinate in Y-Richtung | B137: Schwerpunktskoordinate in Y-Richtung | C137: Center of gravity coordinate in Y direction | D137: Coordonnées du centre de gravité dans le sens Y | E137: Coordinata del baricentro in direzione Y | F137: Coordenada del centro de gravedad en dirección Y
A138: Schwerpunktskoordinate in Z-Richtung | B138: Schwerpunktskoordinate in Z-Richtung | C138: Center of gravity coordinate in Z direction | D138: Coordonnées du centre de gravité dans le sens Z | E138: Coordinata del baricentro in direzione Z | F138: Coordenada del centro de gravedad en dirección Z
A139: Betriebsdruck 5 bar | B139: Betriebsdruck 5 bar | C139: Operating pressure 5 bar | D139: Pression de service 5 bars | E139: Pressione d'esercizio 5 bar | F139: Presión de trabajo 5 bar

Sheet Translation
A2: =STARTSEITE!A50 -> 1 | B2: Deutsch | C2: Englisch | D2: Französisch | E2: Italienisch | F2: Spanisch
A4: Startseite
A6: =IF($A$2=1,B6,IF($A$2=2,C6,IF($A$2=3,D6,IF($A$2=4,E6,IF($A$2=5,F6))))) -> Modul-Berechnungsprogramm | B6: Modul-Berechnungsprogramm | C6: Actuator Calculation Program | D6: Programme de calcul de module | E6: Programma di calcolo dei moduli | F6: Programa de cálculo de módulos
A7: Mit diesem Software-Tool werden für Pick&Place-Geräte die zulässigen Belastungen und Taktzeiten berechnet | B7: Mit diesem Software-Tool werden für Pick&Place-Geräte die zulässigen Belastungen und Taktzeiten berechnet | C7: This software tool is used to calculate the permissible loads and cycle times for Pick&Place units | D7: Cet outil logiciel permet de calculer les charges et cadences autorisées pour les appareils Pick&Place | E7: Con questo tool software vengono calcolati le sollecitazioni e i tempi di ciclo per gli apparecchi Pick&Place | F7: Con esta herramienta de software, se calculan las cargas y los tiempos de ciclo admisibles para aparatos Pick&Place.
A8: Software: MS Excel 2007 | B8: Software: MS Excel 2007 | C8: Software: MS Excel 2007 | D8: Software: MS Excel 2007 | E8: Software: MS Excel 2007 | F8: Software: MS Excel 2007
A9: Start | B9: Start | C9: Start | D9: Démarrage | E9: Avvio | F9: Inicio
A10: Info | B10: Info | C10: Info | D10: Info | E10: Informazioni | F10: Información
A11: ActiveX Steuerelemente müssen aktiviert sein ! | B11: ActiveX Steuerelemente müssen aktiviert sein ! | C11: ActiveX control must be activated ! | D11: Le contrôle ActiveX doit être activé ! | E11: Il controllo ActiveX deve essere attivato ! | F11: El control ActiveX tiene que esta activado !
A12: MAKROS müssen aktiviert sein ! | B12: MAKROS müssen aktiviert sein ! | C12: MACROS must be activated ! | D12: Les macros doivent être activées ! | E12: Le MACRO devono essere attivate ! | F12: Las MACROS deben estar activadas.
A13: =IF($A$2=1,B13,IF($A$2=2,C13,IF($A$2=3,D13,IF($A$2=4,E13,IF($A$2=5,F13))))) -> Version 06/16 | B13: Version 06/16 | C13: Version 06/16 | D13: Version 06/16 | E13: Versione 06/16 | F13: Versión 06/16
A14: =IF($A$2=1,B14,IF($A$2=2,C14,IF($A$2=3,D14,IF($A$2=4,E14,IF($A$2=5,F14))))) -> Toolbox-Pick&Place - MODULARE MONTAGEAUTOMATION | B14: Toolbox-Pick&Place - MODULARE MONTAGEAUTOMATION | C14: Toolbox-Pick&Place - MODULARE MONTAGEAUTOMATION | D14: Toolbox-Pick&Place - MODULARE MONTAGEAUTOMATION | E14: Toolbox-Pick&Place - MODULARE MONTAGEAUTOMATION | F14: Caja de herramientas Pick&Place - MODULARE MONTAGEAUTOMATION
A15: =IF($A$2=1,B15,IF($A$2=2,C15,IF($A$2=3,D15,IF($A$2=4,E15,IF($A$2=5,F15))))) -> Zoom (%) | B15: Zoom (%) | C15: Zoom (%) | D15: Zoom (%) | E15: Zoom (%) | F15: Zoom (%)
A16: =IF($A$2=1,B16,IF($A$2=2,C16,IF($A$2=3,D16,IF($A$2=4,E16,IF($A$2=5,F16))))) -> Bitte überprüfen Sie regelmäßig die Aktualität dieses Berechnungsprogramms im "Download-Bereich" unserer Homepage ! | B16: Bitte überprüfen Sie regelmäßig die Aktualität dieses Berechnungsprogramms im "Download-Bereich" unserer Homepage ! | C16: Please check regularly for the latest update to this calculation program in the “Download” area of our website! | D16: Veuillez régulièrement vérifier l'actualité de ce programme de calcul dans "Zone de téléchargement" de notre page d'accueil ! | E16: Si raccomanda di verificare regolarmente lo stato di aggiornamento di questo programma di calcolo nell"Area download" della nostra homepage! | F16: Compruebe periódicamente las actualizaciones disponibles para este programa de cálculo en la "Zona de descargas" de nuestra página web.
A17: =IF($A$2=1,B17,IF($A$2=2,C17,IF($A$2=3,D17,IF($A$2=4,E17,IF($A$2=5,F17))))) -> Achtung: | B17: Achtung: | C17: Note: | D17: Attention: | E17: Attenzione: | F17: Atención:
A24: Info-Massenträgheitsmoment
A26: =IF($A$2=1,B26,IF($A$2=2,C26,IF($A$2=3,D26,IF($A$2=4,E26,IF($A$2=5,F26))))) -> Berechnung von Drehlader und Pick&Place-Unit | B26: Berechnung von Drehlader und Pick&Place-Unit | C26: Calculation of rotary loader and Pick&Place unit | D26: Calcul du chargeur rotatif et Pick&Place-Unit | E26: Calcolo di caricatore rotante e unità Pick&Place | F26: Cálculo de cargador giratorio y unidad Pick&Place
A27: Beispiel 1 | B27: Beispiel 1 | C27: Example 1 | D27: Exemple 1 | E27: Esempio 1 | F27: Ejemplo 1
A28: Beispiel 2 | B28: Beispiel 2 | C28: Example 2 | D28: Exemple 2 | E28: Esempio 2 | F28: Ejemplo 2
A29: Beispiel 3 | B29: Beispiel 3 | C29: Example 3 | D29: Exemple 3 | E29: Esempio 3 | F29: Ejemplo 3
A30: Greif-Dreh-Einheit | B30: Greif-Dreh-Einheit | C30: Index/grip unit | D30: Unité de prise - rotation | E30: Unità presa-rotazione | F30: Unidad de giro y agarre
A31: Rotationsmodul mit Doppelgreifer | B31: Rotationsmodul mit Doppelgreifer | C31: Rotary actuator with double gripper | D31: Module rotatif avec double griffe | E31: Modulo di rotazione con pinza doppia | F31: Módulo rotatorio con pinza doble
A32: Rotationsmodul mit Schwenkarm | B32: Rotationsmodul mit Schwenkarm | C32: Rotary actuator with swivel arm | D32: Module rotatif avec bras pivotant | E32: Modulo di rotazione con braccio rotante | F32: Módulo rotatorio con brazo giratorio
A33: Vor der Berechnung des Drehladers müssen die Massenträgheitsmomente der zu schwenkenden Massen ermittelt werden. | B33: Vor der Berechnung des Drehladers müssen die Massenträgheitsmomente der zu schwenkenden Massen ermittelt werden. | C33: Before calculating the rotary loader the mass moments of inertia of the masses to be rotated must be determined. | D33: Avant de calculer le chargeur rotatif, il faut déterminer les couples d'inertie des masses devant être pivotées. | E33: Prima del calcolo del caricatore rotante devono essere determinati i momenti di inerzia di massa e le masse da far oscillare. | F33: Antes de calcular el cargador giratorio, se deben averiguar los momentos de inercia de masa de las masas a bascular.
A34: Zur Berechnung des Massenträgheitsmoments | B34: Zur Berechnung des Massenträgheitsmoments | C34: To Calculation of mass moment of inertia | D34: A la page de calcul du couple d'inertie de masse | E34: Vai al calcolo del momento di inerzia della massa | F34: Ir a cálculo del momento de inercia de la masa
A35: Startseite | B35: Startseite | C35: Start page | D35: Page d`accueil | E35: Pagina iniziale | F35: Página de inicio
A36: Info | B36: Info | C36: Info | D36: Info | E36: Informazioni | F36: Información
A37: Berechnung Drehlader DRL | B37: Berechnung Drehlader DRL | C37: Calculation of rotary loader DRL | D37: Calcul du chargeur rotatif DRL | E37: Calcolo di caricatore rotante DRL | F37: Cálculo de cargador giratorio DRL
A38: Berechnung PickPlace-Unit PPU-P | B38: Berechnung PickPlace-Unit PPU-P | C38: Calculation of Pick&Place-Unit PPU-P | D38: Calcul du Pick&Place-Unit PPU-P | E38: Calcolo di unità Pick&Place PPU-P | F38: Cálculo de unidad Pick&Place PPU-P
A39: Auswahlseite | B39: Auswahlseite | C39: Selection page | D39: Page de sélection | E39: Pagina di selezione | F39: Página de selección
A46: Massenträgheitsmoment
A48: =IF($A$2=1,B48,IF($A$2=2,C48,IF($A$2=3,D48,IF($A$2=4,E48,IF($A$2=5,F48))))) -> Berechnung Massenträgheitsmoment | B48: Berechnung Massenträgheitsmoment | C48: Calculation of mass moment of inertia | D48: Calcul du couple d'inertie de masse | E48: Calcolo del momento di inerzia della massa | F48: Cálculo del momento de inercia de la masa
A49: Zurück | B49: Zurück | C49: Back | D49: Retour | E49: Indietro | F49: Volver
A50: Info | B50: Info | C50: Info | D50: Info | E50: Informazioni | F50: Información
A51: Neu- berechnung | B51: Neu- berechnung | C51: New calculation | D51: Nouveau calcul | E51: Nuovo calcolo | F51: Nuevo cálculo
A52: Zur DRL-Berechnung | B52: Zur DRL-Berechnung | C52: DRL calculation | D52: Pour calculer DRL | E52: Al calcolo DRL | F52: Ir al cálculo DRL
A53: Gesamtmassenträgheitsmoment aus Einzelkörperberechnung | B53: Gesamtmassenträgheitsmoment aus Einzelkörperberechnung | C53: Mass moment of inertia from single body calculation | D53: Couple d'intertie de masse totale issu du calcul de corps individuels | E53: Momento di inerzia della massa totale derivante dal calcolo del corpo singolo | F53: Momento de inercia de la masa total a partir del cálculo con cuerpos individuales
A54: Bezeichnung | B54: Bezeichnung | C54: Designation | D54: Désignation | E54: Descrizione | F54: Denominación
A55: Bezeichnung 1 | B55: Bezeichnung 1 | C55: Designation 1 | D55: Désignation 1 | E55: Descrizione 1 | F55: Denominación 1
A56: Bezeichnung 2 | B56: Bezeichnung 2 | C56: Designation 2 | D56: Désignation 2 | E56: Descrizione 2 | F56: Denominación 2
A57: Bezeichnung 3 | B57: Bezeichnung 3 | C57: Designation 3 | D57: Désignation 3 | E57: Descrizione 3 | F57: Denominación 3
A58: Bezeichnung 4 | B58: Bezeichnung 4 | C58: Designation 4 | D58: Désignation 4 | E58: Descrizione 4 | F58: Denominación 4
A59: löschen | B59: löschen | C59: Delete | D59: supprimer | E59: cancella | F59: borrar
A60: Massenträgheitsmom. | B60: Massenträgheitsmom. | C60: Mass moment of inertia | D60: Couple d'iner. de masse | E60: Mom. inerzia massa | F60: Mom. de iner. de la masa
A61: Gesamtmasse | B61: Gesamtmasse | C61: Total mass | D61: Masse totale | E61: Massa totale | F61: Masa total
A62: Koordinaten des Gesamtmassenschwerpunkts | B62: Koordinaten des Gesamtmassenschwerpunkts | C62: Co-ordinates of overall centre of gravity | D62: Coordonnées du centre de gravité de la masse totale | E62: Coordinate del baricentro della massa totale | F62: Coordinadas del centro de masa total
A63: Körper- | B63: Körper- | C63: Element | D63: Sélection | E63: Selezione | F63: Selección del
A64: auswahl | B64: auswahl | C64: selection | D64: du corps | E64: corpo | F64: cuerpo
A65: Eingabe J0 | B65: Eingabe J0 | C65: Input J0 | D65: Saisie J0 | E65: Immissione J0 | F65: Introducción J0
A66: Quader | B66: Quader | C66: Cuboid | D66: Parallèlipipède | E66: Parallelepipedo | F66: Paralelepípedo
A67: Scheibe | B67: Scheibe | C67: Washer | D67: Disque | E67: Disco | F67: Disco
A68: Welle längs | B68: Welle längs | C68: Shaft long. | D68: Arbre longitud. | E68: Albero longitudinale | F68: Eje longitudinal
A69: Welle quer | B69: Welle quer | C69: Shaft trans. | D69: Arbre transver. | E69: Albero trasversale | F69: Eje transversal
A70: Grundfläche / Masse | B70: Grundfläche / Masse | C70: Base area / mass | D70: Surface / masse | E70: Superficie di base / massa | F70: Base / Masa
A71: Greifmodule | B71: Greifmodule | C71: Gripper actuators | D71: Modules de préhen. | E71: Moduli di presa | F71: Módulos de agarre
A73: Direkte Eingabe von J0 | B73: Direkte Eingabe von J0 | C73: Direct input of J0 | D73: Saisiedirecte de J0 | E73: Immissione diretta di J0 | F73: Introducción directa de J0
A74: Eigenmassenträgheitsmom. | B74: Eigenmassenträgheitsmom. | C74: Inherent mass mom. of inertia | D74: Couple d'iner. de la masse propre | E74: Mom. di iner. d. massa propria | F74: Mom. de iner. de la masa propia
A75: Masse des Körpers | B75: Masse des Körpers | C75: Mass of body | D75: Masse du corps | E75: Massa del corpo | F75: Masa del cuerpo
A76: Massenschwerpunkts-Koordinaten | B76: Massenschwerpunkts-Koordinaten | C76: Mass center of gravity coordinates | D76: Coordonnées du centre de gravité de la masse | E76: Coordinate del baricentro della massa | F76: Coordenadas del centro de gravedad de masa
A77: Eingabefelder | B77: Eingabefelder | C77: Input fields | D77: Erreur de saisie | E77: Campi d'immissione | F77: Campos de introducción de datos
A78: Z=Höhenkoordinate ab Mitte Flansch | B78: Z=Höhenkoordinate ab Mitte Flansch | C78: Z = height coordinate from center of flange | D78: Z=Coordonnées de la hauteur à partir du milieu de la bride | E78: Z=coordinata di altezza da metà flangia | F78: Z = Coordenada de altura a partir del centro de la brida
A79: In Liste addieren | B79: In Liste addieren | C79: Add in list | D79: Additionner à la liste | E79: Sommare nella lista | F79: Añadir a la lista
A80: In Liste subtrahieren | B80: In Liste subtrahieren | C80: Subtract in list | D80: Soustraire de la liste | E80: Detrarre nella lista | F80: Restar a la lista
A81: Info | B81: Info | C81: Info | D81: Information | E81: Informazioni | F81: Información
A83: Quader | B83: Quader | C83: Cuboid | D83: Parallèlipipède | E83: Parallelepipedo | F83: Paralelepípedo
A84: Dichte | B84: Dichte | C84: Density | D84: Densité | E84: Compattezza | F84: Densidad
A85: Länge | B85: Länge | C85: Length | D85: Long. | E85: Lung. | F85: Long.
A86: Breite | B86: Breite | C86: Width | D86: Larg. | E86: Larg. | F86: Anchura
A87: Höhe | B87: Höhe | C87: Height | D87: Haut. | E87: Altezza | F87: Altura
A88: Stahl | B88: Stahl | C88: Steel | D88: Acier | E88: Accia. | F88: Acero
A89: Alu | B89: Alu | C89: Al | D89: Al | E89: Al | F89: Al
A90: sonst | B90: sonst | C90: Other | D90: autre | E90: altro | F90: otro
A92: Scheibe | B92: Scheibe | C92: Washer | D92: Disque | E92: Disco | F92: Disco
A93: Dichte | B93: Dichte | C93: Density | D93: Densité | E93: Compattezza | F93: Densidad
A94: Durch- | B94: Durch- | C94: Dia- | D94: Dia- | E94: Dia- | F94: Diá-
A95: messer | B95: messer | C95: meter | D95: mètre | E95: metro | F95: metro
A96: Dicke | B96: Dicke | C96: Thickn. | D96: Epaiss. | E96: Spess. | F96: Espesor
A98: Welle längs zur Drehachse | B98: Welle längs zur Drehachse | C98: Shaft along rotation axis | D98: Arbre dans le sens longitud. par rapport à l'axe de rot. | E98: Albero longitudinale rispetto all'asse di rotazione | F98: Eje longitudinal al eje de rotación
A99: Dichte | B99: Dichte | C99: Density | D99: Densité | E99: Compattezza | F99: Densidad
A100: Durch- | B100: Durch- | C100: Dia- | D100: Dia- | E100: Dia- | F100: Diá-
A101: messer | B101: messer | C101: meter | D101: mètre | E101: metro | F101: metro
A102: Länge | B102: Länge | C102: Length | D102: Long. | E102: Lung. | F102: Long.
A104: Welle quer zur Drehachse | B104: Welle quer zur Drehachse | C104: Shaft square to rotation axis | D104: Arbre dans le sens transver. par rapport à l'axe de rot. | E104: Albero trasversale rispetto all'asse di rotazione | F104: Eje transversal al eje de rotación
A105: Dichte | B105: Dichte | C105: Density | D105: Densité | E105: Compattezza | F105: Densidad
A106: Durch- | B106: Durch- | C106: Dia- | D106: Dia- | E106: Dia- | F106: Diá-
A107: messer | B107: messer | C107: meter | D107: mètre | E107: metro | F107: metro
A108: Länge | B108: Länge | C108: Length | D108: Long. | E108: Lung. | F108: Long.
A110: Grundfläche / Masse | B110: Grundfläche / Masse | C110: Base area / mass | D110: Surface / masse | E110: Superficie di base / massa | F110: Base / Masa
A111: Länge | B111: Länge | C111: Length | D111: Long. | E111: Lung. | F111: Long.
A112: =IF($A$2=1,B112,IF($A$2=2,C112,IF($A$2=3,D112,IF($A$2=4,E112,IF($A$2=5,F112))))) -> Breite | B112: Breite | C112: Width | D112: Larg. | E112: Larg. | F112: Anchura
A113: Masse | B113: Masse | C113: Mass | D113: Masse | E113: Massa | F113: Masa
A115: Greifmodule | B115: Greifmodule | C115: Gripper actuators | D115: Modules de préhension | E115: Moduli di presa | F115: Módulos de agarre
A116: Parallel-Greifer | B116: Parallel-Greifer | C116: Parallel gripper | D116: Griffe de préhension parallèle | E116: Pinze parallele | F116: Pinzas paralelas
A117: 3-Backen-Greifer | B117: 3-Backen-Greifer | C117: 3 jaw gripper | D117: Griffe de préhension à trois doigts | E117: Pinze a 3 ganasce | F117: Pinzas de 3 mordazas
A118: Winkel-Greifer | B118: Winkel-Greifer | C118: Angled gripper | D118: Griffe de prehension angulaire | E118: Pinze angolari | F118: Pinzas angulares
A119: Winkel-Parallel-Greifer | B119: Winkel-Parallel-Greifer | C119: Angled parallel gripper | D119: Griffe de prehension angulaire parallèle | E119: Pinze parallele angolari | F119: Pinzas paralelas y angulares
A122: =IF($A$2=1,B122,IF($A$2=2,C122,IF($A$2=3,D122,IF($A$2=4,E122,IF($A$2=5,F122))))) -> Drehachse | B122: Drehachse | C122: Z axis = rotation axis | D122: Axe Z = axe de rotation | E122: Asse Z = asse di rotazione | F122: Eje Z = eje de rotación
A124: =IF($A$2=1,B124,IF($A$2=2,C124,IF($A$2=3,D124,IF($A$2=4,E124,IF($A$2=5,F124))))) -> Wollen Sie weitere Massenträgheitsmomente eingeben ? | B124: Wollen Sie weitere Massenträgheitsmomente eingeben ? | C124: More mass moments of inertia ? | D124: Autre couples d´inertie de masse ? | E124: Vuoi immettere ulteriori momenti di inerzia della massa ? | F124: Desea introducir otros momentos de inercia de la masa?
A125: =IF($A$2=1,B125,IF($A$2=2,C125,IF($A$2=3,D125,IF($A$2=4,E125,IF($A$2=5,F125))))) -> Übernahme | B125: Übernahme | C125: Takeover | D125: Prise en charge | E125: Registrazione | F125: Aceptación
A127: =IF($A$2=1,B127,IF($A$2=2,C127,IF($A$2=3,D127,IF($A$2=4,E127,IF($A$2=5,F127))))) -> Körperauswahl | B127: Körperauswahl | C127: Element selection | D127: Sélection du corps | E127: Selezione corpo | F127: Selección del cuerpo
A128: =IF($A$2=1,B128,IF($A$2=2,C128,IF($A$2=3,D128,IF($A$2=4,E128,IF($A$2=5,F128))))) -> Zubehör | B128: Zubehör | C128: Accessories | D128: Accessoires | E128: Accessori | F128: Accesorios
A129: =IF($A$2=1,B129,IF($A$2=2,C129,IF($A$2=3,D129,IF($A$2=4,E129,IF($A$2=5,F129))))) -> Zubehörvarianten | B129: Zubehörvarianten | C129: Various accessories | D129: Variantes | E129: Varianti | F129: Variantes de accesorios
A130: =IF($A$2=1,B130,IF($A$2=2,C130,IF($A$2=3,D130,IF($A$2=4,E130,IF($A$2=5,F130))))) -> müssen bei der Berechnung des Massenträgheitsmomentes nicht berücksichtigt werden. Sie können auf der "DRL-Berechnungsseite" angewählt werden ! | B130: müssen bei der Berechnung des Massenträgheitsmomentes nicht berücksichtigt werden. Sie können auf der "DRL-Berechnungsseite" angewählt werden ! | C130: do not have to be considered for calculation of the mass moment of inertia. They can be selected on the "DRL calculation page"! | D130: ne pas prendre en compte dans le calcul du moment d'inertie. Il sera pris en compte en le sélectionnant dans la "page de calcul DRL". | E130: non devono essere considerati nel calcolo del momento d'inerzia. Possono essere selezionati alla pagina "DRL - Pagina di calcolo"! | F130: no deben ser considerados para el cálculo de la masa del momento de inercia. Pueden seleccionarse en "la página de cálculo del DRL"
A131: =IF($A$2=1,B131,IF($A$2=2,C131,IF($A$2=3,D131,IF($A$2=4,E131,IF($A$2=5,F131))))) -> und | B131: und | C131: and | D131: et | E131: e | F131: y
A135: RM-Berechnung
A137: =IF($A$2=1,B137,IF($A$2=2,C137,IF($A$2=3,D137,IF($A$2=4,E137,IF($A$2=5,F137))))) -> Berechnung von Rotationsmodulen und Ringschalttischen | B137: Berechnung von Rotationsmodulen und Ringschalttischen | C137: Calculation of rotary modules and ring indexing tables. | D137: Calcul des modules rotatifs et les plateaux tournants à indexation | E137: Calcolo di moduli rotanti e tavole rotanti indicizzate | F137: Calculo para modulos de giro y mesas de indexado
A138: Massenträgheitsmoment = | B138: Massenträgheitsmoment = | C138: Mass moment of inertia = | D138: Moments d’inertie de masse = | E138: Momento di inerzia della massa = | F138: Momento de inercia de la masa =
A139: Zur RM/RST-Berechnung bitte gewünschten Typ auswählen ! | B139: Zur RM/RST-Berechnung bitte gewünschten Typ auswählen ! | C139: Choose the desired type for the RM/RST calculation! | D139: Sélectionner le type de calcul RM / RST souhaité ! | E139: Scegli il tipo desidertato per il calcolo di RM/RST | F139: Para los calculos RM/RST seleciona el tipo
A140: Kompaktbauweise | B140: Kompaktbauweise | C140: Compact design | D140: Type de construction compacte | E140: Struttura compatta | F140: Diseño compacto
A141: Flachbauweise | B141: Flachbauweise | C141: Flat design | D141: Type de construction à plat | E141: Struttura piana | F141: Diseño plano
A142: Flachbauweise mit Zwischenanschlag | B142: Flachbauweise mit Zwischenanschlag | C142: Flat design with intermediate stop | D142: Type de constr. à plat avec butée interméd. | E142: Struttura piana con arresto intermedio | F142: Diseño plano con tope intermedio
A143: Max.zul. Massenträgheitsmoment | B143: Max.zul. Massenträgheitsmoment | C143: Max. mass moment of inertia | D143: Couples d’inertie de masse max. | E143: Momento inerzia massa max. ammesso | F143: Mom. de inercia de la masa máx. admisible
A144: Antriebsmoment | B144: Antriebsmoment | C144: Drive torque | D144: Couple d’entraînement | E144: Coppia motrice | F144: Momento de accionamiento
A145: Zurück zur Berechnung des Massenträgheitsmoments | B145: Zurück zur Berechnung des Massenträgheitsmoments | C145: Back to Calculation of mass moment of inertia | D145: Retour à la page de calcul du couple d'inertie de masse | E145: Torna al calcolo del momento di inerzia della massa | F145: Volver al cálculo del momento de inercia de la masa
A146: Startseite | B146: Startseite | C146: Start page | D146: Page d`accueil | E146: Pagina iniziale | F146: Página de inicio
A147: Info | B147: Info | C147: Info | D147: Information | E147: Informazioni | F147: Información
A148: Ringschalttische | B148: Ringschalttische | C148: Ring indexing table | D148: Plateaux tournants à indexation | E148: Tavola rotante indicizzata | F148: Mesa de indexado
A160: Eingabe 1 alt
A162: =IF($A$2=1,B162,IF($A$2=2,C162,IF($A$2=3,D162,IF($A$2=4,E162,IF($A$2=5,F162))))) -> Berechnung von Rotationsmodulen | B162: Berechnung von Rotationsmodulen | C162: Calculation of rotary actuators | D162: Calcul de modules rotatifs | E162: Calcolo di moduli di rotazione | F162: Cálculo de los módulos rotatorios
A163: Startseite | B163: Startseite | C163: Start page | D163: Page d`accueil | E163: Pagina iniziale | F163: Página de inicio
A164: Übersicht | B164: Übersicht | C164: Overview | D164: Sommaire | E164: Panoramica | F164: Cuadro sinóptico
A165: Info | B165: Info | C165: Info | D165: Info | E165: Informazioni | F165: Información
A166: Massen- trägheits- moment | B166: Massen- trägheits- moment | C166: Mass moment of inertia | D166: Couples d’inertie de masse | E166: Momento di inerzia della massa | F166: Momento de inercia de la masa
A167: Rotationsmodule Kompaktbauweise RM 50 bis RM 310 | B167: Rotationsmodule Kompaktbauweise RM 50 bis RM 310 | C167: Rotary actuators, compact design, RM 50 to RM 310 | D167: Modules rotatifs de type constr. compacte RM 50 à RM 310 | E167: Moduli di rotazione struttura compatta da RM 50 a RM 310 | F167: Módulos rotatorios de diseño compacto RM 50 hasta RM 310
A168: Drehachse horizontal | B168: Drehachse horizontal | C168: Horizontal rotation axis | D168: Axe de rotation horizontal | E168: Asse di rotazione orizzontale | F168: Eje de rotación horizontal
A169: Drehachse vertikal | B169: Drehachse vertikal | C169: Vertical rotation axis | D169: Axe de rotation vertical | E169: Asse di rotazione verticale | F169: Eje de rotación vertical
A170: Taktzeiten sind reine Rotationszeiten des Ritzels/Flansches um den Nenndrehwinkel. Ventilschaltzeiten, Schlauchbefüllungszeiten oder SPS-Reaktionszeiten sind nicht enthalten und bei der Ermittlung von Zykluszeiten zu berücksichtigen ! | B170: Taktzeiten sind reine Rotationszeiten des Ritzels/Flansches um den Nenndrehwinkel. Ventilschaltzeiten, Schlauchbefüllungszeiten oder SPS-Reaktionszeiten sind nicht enthalten und bei der Ermittlung von Zykluszeiten zu berücksichtigen ! | C170: Cycle times are purely the times taken by the pinion/flange to turn round the nominal angle of rotation. Valve switching times, house filling times or SPC reaction times are not included in the above times and must be taken into consideration when determining cycle times ! | D170: Les temps de cycle indiqués correspondent aux durées nécessaires au pignon/flasque pour effectuer la seule rotation de l'angle nominal. Elles n'incluent pas le temps de commutation des électrovannes, la durée de remplissage des flexibles ou les temps de réaction de l'API, lesquels doivent toutefois être pris en compte dans les temps de cycle ! | E170: I tempi ciclo sono i tempi necessari al pignone/flangia per compiere un determinato angolo di rotazione. Tempi di scambio delle elettrovalvole, tempi di riempimento tubazioni o tempi di reazione del PLC non sono compresi nei tempi sopra indicati che però devono essere presi in considerazione per determinare il tempo ciclo complessivo ! | F170: El tiempo de ciclo es exclusivamente el tiempo de rotación del piñón del ángulo de giro nominal. El tiempo de maniobra de las válvulas, de rellenado de los tubos de conexión y de reacción del SPS no estánincluidos, por lo que deben ser considerados a la hora de calcular el tiempo de ciclo !
A171: Ergebnisse aus der Berechnung des Massenträgheitsmoments | B171: Ergebnisse aus der Berechnung des Massenträgheitsmoments | C171: Results from calculation of mass moment of inertia | D171: Résultats du calcul de couple d'inertie de masse | E171: Risultati del calcolo del momento di inerzia della massa | F171: Resultados del cálculo del momento de inercia de la masa.
A172: Gesamtmassenträgheitsmoment | B172: Gesamtmassenträgheitsmoment | C172: Total mass moment of inertia | D172: Couple d'inertie de masse totale | E172: Momento di inerzia della massa totale | F172: Momento de inercia de la masa total
A173: Gesamtmasse | B173: Gesamtmasse | C173: Total mass | D173: Masse totale | E173: Massa totale | F173: Masa total
A174: Gesamtmassenschwerpunkts-Koordinaten | B174: Gesamtmassenschwerpunkts-Koordinaten | C174: Total mass center of gravity coordinates | D174: Coordonnées du centre de gravité de la masse totale | E174: Coordinate del baricentro della massa totale | F174: Coordenadas del centro de gravedad de la masa total
A175: Geben Sie Ihre Werte mit -Enter- ein ! | B175: Geben Sie Ihre Werte mit -Enter- ein ! | C175: Enter your values using -Enter- ! | D175: Confirmez vos valeurs par -Entrée- ! | E175: Immettere i propri valori con -Enter- ! | F175: Introduzca sus valores con "Intro".
A176: Schwenkwinkel ( 1 bis 180° ) | B176: Schwenkwinkel ( 1 bis 180° ) | C176: Swivel angle ( 1 to 180° ) | D176: Angle de pivotement ( 1 à 180° ) | E176: Angolo di rotazione ( da 1 a 180° ) | F176: Ángulo de giro ( 1 hasta 180° )
A177: Horizontal | B177: Horizontal | C177: Horizontal | D177: Horizontal | E177: Orizzontale | F177: Horizontal
A178: Vertikal | B178: Vertikal | C178: Vertical | D178: Vertical | E178: Verticale | F178: Vertical
A179: Start-Drehrichtung gegen Uhrzeigersinn ( GUZ ) | B179: Start-Drehrichtung gegen Uhrzeigersinn ( GUZ ) | C179: Start rotation direction anticlockwise | D179: Sens de rot. de départ d. le sens inv. des aiguilles d'une montre ( GUZ ) | E179: Senso di rotazione di avvio antiorario ( AOR ) | F179: Sentido de rot. inicial en el sent. contrario a las agujas del reloj (CAR)
A180: Start-Drehrichtung im Uhrzeigersinn ( UZ ) | B180: Start-Drehrichtung im Uhrzeigersinn ( UZ ) | C180: Start rotation direction clockwise | D180: Sens de rot. de départ d. le sens des aiguilles d'une montre ( UZ ) | E180: Senso di rotazione di avvio orario ( OR ) | F180: Sentido de rotación inicial en el sentido de las agujas del reloj (AR)
A181: Schwenkgeschwindigkeit | B181: Schwenkgeschwindigkeit | C181: Swivel speed | D181: Vitesse de pivotement | E181: Velocità di rotazione | F181: Velocidad de giro
A182: Maximale zulässige Auslastung des Antriebsmoments = 50% ! | B182: Maximale zulässige Auslastung des Antriebsmoments = 50% ! | C182: Maximum permissible utilisation of drive torque = 50% ! | D182: Degré d'utilisation maximal admissible du couple d'entraînement = 50 % ! | E182: Massima distribuzione del carico ammissibile della coppia motrice = 50% ! | F182: Máxima sobreutilización admisible del momento de accionamiento = 50%
A183: Drehachse | B183: Drehachse | C183: Rotation axis | D183: Axe de rot. | E183: Asse di rot. | F183: Eje de rot.
A184: Drehrichtung | B184: Drehrichtung | C184: Rotation direct. | D184: Sens de rot. | E184: Senso di rot. | F184: Sentido de rot.
A185: Module | B185: Module | C185: Actuators | D185: Module | E185: Moduli | F185: Módulos
A186: Berechneter Modul-Typ | B186: Berechneter Modul-Typ | C186: Actuator type calculated | D186: Type de module calculé | E186: Tipo di modulo calcolato | F186: Tipo de módulo calculado
A187: Katalog Seite | B187: Katalog Seite | C187: Catalogue page | D187: Page de catalogue | E187: Catalogo pagina | F187: Página de catálogo
A188: Antriebsmoment bei 6 bar ( Nm ) | B188: Antriebsmoment bei 6 bar ( Nm ) | C188: Drive torque at 6 bar ( Nm ) | D188: Couple d’entraînement à 6 bar ( Nm ) | E188: Coppia motrice a 6 bar ( Nm ) | F188: Mom. de accionamiento para 6 bar ( Nm )
A189: UNZULÄSSIG | B189: UNZULÄSSIG | C189: IMPERMISSIBLE | D189: NON ADMIS | E189: NON AMMESSO | F189: INADMISIBLE
A190: Masse zu hoch | B190: Masse zu hoch | C190: Mass too high | D190: Masse trop élevée | E190: Massa troppo elevata | F190: Masa demasiado alta
A191: Drehwinkel zu klein | B191: Drehwinkel zu klein | C191: Rot. angle too small | D191: Angle de rot. trop petit | E191: Ang. di rot. trop. rid. | F191: Áng.rot. demas. peque.
A192: Stoßdämpfer | B192: Stoßdämpfer | C192: Shock absorber | D192: Amortisseur | E192: Ammortizzatore | F192: Amortiguador
A193: Lagerung überlastet | B193: Lagerung überlastet | C193: Brg. arrangement overload | D193: Palier surchargé | E193: Cuscinetto sovraccarico | F193: Disposición de los cojinetes sobrecargada
A194: Schwenkwinkelbereich ( ° ) | B194: Schwenkwinkelbereich ( ° ) | C194: Swivel angle range ( ° ) | D194: Plage d'angle de pivotement ( ° ) | E194: Campo dell'angolo di rotazione ( ° ) | F194: Margen de ángulo de giro ( ° )
A195: Auslastung Stoßdämpfer / Zyklus | B195: Auslastung Stoßdämpfer / Zyklus | C195: Utilisation of shock absorber / cycle | D195: Degré d'utilisation des amortiss./cycle | E195: Distrib. d. carico sull'ammortizzatore / ciclo | F195: Sobreutilización amortiguador / ciclo
A196: Auslastung Massenträgheitsmoment | B196: Auslastung Massenträgheitsmoment | C196: Utilisation of mass moment of inertia | D196: Degré d'utilis. d. couple d'iner. d. l. masse | E196: Distrib. d. carico mom. di iner. della massa | F196: Sobreutil. mom. de iner. de la masa
A197: Auslastung Lagerung | B197: Auslastung Lagerung | C197: Utilisation of brg. arrangement | D197: Degré d'utilisation du palier | E197: Distribuzione del carico sul cuscinetto | F197: Sobreutil. disposición de los cojinetes
A198: Auslastung Antriebsmoment | B198: Auslastung Antriebsmoment | C198: Utilisation of drive torque | D198: Degré d'utilis. du couple d'entraînement | E198: Distribuzione del carico coppia motrice | F198: Sobreutil. momento de accionamiento
A199: Min. Schwenkzeit UZ / GUZ ( s ) | B199: Min. Schwenkzeit UZ / GUZ ( s ) | C199: Min. swivel time clock/anticlock ( s ) | D199: Temps de pivotement min. UZ / GUZ ( s ) | E199: Tempo di rotazione min. OR / AOR ( s ) | F199: Mín. tiempo de giro AR / CAR ( s )
A200: Max. Zyklenzahl / min. ** | B200: Max. Zyklenzahl / min. ** | C200: Max. number of cycles / min. ** | D200: Nombre de cycle max. / min. ** | E200: Max. numero di cicli / min. ** | F200: Máx. número de ciclos/min **
A201: Min. Schwenkzeit GUZ / UZ ( s ) | B201: Min. Schwenkzeit GUZ / UZ ( s ) | C201: Min. swivel time anticlock/clock ( s ) | D201: Temps de pivotement min. GUZ / UZ ( s ) | E201: Tempo di rotazione min. AOR / OR ( s ) | F201: Mín. tiempo de giro CAR / AR ( s )
A213: Eingabe 2 alt
A215: =IF($A$2=1,B215,IF($A$2=2,C215,IF($A$2=3,D215,IF($A$2=4,E215,IF($A$2=5,F215))))) -> Berechnung von Rotationsmodulen | B215: Berechnung von Rotationsmodulen | C215: Calculation of rotary actuators | D215: Calcul de modules rotatifs | E215: Calcolo di moduli di rotazione | F215: Cálculo de los módulos rotatorios
A216: Startseite | B216: Startseite | C216: Start page | D216: Page d`accueil | E216: Pagina iniziale | F216: Página de inicio
A217: Übersicht | B217: Übersicht | C217: Overview | D217: Sommaire | E217: Panoramica | F217: Cuadro sinóptico
A218: Massen- trägheits- moment | B218: Massen- trägheits- moment | C218: Mass moment of inertia | D218: Couples d’inertie de masse | E218: Momento di inerzia della massa | F218: Momento de inercia de la masa
A219: Rotationsmodule Flachbauweise RM 12 bis RM 21 | B219: Rotationsmodule Flachbauweise RM 12 bis RM 21 | C219: Rotary actuators, flat design, RM 12 to RM 21 | D219: Modules rotatifs de type construction à plat RM 12 à RM 21 | E219: Moduli di rotazione struttura piana da RM 12 a RM 21 | F219: Módulos rotatorios de diseño plano RM 12 hasta RM 21
A220: und zugehörige Zwischenanschläge RZ 12 bis RZ 21 | B220: und zugehörige Zwischenanschläge RZ 12 bis RZ 21 | C220: and matching intermediate stops RZ 12 to RZ 21 | D220: et butées intermédiaires correspondantes RZ 12 à RZ 21 | E220: e relative battute intermedie da RZ 12 a RZ 21 | F220: y topes intermedios correspondientes RZ 12 hasta RZ 21
A221: Drehachse horizontal | B221: Drehachse horizontal | C221: Horizontal rotation axis | D221: Axe de rotation horizontal | E221: Asse di rotazione orizzontale | F221: Eje de rotación horizontal
A222: Drehachse vertikal | B222: Drehachse vertikal | C222: Vertical rotation axis | D222: Axe de rotation vertical | E222: Asse di rotazione verticale | F222: Eje de rotación vertical
A223: Taktzeiten sind reine Rotationszeiten des Ritzels/Flansches um den Nenndrehwinkel. Ventilschaltzeiten, Schlauchbefüllungszeiten oder SPS-Reaktionszeiten sind nicht enthalten und bei der Ermittlung von Zykluszeiten zu berücksichtigen ! | B223: Taktzeiten sind reine Rotationszeiten des Ritzels/Flansches um den Nenndrehwinkel. Ventilschaltzeiten, Schlauchbefüllungszeiten oder SPS-Reaktionszeiten sind nicht enthalten und bei der Ermittlung von Zykluszeiten zu berücksichtigen ! | C223: Cycle times are purely the times taken by the pinion/flange to turn round the nominal angle of rotation. Valve switching times, house filling times or SPC reaction times are not included in the above times and must be taken into consideration when determining cycle times ! | D223: Les temps de cycle indiqués correspondent aux durées nécessaires au pignon/flasque pour effectuer la seule rotation de l'angle nominal. Elles n'incluent pas le temps de commutation des électrovannes, la durée de remplissage des flexibles ou les temps de réaction de l'API, lesquels doivent toutefois être pris en compte dans les temps de cycle ! | E223: I tempi ciclo sono i tempi necessari al pignone/flangia per compiere un determinato angolo di rotazione. Tempi di scambio delle elettrovalvole, tempi di riempimento tubazioni o tempi di reazione del PLC non sono compresi nei tempi sopra indicati che però devono essere presi in considerazione per determinare il tempo ciclo complessivo ! | F223: El tiempo de ciclo es exclusivamente el tiempo de rotación del piñón del ángulo de giro nominal. El tiempo de maniobra de las válvulas, de rellenado de los tubos de conexión y de reacción del SPS no estánincluidos, por lo que deben ser considerados a la hora de calcular el tiempo de ciclo !
A224: Ergebnisse aus der Berechnung des Massenträgheitsmoments | B224: Ergebnisse aus der Berechnung des Massenträgheitsmoments | C224: Results from calculation of mass moment of inertia | D224: Résultats du calcul de couple d'inertie de masse | E224: Risultati del calcolo del momento di inerzia della massa | F224: Resultados del cálculo del momento de inercia de la masa
A225: Gesamtmassenträgheitsmoment | B225: Gesamtmassenträgheitsmoment | C225: Total mass moment of inertia | D225: Couple d'inertie de masse totale | E225: Momento di inerzia della massa totale | F225: Momento de inercia de la masa total
A226: Gesamtmasse | B226: Gesamtmasse | C226: Total mass | D226: Masse totale | E226: Massa totale | F226: Masa total
A227: Gesamtmassenschwerpunkts-Koordinaten zum Beginn der Drehbewegung | B227: Gesamtmassenschwerpunkts-Koordinaten zum Beginn der Drehbewegung | C227: Total mass moment of inertia co-ordinates at start of rotary motion | D227: Coordonnées du centre de gravité de la masse totale au début du mouvement rotatif | E227: Coordinate del baricentro della massa totale all'inizio del moto rotatorio | F227: Coordinadas del centro de masa total al comienzo del movimiento de rotación
A228: Geben Sie Ihre Werte mit -Enter- ein ! | B228: Geben Sie Ihre Werte mit -Enter- ein ! | C228: Enter your values using -Enter- ! | D228: Confirmez vos valeurs par -Entrée- ! | E228: Immettere i propri valori con -Enter- ! | F228: Introduzca sus valores con "Intro".
A229: Schwenkwinkel ( 1 bis 190° ) | B229: Schwenkwinkel ( 1 bis 190° ) | C229: Swivel angle ( 1 to 190° ) | D229: Angle de pivotement ( 1 à 190° ) | E229: Angolo di rotazione ( da 1 a 190° ) | F229: Ángulo de giro ( 1 hasta 190° )
A230: Horizontal | B230: Horizontal | C230: Horizontal | D230: Horizontal | E230: Orizzontale | F230: Horizontal
A231: Vertikal | B231: Vertikal | C231: Vertical | D231: Vertical | E231: Verticale | F231: Vertical
A232: Start-Drehrichtung gegen Uhrzeigersinn ( GUZ ) | B232: Start-Drehrichtung gegen Uhrzeigersinn ( GUZ ) | C232: Start rotation direction anticlockwise | D232: Sens de rot. de départ d. le sens inv. des aiguilles d'une montre ( GUZ ) | E232: Senso di rotazione di avvio antiorario ( AOR ) | F232: Sentido de rot. inicial en el sent. contrario a las agujas del reloj (CAR)
A233: Start-Drehrichtung im Uhrzeigersinn ( UZ ) | B233: Start-Drehrichtung im Uhrzeigersinn ( UZ ) | C233: Start rotation direction clockwise | D233: Sens de rot. de départ d. le sens des aiguilles d'une montre ( UZ ) | E233: Senso di rotazione di avvio orario ( OR ) | F233: Sentido de rotación inicial en el sentido de las agujas del reloj (AR)
A234: Schwenkgeschwindigkeit | B234: Schwenkgeschwindigkeit | C234: Swivel speed | D234: Vitesse de pivotement | E234: Velocità di rotazione | F234: Velocidad de giro
A235: Maximale zulässige Auslastung des Antriebsmoments = 50% ! | B235: Maximale zulässige Auslastung des Antriebsmoments = 50% ! | C235: Maximum permissible utilisation of drive torque = 50% ! | D235: Degré d'utilisation maximal admissible du couple d'entraînement = 50 % ! | E235: Massima distribuzione del carico ammissibile della coppia motrice = 50% ! | F235: Máxima sobreutilización admisible del momento de accionamiento = 50%
A236: Drehachse | B236: Drehachse | C236: Rotation axis | D236: Axe de rot. | E236: Asse di rot. | F236: Eje de rot.
A237: Drehrichtung | B237: Drehrichtung | C237: Rotation direct. | D237: Sens de rot. | E237: Senso di rot. | F237: Sentido de rot.
A238: Module | B238: Module | C238: Actuators | D238: Module | E238: Moduli | F238: Módulos
A239: Berechneter Modul-Typ | B239: Berechneter Modul-Typ | C239: Actuator type calculated | D239: Type de module calculé | E239: Tipo di modulo calcolato | F239: Tipo de módulo calculado
A240: Katalog Seite | B240: Katalog Seite | C240: Catalogue page | D240: Page de catalogue | E240: Catalogo pagina | F240: Página de catálogo
A241: Antriebsmoment bei 6 bar ( Nm ) | B241: Antriebsmoment bei 6 bar ( Nm ) | C241: Drive torque at 6 bar ( Nm ) | D241: Couple d’entraînement à 6 bar ( Nm ) | E241: Coppia motrice a 6 bar ( Nm ) | F241: Mom. de accionamiento para 6 bar ( Nm )
A242: UNZULÄSSIG | B242: UNZULÄSSIG | C242: IMPERMISSIBLE | D242: NON ADMIS | E242: NON AMMESSO | F242: INADMISIBLE
A243: Masse zu hoch | B243: Masse zu hoch | C243: Mass too high | D243: Masse trop élevée | E243: Massa troppo elevata | F243: Masa demasiado alta
A244: Stoßdämpfer | B244: Stoßdämpfer | C244: Shock absorber | D244: Amortisseur | E244: Ammortizzatore | F244: Amortiguador
A245: Lagerung überlastet | B245: Lagerung überlastet | C245: Brg. arrangement overload | D245: Palier surchargé | E245: Cuscinetto sovraccarico | F245: Disposición de los cojinetes sobrecargada
A246: Schwenkwinkelbereich ( ° ) | B246: Schwenkwinkelbereich ( ° ) | C246: Swivel angle range ( ° ) | D246: Plage d'angle de pivotement ( ° ) | E246: Campo dell'angolo di rotazione ( ° ) | F246: Margen de ángulo de giro ( ° )
A247: Auslastung Stoßdämpfer / Zyklus | B247: Auslastung Stoßdämpfer / Zyklus | C247: Utilisation of shock absorber / cycle | D247: Degré d'utilisation des amortiss./cycle | E247: Distrib. d. carico sull'ammortizzatore / ciclo | F247: Sobreutilización amortiguador / ciclo
A248: Auslastung Massenträgheitsmoment | B248: Auslastung Massenträgheitsmoment | C248: Utilisation of mass moment of inertia | D248: Degré d'utilis. d. couple d'iner. d. l. masse | E248: Distrib. d. carico mom. di iner. della massa | F248: Sobreutil. mom. de iner. de la masa
A249: Auslastung Lagerung | B249: Auslastung Lagerung | C249: Utilisation of brg. arrangement | D249: Degré d'utilisation du palier | E249: Distribuzione del carico sul cuscinetto | F249: Sobreutil. disposición de los cojinetes
A250: Auslastung Antriebsmoment | B250: Auslastung Antriebsmoment | C250: Utilisation of drive torque | D250: Degré d'utilis. du couple d'entraînement | E250: Distribuzione del carico coppia motrice | F250: Sobreutil. momento de accionamiento
A251: Min. Schwenkzeit UZ / GUZ ( s ) | B251: Min. Schwenkzeit UZ / GUZ ( s ) | C251: Min. swivel time clock/anticlock ( s ) | D251: Temps de pivotement min. UZ / GUZ ( s ) | E251: Tempo di rotazione min. OR / AOR ( s ) | F251: Mín. tiempo de giro AR / CAR ( s )
A252: Max. Zyklenzahl / Min. | B252: Max. Zyklenzahl / Min. | C252: Max. cycles per min | D252: Nombre de cycles max. / min. | E252: Max. numero cicli / min. | F252: Máx. número de ciclos / Mín.
A253: Min. Schwenkzeit GUZ / UZ ( s ) | B253: Min. Schwenkzeit GUZ / UZ ( s ) | C253: Min. swivel time anticlock/clock ( s ) | D253: Temps de pivotement min. GUZ / UZ ( s ) | E253: Tempo di rotazione min. AOR / OR ( s ) | F253: Mín. tiempo de giro CAR / AR ( s )
A259: Eingabe 3 | B259: Restliche Übersetzungen siehe Eingabe 2
A261: =IF($A$2=1,B261,IF($A$2=2,C261,IF($A$2=3,D261,IF($A$2=4,E261,IF($A$2=5,F261))))) -> Rotationsmodule Flachbauweise RM 06 bis RM 21 | B261: Rotationsmodule Flachbauweise RM 06 bis RM 21 | C261: Rotary actuators, flat design, RM 06 to RM 21 | D261: Modules rotatifs de type construction à plat RM 06 à RM 21 | E261: Moduli di rotazione struttura piana da RM 06 a RM 21 | F261: Módulos rotatorios de diseño plano RM 06 hasta RM 21
A262: =IF($A$2=1,B262,IF($A$2=2,C262,IF($A$2=3,D262,IF($A$2=4,E262,IF($A$2=5,F262))))) -> Schwenkwinkel ( 1 bis 190° ) | B262: Schwenkwinkel ( 1 bis 190° ) | C262: Swivel angle ( 1 to 190° ) | D262: Angle de pivotement ( 1 à 190° ) | E262: Angolo di rotazione ( da 1 a 190° ) | F262: Ángulo de giro ( 1 hasta 190° )
... 44 more rows
